Workbook

Sheet Front Sheet
F7: Electricity Network Innovation Competition Full Submission
F8: Spreadsheet
F10: (2021 version 1.0)
F11: Appendix A
C15: Licensee Name: | D15: Western Power Distribution
C17: Submission Date: | D17: 2021-08-13
B21: Input cells
B22: Totals cells (of formula within worksheet)
B23: Referencing to other worksheets
B24: Check cells
B25: No Input
B26: Descriptions and pack data
B27: Ofgem Input cells

Sheet NIC Funding Request
A1: NIC Funding Request
C2: 2021/22 | D2: 2022/23 | E2: 2023/24 | F2: 2024/25 | G2: 2025/26 | H2: 2026/27 | I2: 2027/28 | J2: Total
A3: Total Project Cost | B3: From Project Cost Summary sheet
B4: Labour | C4: ='Project Cost Summary'!C18 -> 0 | D4: ='Project Cost Summary'!C35 -> 2026.34 | E4: ='Project Cost Summary'!C52 -> 1747.655 | F4: ='Project Cost Summary'!C69 -> 1194.655 | G4: ='Project Cost Summary'!C86 -> 756.11 | H4: ='Project Cost Summary'!C103 -> 0 | I4: ='Project Cost Summary'!C116 -> 0 | J4: =SUM(C4:I4) -> 5724.76
B5: Equipment | C5: ='Project Cost Summary'!D18 -> 0 | D5: ='Project Cost Summary'!D35 -> 7000 | E5: ='Project Cost Summary'!D52 -> 0 | F5: ='Project Cost Summary'!D69 -> 0 | G5: ='Project Cost Summary'!D86 -> 0 | H5: ='Project Cost Summary'!D103 -> 0 | I5: ='Project Cost Summary'!D116 -> 0 | J5: 7000
B6: Contractors | C6: ='Project Cost Summary'!E18 -> 0 | D6: ='Project Cost Summary'!E35 -> 100 | E6: ='Project Cost Summary'!E52 -> 136 | F6: ='Project Cost Summary'!E69 -> 136 | G6: ='Project Cost Summary'!E86 -> 146 | H6: ='Project Cost Summary'!F103 -> 0 | I6: ='Project Cost Summary'!CE116 -> 0 | J6: 518
B7: IT | C7: ='Project Cost Summary'!F18 -> 0 | D7: ='Project Cost Summary'!F35 -> 250 | E7: ='Project Cost Summary'!F52 -> 0 | F7: ='Project Cost Summary'!F69 -> 0 | G7: ='Project Cost Summary'!F86 -> 0 | H7: ='Project Cost Summary'!G103 -> 0 | I7: ='Project Cost Summary'!F116 -> 0 | J7: 250
B8: IPR Costs | C8: ='Project Cost Summary'!G18 -> 0 | D8: ='Project Cost Summary'!G35 -> 0 | E8: ='Project Cost Summary'!G52 -> 0 | F8: ='Project Cost Summary'!G69 -> 0 | G8: ='Project Cost Summary'!G86 -> 0 | H8: ='Project Cost Summary'!H103 -> 0 | I8: ='Project Cost Summary'!G116 -> 0 | J8: 0
B9: Travel & Expenses | C9: ='Project Cost Summary'!H18 -> 0 | D9: ='Project Cost Summary'!H35 -> 20 | E9: ='Project Cost Summary'!H52 -> 0 | F9: ='Project Cost Summary'!H69 -> 0 | G9: ='Project Cost Summary'!H86 -> 0 | H9: ='Project Cost Summary'!I103 -> 0 | I9: ='Project Cost Summary'!H116 -> 0 | J9: 20
A10: Payments to users & Contingency | C10: ='Project Cost Summary'!I18+'Project Cost Summary'!J18 -> 0 | D10: ='Project Cost Summary'!I35+'Project Cost Summary'!J35 -> 709.73 | E10: ='Project Cost Summary'!I52+'Project Cost Summary'!J52 -> 702.87 | F10: ='Project Cost Summary'!I69+'Project Cost Summary'!J69 -> 290 | G10: ='Project Cost Summary'!I86+'Project Cost Summary'!J86 -> 20 | H10: ='Project Cost Summary'!J103+'Project Cost Summary'!I103 -> 0 | I10: ='Project Cost Summary'!J116+'Project Cost Summary'!I116 -> 0 | J10: 1722.6
B11: Decommissioning | C11: ='Project Cost Summary'!K18 -> 0 | D11: ='Project Cost Summary'!K35 -> 0 | E11: ='Project Cost Summary'!K52 -> 0 | F11: ='Project Cost Summary'!K69 -> 0 | G11: ='Project Cost Summary'!K86 -> 0 | H11: ='Project Cost Summary'!K103 -> 0 | I11: ='Project Cost Summary'!K116 -> 0 | J11: 0
B12: Other | C12: ='Project Cost Summary'!L18 -> 0 | D12: ='Project Cost Summary'!L35 -> 60 | E12: ='Project Cost Summary'!L52 -> 45 | F12: ='Project Cost Summary'!L69 -> 15 | G12: ='Project Cost Summary'!L86 -> 20 | H12: ='Project Cost Summary'!L103 -> 0 | I12: ='Project Cost Summary'!L116 -> 0 | J12: 140
B13: Total | C13: =SUM(C4:C12) -> 0 | D13: 10166.07 | E13: 2631.525 | F13: 1635.655 | G13: 942.11 | H13: =SUM(H4:H12) -> 0 | I13: 0 | J13: 15375.36
A15: External funding | B15: Any funding that will be received from Project Partners and/or External Funders - from Project Cost Summary sheet
B16: Labour | C16: ='Project Cost Summary'!C26 -> 0 | D16: ='Project Cost Summary'!C43 -> 595.902606 | E16: ='Project Cost Summary'!C60 -> 81.39386544 | F16: ='Project Cost Summary'!C77 -> 53.93861151 | G16: ='Project Cost Summary'!C94 -> 0 | H16: ='Project Cost Summary'!D94 -> 0 | I16: ='Project Cost Summary'!E94 -> 0 | J16: =SUM(C16:I16) -> 731.2350829
B17: Equipment | C17: ='Project Cost Summary'!D26 -> 0 | D17: ='Project Cost Summary'!D43 -> 6543.803419 | E17: ='Project Cost Summary'!D60 -> 0 | F17: ='Project Cost Summary'!D77 -> 0 | G17: ='Project Cost Summary'!D94 -> 0 | H17: ='Project Cost Summary'!E94 -> 0 | I17: ='Project Cost Summary'!F94 -> 0 | J17: 6543.803419
B18: Contractors | C18: ='Project Cost Summary'!E26 -> 0 | D18: ='Project Cost Summary'!E43 -> 17.23372537 | E18: ='Project Cost Summary'!E60 -> 8.976230978 | F18: ='Project Cost Summary'!E77 -> 7.987727166 | G18: ='Project Cost Summary'!E94 -> 0 | H18: ='Project Cost Summary'!F94 -> 0 | I18: ='Project Cost Summary'!G94 -> 0 | J18: 34.19768351
B19: IT | C19: ='Project Cost Summary'!F26 -> 0 | D19: ='Project Cost Summary'!F43 -> 28.02871573 | E19: ='Project Cost Summary'!F60 -> 0 | F19: ='Project Cost Summary'!F77 -> 0 | G19: ='Project Cost Summary'!F94 -> 0 | H19: ='Project Cost Summary'!G94 -> 0 | I19: ='Project Cost Summary'!H94 -> 0 | J19: 28.02871573
B20: IPR Costs | C20: ='Project Cost Summary'!G26 -> 0 | D20: ='Project Cost Summary'!G43 -> 0 | E20: ='Project Cost Summary'!G60 -> 0 | F20: ='Project Cost Summary'!G77 -> 0 | G20: ='Project Cost Summary'!G94 -> 0 | H20: ='Project Cost Summary'!H94 -> 0 | I20: ='Project Cost Summary'!I94 -> 0 | J20: 0
B21: Travel & Expenses | C21: ='Project Cost Summary'!H26 -> 0 | D21: ='Project Cost Summary'!H43 -> 2.242297259 | E21: ='Project Cost Summary'!H60 -> 0 | F21: ='Project Cost Summary'!H77 -> 0 | G21: ='Project Cost Summary'!H94 -> 0 | H21: ='Project Cost Summary'!I94 -> 0 | I21: ='Project Cost Summary'!J94 -> 0 | J21: 2.242297259
A22: Payments to users & Contingency | C22: ='Project Cost Summary'!I26+'Project Cost Summary'!J26 -> 0 | D22: ='Project Cost Summary'!I43+'Project Cost Summary'!J43 -> 218.5303574 | E22: ='Project Cost Summary'!I60+'Project Cost Summary'!J60 -> 16.73908474 | F22: ='Project Cost Summary'!I77+'Project Cost Summary'!J77 -> 5.898484222 | G22: ='Project Cost Summary'!I94+'Project Cost Summary'!K94 -> 0 | H22: ='Project Cost Summary'!J94+'Project Cost Summary'!L94 -> 0 | I22: ='Project Cost Summary'!K94+'Project Cost Summary'!M94 -> 0 | J22: 241.1679264
B23: Decommissioning | C23: ='Project Cost Summary'!K26 -> 0 | D23: ='Project Cost Summary'!K43 -> 0 | E23: ='Project Cost Summary'!K60 -> 0 | F23: ='Project Cost Summary'!K77 -> 0 | G23: ='Project Cost Summary'!K94 -> 0 | H23: ='Project Cost Summary'!L94 -> 0 | I23: ='Project Cost Summary'!M94 -> 0 | J23: 0
B24: Other | C24: ='Project Cost Summary'!L26 -> 0 | D24: ='Project Cost Summary'!L43 -> 23.38455435 | E24: ='Project Cost Summary'!L60 -> 3.971594572 | F24: ='Project Cost Summary'!L77 -> 1.218726461 | G24: ='Project Cost Summary'!L94 -> 0 | H24: ='Project Cost Summary'!M94 -> 0 | I24: ='Project Cost Summary'!N94 -> 0 | J24: 28.57487539
B25: Total | C25: =SUM(C16:C24) -> 0 | D25: 7429.125675 | E25: 111.0807757 | F25: 69.04354936 | G25: 0 | H25: =SUM(H16:H24) -> 0 | I25: 0 | J25: 7609.25
A27: Licensee extra contribution | B27: Any funding from the Licensee which is in excess of the Licensee Compulsory Contribution - from Project Cost Summary sheet
B28: Labour | C28: ='Project Cost Summary'!C27 -> 0 | D28: ='Project Cost Summary'!C44 -> 0 | E28: ='Project Cost Summary'!C61 -> 0 | F28: ='Project Cost Summary'!C78 -> 0 | G28: ='Project Cost Summary'!C95 -> 0 | H28: ='Project Cost Summary'!D95 -> 0 | I28: ='Project Cost Summary'!E95 -> 0 | J28: =SUM(C28:I28) -> 0
B29: Equipment | C29: ='Project Cost Summary'!D27 -> 0 | D29: ='Project Cost Summary'!D44 -> 0 | E29: ='Project Cost Summary'!D61 -> 0 | F29: ='Project Cost Summary'!D78 -> 0 | G29: ='Project Cost Summary'!D95 -> 0 | H29: ='Project Cost Summary'!E95 -> 0 | I29: ='Project Cost Summary'!F95 -> 0 | J29: 0
B30: Contractors | C30: ='Project Cost Summary'!E27 -> 0 | D30: ='Project Cost Summary'!E44 -> 0 | E30: ='Project Cost Summary'!E61 -> 0 | F30: ='Project Cost Summary'!E78 -> 0 | G30: ='Project Cost Summary'!E95 -> 0 | H30: ='Project Cost Summary'!F95 -> 0 | I30: ='Project Cost Summary'!G95 -> 0 | J30: 0
B31: IT | C31: ='Project Cost Summary'!F27 -> 0 | D31: ='Project Cost Summary'!F44 -> 0 | E31: ='Project Cost Summary'!F61 -> 0 | F31: ='Project Cost Summary'!F78 -> 0 | G31: ='Project Cost Summary'!E95 -> 0 | H31: ='Project Cost Summary'!F95 -> 0 | I31: ='Project Cost Summary'!G95 -> 0 | J31: 0
B32: IPR Costs | C32: ='Project Cost Summary'!G27 -> 0 | D32: ='Project Cost Summary'!G44 -> 0 | E32: ='Project Cost Summary'!G61 -> 0 | F32: ='Project Cost Summary'!G78 -> 0 | G32: ='Project Cost Summary'!F95 -> 0 | H32: ='Project Cost Summary'!G95 -> 0 | I32: ='Project Cost Summary'!H95 -> 0 | J32: 0
B33: Travel & Expenses | C33: ='Project Cost Summary'!H27 -> 0 | D33: ='Project Cost Summary'!H44 -> 0 | E33: ='Project Cost Summary'!H61 -> 0 | F33: ='Project Cost Summary'!H78 -> 0 | G33: ='Project Cost Summary'!G95 -> 0 | H33: ='Project Cost Summary'!H95 -> 0 | I33: ='Project Cost Summary'!I95 -> 0 | J33: 0
A34: Payments to users & Contingency | C34: ='Project Cost Summary'!I27+'Project Cost Summary'!J27 -> 0 | D34: ='Project Cost Summary'!I44+'Project Cost Summary'!J44 -> 0 | E34: ='Project Cost Summary'!I61+'Project Cost Summary'!J61 -> 0 | F34: ='Project Cost Summary'!I78 -> 0 | G34: ='Project Cost Summary'!I95+'Project Cost Summary'!J95 -> 0 | H34: ='Project Cost Summary'!J95+'Project Cost Summary'!K95 -> 0 | I34: ='Project Cost Summary'!K95+'Project Cost Summary'!L95 -> 0 | J34: 0
B35: Decommissioning | C35: ='Project Cost Summary'!K27 -> 0 | D35: ='Project Cost Summary'!K44 -> 0 | E35: ='Project Cost Summary'!K61 -> 0 | F35: ='Project Cost Summary'!K78 -> 0 | G35: ='Project Cost Summary'!K95 -> 0 | H35: ='Project Cost Summary'!L95 -> 0 | I35: ='Project Cost Summary'!M95 -> 0 | J35: 0
B36: Other | C36: ='Project Cost Summary'!L27 -> 0 | D36: ='Project Cost Summary'!L44 -> 0 | E36: ='Project Cost Summary'!L61 -> 0 | F36: ='Project Cost Summary'!L78 -> 0 | G36: ='Project Cost Summary'!L95 -> 0 | H36: ='Project Cost Summary'!M95 -> 0 | I36: ='Project Cost Summary'!N95 -> 0 | J36: 0
B37: Total | C37: =SUM(C28:C36) -> 0 | D37: 0 | E37: 0 | F37: 0 | G37: 0 | H37: =SUM(H28:H36) -> 0 | I37: 0 | J37: 0
A39: Initial Net Funding Required
B40: Labour | C40: =C4-C16-C28 -> 0 | D40: 1430.437394 | E40: 1666.261135 | F40: 1140.716388 | G40: 756.11 | H40: =H4-H16-H28 -> 0 | I40: 0 | J40: =J4-J16-J28 -> 4993.524917
B41: Equipment | C41: =C5-C17-C29 -> 0 | D41: 456.1965812 | E41: 0 | F41: 0 | G41: 0 | H41: =H5-H17-H29 -> 0 | I41: 0 | J41: 456.1965812
B42: Contractors | C42: =C6-C18-C30 -> 0 | D42: 82.76627463 | E42: 127.023769 | F42: 128.0122728 | G42: 146 | H42: =H6-H18-H30 -> 0 | I42: 0 | J42: 483.8023165
B43: IT | C43: =C7-C19-C31 -> 0 | D43: 221.9712843 | E43: 0 | F43: 0 | G43: 0 | H43: =H7-H19-H31 -> 0 | I43: 0 | J43: 221.9712843
B44: IPR Costs | C44: =C8-C20-C32 -> 0 | D44: 0 | E44: 0 | F44: 0 | G44: 0 | H44: =H8-H20-H32 -> 0 | I44: 0 | J44: 0
B45: Travel & Expenses | C45: =C9-C21-C33 -> 0 | D45: 17.75770274 | E45: 0 | F45: 0 | G45: 0 | H45: =H9-H21-H33 -> 0 | I45: 0 | J45: 17.75770274
A46: Payments to users & Contingency | C46: =C10-C22-C34 -> 0 | D46: 491.1996426 | E46: 686.1309153 | F46: 284.1015158 | G46: 20 | H46: =H10-H22-H34 -> 0 | I46: 0 | J46: 1481.432074
B47: Decommissioning | C47: =C11-C23-C35 -> 0 | D47: 0 | E47: 0 | F47: 0 | G47: 0 | H47: =H11-H23-H35 -> 0 | I47: 0 | J47: 0 | K47: Check Total = to Initial Net Funding request
B48: Other | C48: =C12-C24-C36 -> 0 | D48: 36.61544565 | E48: 41.02840543 | F48: 13.78127354 | G48: 20 | H48: =H12-H24-H36 -> 0 | I48: 0 | J48: 111.4251246 | K48: in Project Cost Summary
B49: Total | C49: =C13-C25-C37 -> 0 | D49: 2736.944325 | E49: 2520.444224 | F49: 1566.611451 | G49: 942.11 | H49: =H13-H25-H37 -> 0 | I49: 0 | J49: =J13-J25-J37 -> 7766.11 | K49: =IF(J49='Project Cost Summary'!M11,"OK","ERROR") -> OK
A51: Direct Benefits | B51: from Direct Benefits sheet
B52: Total | C52: ='Direct Benefits'!C11 -> 0 | D52: ='Direct Benefits'!D11 -> 0 | E52: ='Direct Benefits'!E11 -> 0 | F52: ='Direct Benefits'!F11 -> 0 | G52: ='Direct Benefits'!G11 -> 0 | H52: ='Direct Benefits'!H11 -> 0 | I52: ='Direct Benefits'!I11 -> 0 | J52: =SUM(C52:I52) -> 0
A56: Licensee Compulsory Contribution / Direct Benefits | C56: from Project Cost Summary sheet
B57: Labour | C57: ='Project Cost Summary'!C29 -> 0 | D57: ='Project Cost Summary'!C46 -> 333.7864644 | E57: ='Project Cost Summary'!C63 -> 88.2742321 | F57: ='Project Cost Summary'!C80 -> 60.65665807 | G57: ='Project Cost Summary'!C97 -> 38.19119313 | H57: ='Project Cost Summary'!D103 -> 0 | I57: ='Project Cost Summary'!D116 -> 0 | J57: =SUM(C57:I57) -> 520.9085477
B58: Equipment | C58: ='Project Cost Summary'!D29 -> 0 | D58: ='Project Cost Summary'!D46 -> 0 | E58: ='Project Cost Summary'!D63 -> 0 | F58: ='Project Cost Summary'!D80 -> 0 | G58: ='Project Cost Summary'!D97 -> 0 | H58: ='Project Cost Summary'!E103 -> 0 | I58: ='Project Cost Summary'!E116 -> 0 | J58: 0
B59: Contractors | C59: ='Project Cost Summary'!E29 -> 0 | D59: ='Project Cost Summary'!E46 -> 19.53864362 | E59: ='Project Cost Summary'!E63 -> 6.869373855 | F59: ='Project Cost Summary'!E80 -> 9.304112761 | G59: ='Project Cost Summary'!E97 -> 7.374474874 | H59: ='Project Cost Summary'!F103 -> 0 | I59: ='Project Cost Summary'!F116 -> 0 | J59: 43.08660511
B60: IT | C60: ='Project Cost Summary'!F29 -> 0 | D60: ='Project Cost Summary'!F46 -> 48.84660905 | E60: ='Project Cost Summary'!F63 -> 0 | F60: ='Project Cost Summary'!F80 -> 0 | G60: ='Project Cost Summary'!F97 -> 0 | H60: ='Project Cost Summary'!G103 -> 0 | I60: ='Project Cost Summary'!G116 -> 0 | J60: 48.84660905
B61: IPR Costs | C61: ='Project Cost Summary'!G29 -> 0 | D61: ='Project Cost Summary'!G46 -> 0 | E61: ='Project Cost Summary'!G63 -> 0 | F61: ='Project Cost Summary'!G80 -> 0 | G61: ='Project Cost Summary'!G97 -> 0 | H61: ='Project Cost Summary'!H103 -> 0 | I61: ='Project Cost Summary'!H116 -> 0 | J61: 0
B62: Travel & Expenses | C62: ='Project Cost Summary'!H29 -> 0 | D62: ='Project Cost Summary'!H46 -> 3.907728724 | E62: ='Project Cost Summary'!H63 -> 0 | F62: ='Project Cost Summary'!H80 -> 0 | G62: ='Project Cost Summary'!H97 -> 0 | H62: ='Project Cost Summary'!I103 -> 0 | I62: ='Project Cost Summary'!I97 -> 0 | J62: 3.907728724
A63: Payments to users & Contingency | C63: ='Project Cost Summary'!I29+'Project Cost Summary'!J29 -> 0 | D63: ='Project Cost Summary'!I46+'Project Cost Summary'!J46 -> 105.4559212 | E63: ='Project Cost Summary'!I63+'Project Cost Summary'!J63 -> 35.50203531 | F63: ='Project Cost Summary'!I80+'Project Cost Summary'!J80 -> 11.63014095 | G63: ='Project Cost Summary'!I97+'Project Cost Summary'!J97 -> 1.010202038 | H63: ='Project Cost Summary'!J103+'Project Cost Summary'!I103 -> 0 | I63: ='Project Cost Summary'!K116+'Project Cost Summary'!J116 -> 0 | J63: 153.5982995
B64: Decommissioning | C64: ='Project Cost Summary'!K29 -> 0 | D64: ='Project Cost Summary'!K46 -> 0 | E64: ='Project Cost Summary'!K63 -> 0 | F64: ='Project Cost Summary'!K80 -> 0 | G64: ='Project Cost Summary'!K97 -> 0 | H64: ='Project Cost Summary'!K103 -> 0 | I64: ='Project Cost Summary'!K116 -> 0 | J64: 0 | K64: of Total Initial Net Funding Required
B65: Other | C65: ='Project Cost Summary'!L29 -> 0 | D65: ='Project Cost Summary'!L46 -> 11.72318617 | E65: ='Project Cost Summary'!L63 -> 2.272954584 | F65: ='Project Cost Summary'!L80 -> 1.026188907 | G65: ='Project Cost Summary'!L97 -> 1.010202038 | H65: ='Project Cost Summary'!L103 -> 0 | I65: ='Project Cost Summary'!L116 -> 0 | J65: 16.0325317 | K65: =IF(J66>=J49*0.1,"OK","ERROR") -> OK
B66: Total | C66: =SUM(C57:C65) -> 0 | D66: 523.2585532 | E66: 132.9185958 | F66: 82.61710069 | G66: 47.58607208 | H66: =SUM(H57:H65) -> 0 | I66: 0 | J66: 786.3803218 | K66: Check that Total is = or > than
K67: Total Direct Benefits
K68: =IF(J66>=J52,"OK","ERROR") -> OK
A69: Outstanding Funding required
B70: Labour | C70: =C40-C57 -> 0 | D70: 1096.65093 | E70: 1577.986902 | F70: 1080.05973 | G70: =G40-G57 -> 717.9188069 | H70: 0 | I70: 0 | J70: =SUM(C70:I70) -> 4472.616369
B71: Equipment | C71: 0 | D71: 456.1965812 | E71: 0 | F71: 0 | G71: 0 | H71: 0 | I71: 0 | J71: 456.1965812
B72: Contractors | C72: 0 | D72: 63.22763101 | E72: 120.1543952 | F72: 118.7081601 | G72: 138.6255251 | H72: 0 | I72: 0 | J72: 440.7157114
B73: IT | C73: 0 | D73: 173.1246752 | E73: 0 | F73: 0 | G73: 0 | H73: 0 | I73: 0 | J73: 173.1246752
B74: IPR Costs | C74: 0 | D74: 0 | E74: 0 | F74: 0 | G74: 0 | H74: 0 | I74: 0 | J74: 0
B75: Travel & Expenses | C75: 0 | D75: 13.84997402 | E75: 0 | F75: 0 | G75: 0 | H75: 0 | I75: 0 | J75: 13.84997402
A76: Payments to users & Contingency | C76: 0 | D76: 385.7437214 | E76: 650.62888 | F76: 272.4713748 | G76: 18.98979796 | H76: 0 | I76: 0 | J76: 1327.833774
B77: Decommissioning | C77: 0 | D77: 0 | E77: 0 | F77: 0 | G77: 0 | H77: 0 | I77: 0 | J77: 0 | K77: Check that Total is =to
B78: Other | C78: 0 | D78: 24.89225947 | E78: 38.75545084 | F78: 12.75508463 | G78: 18.98979796 | H78: 0 | I78: 0 | J78: 95.39259291 | K78: Total Outstanding Funding required
B79: Total | C79: 0 | D79: 2213.685772 | E79: 2387.525628 | F79: 1483.99435 | G79: 894.5239279 | H79: 0 | I79: 0 | J79: 6979.729678 | K79: =IF(J79='Project Cost Summary'!M13, "OK","ERROR") -> OK
A81: balance | B81: 6914.042179 | C81: 0 | D81: =B81-C79-D79 -> 4700.356407 | E81: =D81-E79+D82 -> 2347.673974 | F81: =E81-F79+E82 -> 884.8237152 | G81: =F81-G79+F82 -> -0.00271964634 | H81: =G81-H79+G82 -> 2.65174334 | I81: =H81-I79+H82 -> 2.659690411 | J81: =G81-G79+G82 -> -891.8721846 | K81: =B81 -> 6914.042179
A82: interest | C82: 0 | D82: =((B81+D81)/2)*$D86 -> 34.84319576 | E82: =((D81+E81)/2)*$D86 -> 21.14409114 | F82: =((E81+F81)/2)*$D86 -> 9.697493068 | G82: =((F81+G81)/2)*$D86 -> 2.654462987 | H82: =((G81+H81)/2)*$D86 -> 0.007947071082 | I82: 0.01593430126 | J82: =((G81+J81)/2)*$D86 -> -2.675624713 | K82: =SUM(D82:J82) -> 65.68749961
K83: =K81+K82 -> 6979.729678 | L83: =J79-K83 -> 0
B85: Bank of England interest rate | D85: 0.001 | G85: NIC FUNDING REQUEST £ | I85: =K81 -> 6914.042179
B86: interest rate used in calculation | D86: =D85+0.5% -> 0.006
B87: RPI adjustment | C87: 2021/22 | D87: 2022/23 | E87: 2023/24 | F87: 2024/25 | G87: 2025/26 | H87: 2026/27 | I87: 2027/28
B88: Annual inflation | C88: 0.0278 | D88: 0.0213 | E88: 0.0308 | F88: 0.0308 | G88: 0.0308 | H88: 0.0308 | I88: 0.0308
A89: n.b the NIC Funding Request calculation should use the Bank of England Base rate plus 0.5% on 30 June of the year in which the Full Submission is made.

Sheet Project Cost Summary
A1: Project Cost Summary
C2: Total
C3: Cost type
C4: Labour | D4: Equipment | E4: Contractors | F4: IT | G4: IPR Costs | H4: Travel & Expenses | I4: Payments to users | J4: Contingency | K4: Decommissioning | L4: Other | M4: Total
B5: Total Project Cost | C5: =SUM(C18+C35+C52+C69+C86+C103+C116+C129) -> 5724.76 | D5: =SUM(D18+D35+D52+D69+D86+D103+D116+D129) -> 7000 | E5: =SUM(E18+E35+E52+E69+E86+E103+E116+E129) -> 518 | F5: 250 | G5: 0 | H5: 20 | I5: 225 | J5: 1497.6 | K5: 0 | L5: 140 | M5: =SUM(C5:L5) -> 15375.36
B6: Project Partner 1 | C6: =SUM(C19+C40+C57+C74+C91+C104+C117+C130) -> 6.152927826 | D6: 0 | E6: 0 | F6: 0 | G6: 0 | H6: 0 | I6: 0 | J6: 0.2820721736 | K6: 0 | L6: 0 | M6: =SUM(C6:L6) -> 6.435
B7: Project Partner 2 | C7: =SUM(C20+C41+C58+C75+C92+C105+C118+C131) -> 212.3397436 | D7: 4674.145299 | E7: 0 | F7: 0 | G7: 0 | H7: 0 | I7: 40.06410256 | J7: 73.4508547 | K7: 0 | L7: 0 | M7: 5000
B8: Project Partner 3 | C8: =SUM(C23+C42+C59+C76+C93+C106+C119+C132) -> 84.93589744 | D8: 1869.65812 | E8: 0 | F8: 0 | G8: 0 | H8: 0 | I8: 16.02564103 | J8: 29.38034188 | K8: 0 | L8: 0 | M8: 2000
B9: External Funding | C9: =SUM(C26+C43+C60+C77+C94+C107+C120+C133) -> 731.2350829 | D9: 6543.803419 | E9: 34.19768351 | F9: 28.02871573 | G9: 0 | H9: 2.242297259 | I9: 59.38555168 | J9: 181.7823747 | K9: 0 | L9: 28.57487539 | M9: =SUM(C9:L9) -> 7609.25
B10: Licensee extra contribution | C10: =SUM(C27+C44+C61+C78+C95+C108+C121+C134) -> 0 | D10: 0 | E10: 0 | F10: 0 | G10: 0 | H10: 0 | I10: 0 | J10: 0 | K10: 0 | L10: 0 | M10: 0
B11: Initial Net Funding Required | C11: =SUM(C28+C45+C62+C79+C96+C109+C122+C135) -> 4993.524917 | D11: 456.1965812 | E11: 483.8023165 | F11: 221.9712843 | G11: 0 | H11: 17.75770274 | I11: 165.6144483 | J11: 1315.817625 | K11: 0 | L11: 111.4251246 | M11: 7766.11 | O11: Check Total Initial Net Funding Required matches that on the Second Tier Funding Request tab
B12: Licensee Compulsory Contribution / Direct Benefits | C12: =SUM(C29+C46+C63+C80+C97+C110+C123+C136) -> 520.9085477 | D12: 0 | E12: 43.08660511 | F12: 48.84660905 | G12: 0 | H12: 3.907728724 | I12: 7.745243091 | J12: 145.8530564 | K12: 0 | L12: 16.0325317 | M12: 786.3803218 | O12: =IF(ABS(M11-'NIC Funding Request'!J49)<0.01,"OK","ERROR") -> OK
B13: Outstanding Funding Required | C13: =SUM(C30+C47+C64+C81+C98+C111+C124+C137) -> 4472.616369 | D13: 456.1965812 | E13: 440.7157114 | F13: 173.1246752 | G13: 0 | H13: 13.84997402 | I13: 157.8692052 | J13: 1169.964569 | K13: 0 | L13: 95.39259291 | M13: =SUM(C13:L13) -> 6979.729678
C15: 2021/22
C16: Cost type
C17: Labour | D17: Equipment | E17: Contractors | F17: IT | G17: IPR Costs | H17: Travel & Expenses | I17: Payments to users | J17: Contingency | K17: Decommissioning | L17: Other | M17: Total
B18: Total Project Cost | C18: ='2021-2022'!G9 -> 0 | D18: ='2021-2022'!H9 -> 0 | E18: ='2021-2022'!I9 -> 0 | F18: ='2021-2022'!J9 -> 0 | G18: ='2021-2022'!K9 -> 0 | H18: ='2021-2022'!L9 -> 0 | I18: ='2021-2022'!M9 -> 0 | J18: ='2021-2022'!N9 -> 0 | K18: ='2021-2022'!O9 -> 0 | L18: ='2021-2022'!P9 -> 0 | M18: =SUM(C18:L18) -> 0
B19: Guidehouse | C19: ='2021-2022'!AK9 -> 0 | D19: ='2021-2022'!AL9 -> 0 | E19: ='2021-2022'!AM9 -> 0 | F19: ='2021-2022'!AN9 -> 0 | G19: ='2021-2022'!AO9 -> 0 | H19: ='2021-2022'!AP9 -> 0 | I19: ='2021-2022'!AQ9 -> 0 | J19: ='2021-2022'!AR9 -> 0 | K19: ='2021-2022'!AS9 -> 0 | L19: ='2021-2022'!AT9 -> 0 | M19: 0
B20: Octopus Energy | C20: ='2021-2022'!AV9 -> 0 | D20: ='2021-2022'!AW9 -> 0 | E20: ='2021-2022'!AX9 -> 0 | F20: ='2021-2022'!AY9 -> 0 | G20: ='2021-2022'!AZ9 -> 0 | H20: ='2021-2022'!BA9 -> 0 | I20: ='2021-2022'!BB9 -> 0 | J20: ='2021-2022'!BC9 -> 0 | K20: ='2021-2022'!BD9 -> 0 | L20: ='2021-2022'!BE9 -> 0 | M20: 0
B21: Passiv
B22: SERO
B23: SP Energy Networks | C23: ='2021-2022'!BG9 -> 0 | D23: ='2021-2022'!BH9 -> 0 | E23: ='2021-2022'!BI9 -> 0 | F23: ='2021-2022'!BJ9 -> 0 | G23: ='2021-2022'!BK9 -> 0 | H23: ='2021-2022'!BL9 -> 0 | I23: ='2021-2022'!BM9 -> 0 | J23: ='2021-2022'!BN9 -> 0 | K23: ='2021-2022'!BO9 -> 0 | L23: ='2021-2022'!BP9 -> 0 | M23: 0
B24: Welsh Government
B25: WMCA
B26: External Funding | C26: =SUM(C19:C23) -> 0 | D26: 0 | E26: 0 | F26: 0 | G26: 0 | H26: 0 | I26: 0 | J26: 0 | K26: 0 | L26: 0 | M26: =SUM(C26:L26) -> 0
B27: Licensee extra contribution | C27: ='2021-2022'!BR9 -> 0 | D27: ='2021-2022'!BS9 -> 0 | E27: ='2021-2022'!BT9 -> 0 | F27: ='2021-2022'!BU9 -> 0 | G27: ='2021-2022'!BV9 -> 0 | H27: ='2021-2022'!BW9 -> 0 | I27: ='2021-2022'!BX9 -> 0 | J27: ='2021-2022'!BY9 -> 0 | K27: ='2021-2022'!BZ9 -> 0 | L27: ='2021-2022'!CA9 -> 0 | M27: 0
B28: Initial Net Funding Required | C28: =C18-C26-C27 -> 0 | D28: 0 | E28: 0 | F28: 0 | G28: 0 | H28: 0 | I28: 0 | J28: 0 | K28: 0 | L28: 0 | M28: 0
B29: Licensee Compulsory Contribution / Direct Benefits | C29: ='2021-2022'!Z9 -> 0 | D29: ='2021-2022'!AA9 -> 0 | E29: ='2021-2022'!AB9 -> 0 | F29: ='2021-2022'!AC9 -> 0 | G29: ='2021-2022'!AD9 -> 0 | H29: ='2021-2022'!AE9 -> 0 | I29: ='2021-2022'!AF9 -> 0 | J29: ='2021-2022'!AG9 -> 0 | K29: ='2021-2022'!AH9 -> 0 | L29: ='2021-2022'!AI9 -> 0 | M29: 0
B30: Outstanding Funding Required | C30: ='2021-2022'!CC9 -> 0 | D30: ='2021-2022'!CD9 -> 0 | E30: ='2021-2022'!CE9 -> 0 | F30: ='2021-2022'!CF9 -> 0 | G30: ='2021-2022'!CG9 -> 0 | H30: ='2021-2022'!CH9 -> 0 | I30: ='2021-2022'!CI9 -> 0 | J30: ='2021-2022'!CJ9 -> 0 | K30: ='2021-2022'!CK9 -> 0 | L30: ='2021-2022'!CL9 -> 0 | M30: 0
C32: 2022/23
C33: Cost type
C34: Labour | D34: Equipment | E34: Contractors | F34: IT | G34: IPR Costs | H34: Travel & Expenses | I34: Payments to users | J34: Contingency | K34: Decommissioning | L34: Other | M34: Total
B35: Total Project Cost | C35: ='2022-2023'!G22 -> 2026.34 | D35: ='2022-2023'!H22 -> 7000 | E35: ='2022-2023'!I22 -> 100 | F35: ='2022-2023'!J22 -> 250 | G35: ='2022-2023'!K22 -> 0 | H35: ='2022-2023'!L22 -> 20 | I35: ='2022-2023'!M22 -> 75 | J35: ='2022-2023'!N22 -> 634.73 | K35: ='2022-2023'!O22 -> 0 | L35: ='2022-2023'!P22 -> 60 | M35: =SUM(C35:L35) -> 10166.07
B36: Guidehouse | C36: ='2022-2023'!AO22 -> 142.0899487 | D36: ='2022-2023'!AP22 -> 0 | E36: ='2022-2023'!AQ22 -> 16.210691 | F36: ='2022-2023'!AR22 -> 0 | G36: ='2022-2023'!AS22 -> 0 | H36: ='2022-2023'!AT22 -> 0 | I36: ='2022-2023'!AU22 -> 0 | J36: ='2022-2023'!AV22 -> 0 | K36: ='2022-2023'!AW22 -> 0 | L36: ='2022-2023'!AX22 -> 19.4528292 | M36: =SUM(C36:L36) -> 177.7534689
B37: Octopus Energy | C37: ='2022-2023'!AZ22 -> 74.63040556 | D37: ='2022-2023'!BA22 -> 0 | E37: ='2022-2023'!BB22 -> 0 | F37: ='2022-2023'!BC22 -> 13.06271145 | G37: ='2022-2023'!BD22 -> 0 | H37: ='2022-2023'!BE22 -> 1.045016916 | I37: ='2022-2023'!BF22 -> 0.7837626869 | J37: ='2022-2023'!BG22 -> 27.41758631 | K37: ='2022-2023'!BH22 -> 0 | L37: ='2022-2023'!BI22 -> 1.567525374 | M37: 118.5070083
B38: Passiv | C38: ='2022-2023'!BK22 -> 21.38980725 | D38: ='2022-2023'!BL22 -> 0 | E38: ='2022-2023'!BM22 -> 1.023034372 | F38: ='2022-2023'!BN22 -> 5.115171859 | G38: ='2022-2023'!BO22 -> 0 | H38: ='2022-2023'!BP22 -> 0.4092137487 | I38: ='2022-2023'!BQ22 -> 0 | J38: ='2022-2023'!BR22 -> 10.44988689 | K38: ='2022-2023'!BS22 -> 0 | L38: ='2022-2023'!BT22 -> 0 | M38: 38.38711413
B39: SERO | C39: ='2022-2023'!BV22 -> 56.26637869 | D39: ='2022-2023'!BW22 -> 0 | E39: ='2022-2023'!BX22 -> 0 | F39: ='2022-2023'!BY22 -> 9.850832426 | G39: ='2022-2023'!BZ22 -> 0 | H39: ='2022-2023'!CA22 -> 0.7880665941 | I39: ='2022-2023'!CB22 -> 0 | J39: ='2022-2023'!CC22 -> 20.6761092 | K39: ='2022-2023'!CD22 -> 0 | L39: ='2022-2023'!CE22 -> 2.364199782 | M39: 89.94558668
B40: SP Energy Networks | C40: ='2022-2023'!CG22 -> 4.250424696 | D40: ='2022-2023'!CH22 -> 0 | E40: ='2022-2023'!CI22 -> 0 | F40: ='2022-2023'!CJ22 -> 0 | G40: ='2022-2023'!CK22 -> 0 | H40: ='2022-2023'!CL22 -> 0 | I40: ='2022-2023'!CM22 -> 0 | J40: ='2022-2023'!CN22 -> 0.2820721736 | K40: ='2022-2023'!CO22 -> 0 | L40: ='2022-2023'!CP22 -> 0 | M40: 4.53249687
B41: Welsh Government | C41: ='2022-2023'!CR22 -> 212.3397436 | D41: ='2022-2023'!CS22 -> 4674.145299 | E41: ='2022-2023'!CT22 -> 0 | F41: ='2022-2023'!CU22 -> 0 | G41: ='2022-2023'!CV22 -> 0 | H41: ='2022-2023'!CW22 -> 0 | I41: ='2022-2023'!CX22 -> 40.06410256 | J41: ='2022-2023'!CY22 -> 73.4508547 | K41: ='2022-2023'!CZ22 -> 0 | L41: ='2022-2023'!DA22 -> 0 | M41: 5000
B42: WMCA | C42: ='2022-2023'!DC22 -> 84.93589744 | D42: ='2022-2023'!DD22 -> 1869.65812 | E42: ='2022-2023'!DE22 -> 0 | F42: ='2022-2023'!DF22 -> 0 | G42: ='2022-2023'!DG22 -> 0 | H42: ='2022-2023'!DH22 -> 0 | I42: ='2022-2023'!DI22 -> 16.02564103 | J42: ='2022-2023'!DJ22 -> 29.38034188 | K42: ='2022-2023'!DK22 -> 0 | L42: ='2022-2023'!DL22 -> 0 | M42: 2000
B43: External Funding | C43: =SUM(C36:C42) -> 595.902606 | D43: =SUM(D36:D42) -> 6543.803419 | E43: 17.23372537 | F43: 28.02871573 | G43: 0 | H43: 2.242297259 | I43: 56.87350628 | J43: 161.6568512 | K43: 0 | L43: 23.38455435 | M43: 7429.125675
B44: Licensee extra contribution | C44: ='2022-2023'!DN22 -> 0 | D44: ='2022-2023'!DO22 -> 0 | E44: ='2022-2023'!DP22 -> 0 | F44: ='2022-2023'!DQ22 -> 0 | G44: ='2022-2023'!DR22 -> 0 | H44: ='2022-2023'!DS22 -> 0 | I44: ='2022-2023'!DT22 -> 0 | J44: ='2022-2023'!DU22 -> 0 | K44: ='2022-2023'!DV22 -> 0 | L44: ='2022-2023'!DW22 -> 0 | M44: 0
B45: Initial Net Funding Required | C45: =C35-C43-C44 -> 1430.437394 | D45: =D35-D43-D44 -> 456.1965812 | E45: 82.76627463 | F45: =F35-F43-F44 -> 221.9712843 | G45: 0 | H45: 17.75770274 | I45: 18.12649372 | J45: 473.0731488 | K45: 0 | L45: 36.61544565 | M45: 2736.944325
B46: Licensee Compulsory Contribution / Direct Benefits | C46: ='2022-2023'!AD22 -> 333.7864644 | D46: ='2022-2023'!AE22 -> 0 | E46: ='2022-2023'!AF22 -> 19.53864362 | F46: ='2022-2023'!AG22 -> 48.84660905 | G46: ='2022-2023'!AH22 -> 0 | H46: ='2022-2023'!AI22 -> 3.907728724 | I46: ='2022-2023'!AJ22 -> 2.930796543 | J46: ='2022-2023'!AK22 -> 102.5251247 | K46: ='2022-2023'!AL22 -> 0 | L46: ='2022-2023'!AM22 -> 11.72318617 | M46: 523.2585532
B47: Outstanding Funding Required | C47: ='2022-2023'!DY22 -> 1096.65093 | D47: ='2022-2023'!DZ22 -> 456.1965812 | E47: ='2022-2023'!EA22 -> 63.22763101 | F47: ='2022-2023'!EB22 -> 173.1246752 | G47: ='2022-2023'!EC22 -> 0 | H47: ='2022-2023'!ED22 -> 13.84997402 | I47: ='2022-2023'!EE22 -> 15.19569718 | J47: ='2022-2023'!EF22 -> 370.5480242 | K47: ='2022-2023'!EG22 -> 0 | L47: ='2022-2023'!EH22 -> 24.89225947 | M47: 2213.685772
C49: 2023/24
C50: Cost type
C51: Labour | D51: Equipment | E51: Contractors | F51: IT | G51: IPR Costs | H51: Travel & Expenses | I51: Payments to users | J51: Contingency | K51: Decommissioning | L51: Other | M51: Total
B52: Total Project Cost | C52: ='2023-2024'!G22 -> 1747.655 | D52: ='2023-2024'!H22 -> 0 | E52: ='2023-2024'!I22 -> 136 | F52: ='2023-2024'!J22 -> 0 | G52: ='2023-2024'!K22 -> 0 | H52: ='2023-2024'!L22 -> 0 | I52: ='2023-2024'!M22 -> 75 | J52: ='2023-2024'!N22 -> 627.87 | K52: ='2023-2024'!O22 -> 0 | L52: ='2023-2024'!P22 -> 45 | M52: =SUM(C52:L52) -> 2631.525
B53: Guidehouse | C53: ='2023-2024'!AO22 -> 36.37628706 | D53: ='2023-2024'!AP22 -> 0 | E53: ='2023-2024'!AQ22 -> 6.325831078 | F53: ='2023-2024'!AR22 -> 0 | G53: ='2023-2024'!AS22 -> 0 | H53: ='2023-2024'!AT22 -> 0 | I53: ='2023-2024'!AU22 -> 0 | J53: ='2023-2024'!AV22 -> 0 | K53: ='2023-2024'!AW22 -> 0 | L53: ='2023-2024'!AX22 -> 3.31002789 | M53: =SUM(C53:L53) -> 46.01214603
B54: Octopus Energy | C54: ='2023-2024'!AZ22 -> 19.23125893 | D54: ='2023-2024'!BA22 -> 0 | E54: ='2023-2024'!BB22 -> 1.339584582 | F54: ='2023-2024'!BC22 -> 0 | G54: ='2023-2024'!BD22 -> 0 | H54: ='2023-2024'!BE22 -> 0 | I54: ='2023-2024'!BF22 -> 0.3044510414 | J54: ='2023-2024'!BG22 -> 9.496233915 | K54: ='2023-2024'!BH22 -> 0 | L54: ='2023-2024'!BI22 -> 0.3044510414 | M54: 30.67597951
B55: Passiv | C55: ='2023-2024'!BK22 -> 9.459101662 | D55: ='2023-2024'!BL22 -> 0 | E55: ='2023-2024'!BM22 -> 0.4775454891 | F55: ='2023-2024'!BN22 -> 0 | G55: ='2023-2024'!BO22 -> 0 | H55: ='2023-2024'!BP22 -> 0 | I55: ='2023-2024'!BQ22 -> 0 | J55: ='2023-2024'!BR22 -> 0 | K55: ='2023-2024'!BS22 -> 0 | L55: ='2023-2024'!BT22 -> 0 | M55: 9.936647152
B56: SERO | C56: ='2023-2024'!BV22 -> 15.15396413 | D56: ='2023-2024'!BW22 -> 0 | E56: ='2023-2024'!BX22 -> 0.833269828 | F56: ='2023-2024'!BY22 -> 0 | G56: ='2023-2024'!BZ22 -> 0 | H56: ='2023-2024'!CA22 -> 0 | I56: ='2023-2024'!CB22 -> 0.1785578203 | J56: ='2023-2024'!CC22 -> 6.759841961 | K56: ='2023-2024'!CD22 -> 0 | L56: ='2023-2024'!CE22 -> 0.3571156406 | M56: 23.28274938
B57: SP Energy Networks | C57: ='2023-2024'!CG22 -> 1.173253659 | D57: ='2023-2024'!CH22 -> 0 | E57: ='2023-2024'!CI22 -> 0 | F57: ='2023-2024'!CJ22 -> 0 | G57: ='2023-2024'!CK22 -> 0 | H57: ='2023-2024'!CL22 -> 0 | I57: ='2023-2024'!CM22 -> 0 | J57: ='2023-2024'!CN22 -> 0 | K57: ='2023-2024'!CO22 -> 0 | L57: ='2023-2024'!CP22 -> 0 | M57: =SUM(C57:L57) -> 1.173253659
B58: Welsh Government | C58: ='2023-2024'!CR22 -> 0 | D58: ='2023-2024'!CS22 -> 0 | E58: ='2023-2024'!CT22 -> 0 | F58: ='2023-2024'!CU22 -> 0 | G58: ='2023-2024'!CV22 -> 0 | H58: ='2023-2024'!CW22 -> 0 | I58: ='2023-2024'!CX22 -> 0 | J58: ='2023-2024'!CY22 -> 0 | K58: ='2023-2024'!CZ22 -> 0 | L58: ='2023-2024'!DA22 -> 0 | M58: 0
B59: WMCA | C59: ='2023-2024'!DC22 -> 0 | D59: ='2023-2024'!DD22 -> 0 | E59: ='2023-2024'!DE22 -> 0 | F59: ='2023-2024'!DF22 -> 0 | G59: ='2023-2024'!DG22 -> 0 | H59: ='2023-2024'!DH22 -> 0 | I59: ='2023-2024'!DI22 -> 0 | J59: ='2023-2024'!DJ22 -> 0 | K59: ='2023-2024'!DK22 -> 0 | L59: ='2023-2024'!DL22 -> 0 | M59: =SUM(C59:L59) -> 0
B60: External Funding | C60: =SUM(C53:C59) -> 81.39386544 | D60: =SUM(D53:D59) -> 0 | E60: 8.976230978 | F60: 0 | G60: 0 | H60: 0 | I60: 0.4830088617 | J60: 16.25607588 | K60: 0 | L60: 3.971594572 | M60: =SUM(C60:L60) -> 111.0807757
B61: Licensee extra contribution | C61: ='2023-2024'!DN22 -> 0 | D61: ='2023-2024'!DO22 -> 0 | E61: ='2023-2024'!DP22 -> 0 | F61: ='2023-2024'!DQ22 -> 0 | G61: ='2023-2024'!DR22 -> 0 | H61: ='2023-2024'!DS22 -> 0 | I61: ='2023-2024'!DT22 -> 0 | J61: ='2023-2024'!DU22 -> 0 | K61: ='2023-2024'!DV22 -> 0 | L61: ='2023-2024'!DW22 -> 0 | M61: 0
B62: Initial Net Funding Required | C62: =C52-C60-C61 -> 1666.261135 | D62: 0 | E62: 127.023769 | F62: 0 | G62: 0 | H62: 0 | I62: 74.51699114 | J62: 611.6139241 | K62: 0 | L62: 41.02840543 | M62: 2520.444224
B63: Licensee Compulsory Contribution / Direct Benefits | C63: ='2023-2024'!AD22 -> 88.2742321 | D63: ='2023-2024'!AE22 -> 0 | E63: ='2023-2024'!AF22 -> 6.869373855 | F63: ='2023-2024'!AG22 -> 0 | G63: ='2023-2024'!AH22 -> 0 | H63: ='2023-2024'!AI22 -> 0 | I63: ='2023-2024'!AJ22 -> 3.788257641 | J63: ='2023-2024'!AK22 -> 31.71377767 | K63: ='2023-2024'!AL22 -> 0 | L63: ='2023-2024'!AM22 -> 2.272954584 | M63: 132.9185958
B64: Outstanding Funding Required | C64: ='2023-2024'!DY22 -> 1577.986902 | D64: ='2023-2024'!DZ22 -> 0 | E64: ='2023-2024'!EA22 -> 120.1543952 | F64: ='2023-2024'!EB22 -> 0 | G64: ='2023-2024'!EC22 -> 0 | H64: ='2023-2024'!ED22 -> 0 | I64: ='2023-2024'!EE22 -> 70.7287335 | J64: ='2023-2024'!EF22 -> 579.9001465 | K64: ='2023-2024'!EG22 -> 0 | L64: ='2023-2024'!EH22 -> 38.75545084 | M64: =SUM(C64:L64) -> 2387.525628
C66: 2024/25
C67: Cost type
C68: Labour | D68: Equipment | E68: Contractors | F68: IT | G68: IPR Costs | H68: Travel & Expenses | I68: Payments to users | J68: Contingency | K68: Decommissioning | L68: Other | M68: Total
B69: Total Project Cost | C69: ='2024-2025'!G22 -> 1194.655 | D69: ='2024-2025'!H22 -> 0 | E69: ='2024-2025'!I22 -> 136 | F69: ='2024-2025'!J22 -> 0 | G69: ='2024-2025'!K22 -> 0 | H69: ='2024-2025'!L22 -> 0 | I69: ='2024-2025'!M22 -> 75 | J69: ='2024-2025'!N22 -> 215 | K69: ='2024-2025'!O22 -> 0 | L69: ='2024-2025'!P22 -> 15 | M69: =SUM(C69:L69) -> 1635.655
B70: Guidehouse | C70: ='2024-2025'!AO22 -> 21.87897239 | D70: ='2024-2025'!AP22 -> 0 | E70: ='2024-2025'!AQ22 -> 2.615183204 | F70: ='2024-2025'!AR22 -> 0 | G70: ='2024-2025'!AS22 -> 0 | H70: ='2024-2025'!AT22 -> 0 | I70: ='2024-2025'!AU22 -> 1.824546421 | J70: ='2024-2025'!AV22 -> 1.824546421 | K70: ='2024-2025'!AW22 -> 0 | L70: ='2024-2025'!AX22 -> 0.4561366053 | M70: 28.59938504
B71: Octopus Energy | C71: ='2024-2025'!AZ22 -> 15.30914068 | D71: ='2024-2025'!BA22 -> 0 | E71: ='2024-2025'!BB22 -> 3.199771786 | F71: ='2024-2025'!BC22 -> 0 | G71: ='2024-2025'!BD22 -> 0 | H71: ='2024-2025'!BE22 -> 0 | I71: ='2024-2025'!BF22 -> 0 | J71: ='2024-2025'!BG22 -> 0 | K71: ='2024-2025'!BH22 -> 0 | L71: ='2024-2025'!BI22 -> 0.5580997301 | M71: 19.06701219
B72: Passiv | C72: ='2024-2025'!BK22 -> 5.857510347 | D72: ='2024-2025'!BL22 -> 0 | E72: ='2024-2025'!BM22 -> 0.3187283725 | F72: ='2024-2025'!BN22 -> 0 | G72: ='2024-2025'!BO22 -> 0 | H72: ='2024-2025'!BP22 -> 0 | I72: ='2024-2025'!BQ22 -> 0 | J72: ='2024-2025'!BR22 -> 0 | K72: ='2024-2025'!BS22 -> 0 | L72: ='2024-2025'!BT22 -> 0 | M72: 6.17623872
B73: SERO | C73: ='2024-2025'!BV22 -> 10.16373863 | D73: ='2024-2025'!BW22 -> 0 | E73: ='2024-2025'!BX22 -> 1.854043804 | F73: ='2024-2025'!BY22 -> 0 | G73: ='2024-2025'!BZ22 -> 0 | H73: ='2024-2025'!CA22 -> 0 | I73: ='2024-2025'!CB22 -> 0.2044901255 | J73: ='2024-2025'!CC22 -> 2.044901255 | K73: ='2024-2025'!CD22 -> 0 | L73: ='2024-2025'!CE22 -> 0.2044901255 | M73: 14.47166394
B74: SP Energy Networks | C74: ='2024-2025'!CG22 -> 0.7292494708 | D74: ='2024-2025'!CH22 -> 0 | E74: ='2024-2025'!CI22 -> 0 | F74: ='2024-2025'!CJ22 -> 0 | G74: ='2024-2025'!CK22 -> 0 | H74: ='2024-2025'!CL22 -> 0 | I74: ='2024-2025'!CM22 -> 0 | J74: ='2024-2025'!CN22 -> 0 | K74: ='2024-2025'!CO22 -> 0 | L74: ='2024-2025'!CP22 -> 0 | M74: 0.7292494708
B75: Welsh Government | C75: ='2024-2025'!CR22 -> 0 | D75: ='2024-2025'!CS22 -> 0 | E75: ='2024-2025'!CT22 -> 0 | F75: ='2024-2025'!CU22 -> 0 | G75: ='2024-2025'!CV22 -> 0 | H75: ='2024-2025'!CW22 -> 0 | I75: ='2024-2025'!CX22 -> 0 | J75: ='2024-2025'!CY22 -> 0 | K75: ='2024-2025'!CZ22 -> 0 | L75: ='2024-2025'!DA22 -> 0 | M75: 0
B76: WMCA | C76: ='2024-2025'!DC22 -> 0 | D76: ='2024-2025'!DD22 -> 0 | E76: ='2024-2025'!DE22 -> 0 | F76: ='2024-2025'!DF22 -> 0 | G76: ='2024-2025'!DG22 -> 0 | H76: ='2024-2025'!DH22 -> 0 | I76: ='2024-2025'!DI22 -> 0 | J76: ='2024-2025'!DJ22 -> 0 | K76: ='2024-2025'!DK22 -> 0 | L76: ='2024-2025'!DL22 -> 0 | M76: 0
B77: External Funding | C77: =SUM(C70:C76) -> 53.93861151 | D77: =SUM(D70:D76) -> 0 | E77: 7.987727166 | F77: 0 | G77: 0 | H77: 0 | I77: 2.029036547 | J77: 3.869447676 | K77: 0 | L77: 1.218726461 | M77: 69.04354936
B78: Licensee extra contribution | C78: ='2024-2025'!DN22 -> 0 | D78: ='2024-2025'!DO22 -> 0 | E78: ='2024-2025'!DP22 -> 0 | F78: ='2024-2025'!DQ22 -> 0 | G78: ='2024-2025'!DR22 -> 0 | H78: ='2024-2025'!DS22 -> 0 | I78: ='2024-2025'!DT22 -> 0 | J78: ='2024-2025'!DU22 -> 0 | K78: ='2024-2025'!DV22 -> 0 | L78: ='2024-2025'!DW22 -> 0 | M78: 0
B79: Initial Net Funding Required | C79: =C69-C77-C78 -> 1140.716388 | D79: =D69-D77-D78 -> 0 | E79: 128.0122728 | F79: 0 | G79: 0 | H79: 0 | I79: 72.97096345 | J79: 211.1305523 | K79: 0 | L79: 13.78127354 | M79: 1566.611451
B80: Licensee Compulsory Contribution | C80: ='2024-2025'!AD22 -> 60.65665807 | D80: ='2024-2025'!AE22 -> 0 | E80: ='2024-2025'!AF22 -> 9.304112761 | F80: ='2024-2025'!AG22 -> 0 | G80: ='2024-2025'!AH22 -> 0 | H80: ='2024-2025'!AI22 -> 0 | I80: ='2024-2025'!AJ22 -> 1.026188907 | J80: ='2024-2025'!AK22 -> 10.60395204 | K80: ='2024-2025'!AL22 -> 0 | L80: ='2024-2025'!AM22 -> 1.026188907 | M80: 82.61710069
B81: Outstanding Funding Required | C81: ='2024-2025'!DY22 -> 1080.05973 | D81: ='2024-2025'!DZ22 -> 0 | E81: ='2024-2025'!EA22 -> 118.7081601 | F81: ='2024-2025'!EB22 -> 0 | G81: ='2024-2025'!EC22 -> 0 | H81: ='2024-2025'!ED22 -> 0 | I81: ='2024-2025'!EE22 -> 71.94477455 | J81: ='2024-2025'!EF22 -> 200.5266003 | K81: ='2024-2025'!EG22 -> 0 | L81: ='2024-2025'!EH22 -> 12.75508463 | M81: 1483.99435
C83: 2025/26
C84: Cost type
C85: Labour | D85: Equipment | E85: Contractors | F85: IT | G85: IPR Costs | H85: Travel & Expenses | I85: Payments to users | J85: Contingency | K85: Decommissioning | L85: Other | M85: Total
B86: Total Project Cost | C86: ='2025-2026'!G22 -> 756.11 | D86: ='2025-2026'!H22 -> 0 | E86: ='2025-2026'!I22 -> 146 | F86: ='2025-2026'!J22 -> 0 | G86: ='2025-2026'!K22 -> 0 | H86: ='2025-2026'!L22 -> 0 | I86: ='2025-2026'!M22 -> 0 | J86: ='2025-2026'!N22 -> 20 | K86: ='2025-2026'!O22 -> 0 | L86: ='2025-2026'!P22 -> 20 | M86: =SUM(C86:L86) -> 942.11
B87: Guidehouse | C87: ='2025-2026'!AO22 -> 0 | D87: ='2025-2026'!AP22 -> 0 | E87: ='2025-2026'!AQ22 -> 0 | F87: ='2025-2026'!AR22 -> 0 | G87: ='2025-2026'!AS22 -> 0 | H87: ='2025-2026'!AT22 -> 0 | I87: ='2025-2026'!AU22 -> 0 | J87: ='2025-2026'!AV22 -> 0 | K87: ='2025-2026'!AW22 -> 0 | L87: ='2025-2026'!AX22 -> 0
B88: Octopus Energy | C88: ='2025-2026'!AZ22 -> 0 | D88: ='2025-2026'!BA22 -> 0 | E88: ='2025-2026'!BB22 -> 0 | F88: ='2025-2026'!BC22 -> 0 | G88: ='2025-2026'!BD22 -> 0 | H88: ='2025-2026'!BE22 -> 0 | I88: ='2025-2026'!BF22 -> 0 | J88: ='2025-2026'!BG22 -> 0 | K88: ='2025-2026'!BH22 -> 0 | L88: ='2025-2026'!BI22 -> 0
B89: Passiv | C89: ='2025-2026'!BK22 -> 0 | D89: ='2025-2026'!BL22 -> 0 | E89: ='2025-2026'!BM22 -> 0 | F89: ='2025-2026'!BN22 -> 0 | G89: ='2025-2026'!BO22 -> 0 | H89: ='2025-2026'!BP22 -> 0 | I89: ='2025-2026'!BQ22 -> 0 | J89: ='2025-2026'!BR22 -> 0 | K89: ='2025-2026'!BS22 -> 0 | L89: ='2025-2026'!BT22 -> 0
B90: SERO | C90: ='2025-2026'!BV22 -> 0 | D90: ='2025-2026'!BW22 -> 0 | E90: ='2025-2026'!BX22 -> 0 | F90: ='2025-2026'!BY22 -> 0 | G90: ='2025-2026'!BZ22 -> 0 | H90: ='2025-2026'!CA22 -> 0 | I90: ='2025-2026'!CB22 -> 0 | J90: ='2025-2026'!CC22 -> 0 | K90: ='2025-2026'!CD22 -> 0 | L90: ='2025-2026'!CE22 -> 0
B91: SP Energy Networks | C91: ='2025-2026'!CG22 -> 0 | D91: ='2025-2026'!CH22 -> 0 | E91: ='2025-2026'!CI22 -> 0 | F91: ='2025-2026'!CJ22 -> 0 | G91: ='2025-2026'!CK22 -> 0 | H91: ='2025-2026'!CL22 -> 0 | I91: ='2025-2026'!CM22 -> 0 | J91: ='2025-2026'!CN22 -> 0 | K91: ='2025-2026'!CO22 -> 0 | L91: ='2025-2026'!CP22 -> 0 | M91: 0
B92: Welsh Government | C92: ='2025-2026'!CR22 -> 0 | D92: ='2025-2026'!CS22 -> 0 | E92: ='2025-2026'!CT22 -> 0 | F92: ='2025-2026'!CU22 -> 0 | G92: ='2025-2026'!CV22 -> 0 | H92: ='2025-2026'!CW22 -> 0 | I92: ='2025-2026'!CX22 -> 0 | J92: ='2025-2026'!CY22 -> 0 | K92: ='2025-2026'!CZ22 -> 0 | L92: ='2025-2026'!DA22 -> 0 | M92: 0
B93: WMCA | C93: ='2025-2026'!DC22 -> 0 | D93: ='2025-2026'!DD22 -> 0 | E93: ='2025-2026'!DE22 -> 0 | F93: ='2025-2026'!DF22 -> 0 | G93: ='2025-2026'!DG22 -> 0 | H93: ='2025-2026'!DH22 -> 0 | I93: ='2025-2026'!DI22 -> 0 | J93: ='2025-2026'!DJ22 -> 0 | K93: ='2025-2026'!DK22 -> 0 | L93: ='2025-2026'!DL22 -> 0 | M93: 0
B94: External Funding | C94: =SUM(C87:C93) -> 0 | D94: =SUM(D87:D93) -> 0 | E94: 0 | F94: 0 | G94: 0 | H94: 0 | I94: 0 | J94: 0 | K94: 0 | L94: 0 | M94: 0
B95: Licensee extra contribution | C95: ='2025-2026'!DN22 -> 0 | D95: ='2025-2026'!DO22 -> 0 | E95: ='2025-2026'!DP22 -> 0 | F95: ='2025-2026'!DQ22 -> 0 | G95: ='2025-2026'!DR22 -> 0 | H95: ='2025-2026'!DS22 -> 0 | I95: ='2025-2026'!DT22 -> 0 | J95: ='2025-2026'!DU22 -> 0 | K95: ='2025-2026'!DV22 -> 0 | L95: ='2025-2026'!DW22 -> 0 | M95: 0
B96: Initial Net Funding Required | C96: =C86-C94-C95 -> 756.11 | D96: =D86-D94-D95 -> 0 | E96: 146 | F96: 0 | G96: 0 | H96: 0 | I96: 0 | J96: 20 | K96: 0 | L96: 20 | M96: 942.11
B97: Licensee Compulsory Contribution | C97: ='2025-2026'!AD22 -> 38.19119313 | D97: ='2025-2026'!AE22 -> 0 | E97: ='2025-2026'!AF22 -> 7.374474874 | F97: ='2025-2026'!AG22 -> 0 | G97: ='2025-2026'!AH22 -> 0 | H97: ='2025-2026'!AI22 -> 0 | I97: ='2025-2026'!AJ22 -> 0 | J97: ='2025-2026'!AK22 -> 1.010202038 | K97: ='2025-2026'!AL22 -> 0 | L97: ='2025-2026'!AM22 -> 1.010202038 | M97: 47.58607208
B98: Outstanding Funding Required | C98: ='2025-2026'!DY22 -> 717.9188069 | D98: ='2025-2026'!DZ22 -> 0 | E98: ='2025-2026'!EA22 -> 138.6255251 | F98: ='2025-2026'!EB22 -> 0 | G98: ='2025-2026'!EC22 -> 0 | H98: ='2025-2026'!ED22 -> 0 | I98: ='2025-2026'!EE22 -> 0 | J98: ='2025-2026'!EF22 -> 18.98979796 | K98: ='2025-2026'!EG22 -> 0 | L98: ='2025-2026'!EH22 -> 18.98979796 | M98: 894.5239279
C100: 2026/27
C101: Cost type
C102: Labour | D102: Equipment | E102: Contractors | F102: IT | G102: IPR Costs | H102: Travel & Expenses | I102: Payments to users | J102: Contingency | K102: Decommissioning | L102: Other | M102: Total
B103: Total Project Cost | C103: ='2026-2027'!G9 -> 0 | D103: ='2026-2027'!H9 -> 0 | E103: ='2026-2027'!I9 -> 0 | F103: ='2026-2027'!J9 -> 0 | G103: ='2026-2027'!K9 -> 0 | H103: ='2026-2027'!L9 -> 0 | I103: ='2026-2027'!M9 -> 0 | J103: ='2026-2027'!N9 -> 0 | K103: ='2026-2027'!O9 -> 0 | L103: ='2026-2027'!P9 -> 0 | M103: =SUM(C103:L103) -> 0
B104: Project Partner 1 | C104: ='2026-2027'!AK9 -> 0 | D104: ='2026-2027'!AL9 -> 0 | E104: ='2026-2027'!AM9 -> 0 | F104: ='2026-2027'!AN9 -> 0 | G104: ='2026-2027'!AO9 -> 0 | H104: ='2026-2027'!AP9 -> 0 | I104: ='2026-2027'!AQ9 -> 0 | J104: ='2026-2027'!AR9 -> 0 | K104: ='2026-2027'!AS9 -> 0 | L104: ='2026-2027'!AT9 -> 0 | M104: 0
B105: Project Partner 2 | C105: ='2026-2027'!AV9 -> 0 | D105: ='2026-2027'!AW9 -> 0 | E105: ='2026-2027'!AX9 -> 0 | F105: ='2026-2027'!AY9 -> 0 | G105: ='2026-2027'!AZ9 -> 0 | H105: ='2026-2027'!BA9 -> 0 | I105: ='2026-2027'!BB9 -> 0 | J105: ='2026-2027'!BC9 -> 0 | K105: ='2026-2027'!BD9 -> 0 | L105: ='2026-2027'!BE9 -> 0 | M105: 0
B106: Project Partner 3 | C106: ='2026-2027'!BG9 -> 0 | D106: ='2026-2027'!BH35 -> 0 | E106: ='2026-2027'!BI35 -> 0 | F106: ='2026-2027'!BJ35 -> 0 | G106: ='2026-2027'!BK35 -> 0 | H106: ='2026-2027'!BL35 -> 0 | I106: ='2026-2027'!BM35 -> 0 | J106: ='2026-2027'!BN35 -> 0 | K106: ='2026-2027'!BO35 -> 0 | L106: ='2026-2027'!BP35 -> 0 | M106: 0
B107: External Funding | C107: =SUM(C104:C106) -> 0 | D107: 0 | E107: 0 | F107: 0 | G107: 0 | H107: 0 | I107: 0 | J107: 0 | K107: 0 | L107: =SUM(L104:L106) -> 0 | M107: 0
B108: Licensee extra contribution | C108: ='2026-2027'!BR9 -> 0 | D108: ='2026-2027'!BS9 -> 0 | E108: ='2026-2027'!BT9 -> 0 | F108: ='2026-2027'!BU9 -> 0 | G108: ='2026-2027'!BV9 -> 0 | H108: ='2026-2027'!BW9 -> 0 | I108: ='2026-2027'!BX9 -> 0 | J108: ='2026-2027'!BY9 -> 0 | K108: ='2026-2027'!BZ9 -> 0 | L108: ='2026-2027'!CA9 -> 0 | M108: 0
B109: Initial Net Funding Required | C109: =C103-C107-C108 -> 0 | D109: =D103-D107-D108 -> 0 | E109: 0 | F109: 0 | G109: 0 | H109: 0 | I109: 0 | J109: 0 | K109: 0 | L109: 0 | M109: 0
B110: Licensee Compulsory Contribution | C110: ='2026-2027'!Z9 -> 0 | D110: ='2026-2027'!AA9 -> 0 | E110: ='2026-2027'!AB9 -> 0 | F110: ='2026-2027'!AC9 -> 0 | G110: ='2026-2027'!AD9 -> 0 | H110: ='2026-2027'!AE9 -> 0 | I110: ='2026-2027'!AF9 -> 0 | J110: ='2026-2027'!AG9 -> 0 | K110: ='2026-2027'!AH9 -> 0 | L110: ='2026-2027'!AI9 -> 0 | M110: 0
B111: Outstanding Funding Required | C111: ='2026-2027'!CC9 -> 0 | D111: ='2026-2027'!CD9 -> 0 | E111: ='2026-2027'!CE9 -> 0 | F111: ='2026-2027'!CF9 -> 0 | G111: ='2026-2027'!CG9 -> 0 | H111: ='2026-2027'!CH9 -> 0 | I111: ='2026-2027'!CI9 -> 0 | J111: ='2026-2027'!CJ9 -> 0 | K111: ='2026-2027'!CK9 -> 0 | L111: ='2026-2027'!CL9 -> 0 | M111: 0
C113: 2027/28
C114: Cost type
C115: Labour | D115: Equipment | E115: Contractors | F115: IT | G115: IPR Costs | H115: Travel & Expenses | I115: Payments to users | J115: Contingency | K115: Decommissioning | L115: Other | M115: Total
B116: Total Project Cost | C116: ='2027-2028'!G9 -> 0 | D116: ='2027-2028'!H9 -> 0 | E116: ='2027-2028'!I9 -> 0 | F116: ='2027-2028'!J9 -> 0 | G116: ='2027-2028'!K9 -> 0 | H116: ='2027-2028'!L9 -> 0 | I116: ='2027-2028'!M9 -> 0 | J116: ='2027-2028'!N9 -> 0 | K116: ='2027-2028'!O9 -> 0 | L116: ='2027-2028'!P9 -> 0 | M116: =SUM(C116:L116) -> 0
B117: Project Partner 1 | C117: ='2027-2028'!AK9 -> 0 | D117: ='2027-2028'!AL9 -> 0 | E117: ='2027-2028'!AM9 -> 0 | F117: ='2027-2028'!AN9 -> 0 | G117: ='2027-2028'!AO9 -> 0 | H117: ='2027-2028'!AP9 -> 0 | I117: ='2027-2028'!AQ9 -> 0 | J117: ='2027-2028'!AR9 -> 0 | K117: ='2027-2028'!AS9 -> 0 | L117: ='2027-2028'!AT9 -> 0 | M117: 0
B118: Project Partner 2 | C118: ='2027-2028'!AV9 -> 0 | D118: ='2027-2028'!AW9 -> 0 | E118: ='2027-2028'!AX9 -> 0 | F118: ='2027-2028'!AY9 -> 0 | G118: ='2027-2028'!AZ9 -> 0 | H118: ='2027-2028'!BA9 -> 0 | I118: ='2027-2028'!BB9 -> 0 | J118: ='2027-2028'!BC9 -> 0 | K118: ='2027-2028'!BD9 -> 0 | L118: ='2027-2028'!BE9 -> 0 | M118: 0
B119: Project Partner 3 | C119: ='2027-2028'!BG9 -> 0 | D119: ='2027-2028'!BH9 -> 0 | E119: ='2027-2028'!BI9 -> 0 | F119: ='2027-2028'!BJ9 -> 0 | G119: ='2027-2028'!BK9 -> 0 | H119: ='2027-2028'!BL9 -> 0 | I119: ='2027-2028'!BM9 -> 0 | J119: ='2027-2028'!BN9 -> 0 | K119: ='2027-2028'!BO9 -> 0 | L119: ='2027-2028'!BP9 -> 0 | M119: 0
B120: External Funding | C120: =SUM(C117:C119) -> 0 | D120: 0 | E120: 0 | F120: 0 | G120: 0 | H120: 0 | I120: 0 | J120: 0 | K120: 0 | L120: =SUM(L117:L119) -> 0 | M120: 0
B121: Licensee extra contribution | C121: ='2027-2028'!BR9 -> 0 | D121: ='2027-2028'!BS9 -> 0 | E121: ='2027-2028'!BT9 -> 0 | F121: ='2027-2028'!BU9 -> 0 | G121: ='2027-2028'!BV9 -> 0 | H121: ='2027-2028'!BW9 -> 0 | I121: ='2027-2028'!BX9 -> 0 | J121: ='2027-2028'!BY9 -> 0 | K121: ='2027-2028'!BZ9 -> 0 | L121: ='2027-2028'!CA9 -> 0 | M121: 0
B122: Initial Net Funding Required | C122: =C116-C120-C121 -> 0 | D122: =D116-D120-D121 -> 0 | E122: 0 | F122: 0 | G122: 0 | H122: 0 | I122: 0 | J122: 0 | K122: 0 | L122: 0 | M122: 0
B123: Licensee Compulsory Contribution | C123: ='2027-2028'!Z9 -> 0 | D123: ='2027-2028'!AA9 -> 0 | E123: ='2027-2028'!AB9 -> 0 | F123: ='2027-2028'!AC9 -> 0 | G123: ='2027-2028'!AD9 -> 0 | H123: ='2027-2028'!AE9 -> 0 | I123: ='2027-2028'!AF9 -> 0 | J123: ='2027-2028'!AG9 -> 0 | K123: ='2027-2028'!AH9 -> 0 | L123: ='2027-2028'!AI9 -> 0 | M123: 0
B124: Outstanding Funding Required | C124: ='2027-2028'!CC9 -> 0 | D124: ='2027-2028'!CD9 -> 0 | E124: ='2027-2028'!CE9 -> 0 | F124: ='2027-2028'!CF9 -> 0 | G124: ='2027-2028'!CG9 -> 0 | H124: ='2027-2028'!CH9 -> 0 | I124: ='2027-2028'!CI9 -> 0 | J124: ='2027-2028'!CJ9 -> 0 | K124: ='2027-2028'!CK9 -> 0 | L124: ='2027-2028'!CL9 -> 0 | M124: 0
C126: 2028/2029
C127: Cost type
C128: Labour | D128: Equipment | E128: Contractors | F128: IT | G128: IPR Costs | H128: Travel & Expenses | I128: Payments to users | J128: Contingency | K128: Decommissioning | L128: Other | M128: Total
B129: Total Project Cost | C129: ='2028-2029'!G9 -> 0 | D129: ='2028-2029'!H9 -> 0 | E129: ='2028-2029'!I9 -> 0 | F129: ='2028-2029'!J9 -> 0 | G129: ='2028-2029'!K9 -> 0 | H129: ='2028-2029'!L9 -> 0 | I129: ='2028-2029'!M9 -> 0 | J129: ='2028-2029'!N9 -> 0 | K129: ='2028-2029'!O9 -> 0 | L129: ='2028-2029'!P9 -> 0 | M129: =SUM(C129:L129) -> 0
B130: Project Partner 1 | C130: ='2028-2029'!AK9 -> 0 | D130: ='2028-2029'!AL9 -> 0 | E130: ='2028-2029'!AM9 -> 0 | F130: ='2028-2029'!AN9 -> 0 | G130: ='2028-2029'!AO9 -> 0 | H130: ='2028-2029'!AP9 -> 0 | I130: ='2028-2029'!AQ9 -> 0 | J130: ='2028-2029'!AR9 -> 0 | K130: ='2028-2029'!AS9 -> 0 | L130: ='2028-2029'!AT9 -> 0 | M130: 0
B131: Project Partner 2 | C131: ='2028-2029'!AV9 -> 0 | D131: ='2028-2029'!AW9 -> 0 | E131: ='2028-2029'!AX9 -> 0 | F131: ='2028-2029'!AY9 -> 0 | G131: ='2028-2029'!AZ9 -> 0 | H131: ='2028-2029'!BA9 -> 0 | I131: ='2028-2029'!BB9 -> 0 | J131: ='2028-2029'!BC9 -> 0 | K131: ='2028-2029'!BD9 -> 0 | L131: ='2028-2029'!BE9 -> 0 | M131: 0
B132: Project Partner 3 | C132: ='2028-2029'!BG9 -> 0 | D132: ='2028-2029'!BH9 -> 0 | E132: ='2028-2029'!BI9 -> 0 | F132: ='2028-2029'!BJ9 -> 0 | G132: ='2028-2029'!BK9 -> 0 | H132: ='2028-2029'!BL9 -> 0 | I132: ='2028-2029'!BM9 -> 0 | J132: ='2028-2029'!BN9 -> 0 | K132: ='2028-2029'!BO9 -> 0 | L132: ='2028-2029'!BP9 -> 0 | M132: 0
B133: External Funding | C133: =SUM(C130:C132) -> 0 | D133: 0 | E133: 0 | F133: 0 | G133: 0 | H133: 0 | I133: 0 | J133: 0 | K133: 0 | L133: =SUM(L130:L132) -> 0 | M133: 0
B134: Licensee extra contribution | C134: ='2028-2029'!BR9 -> 0 | D134: ='2028-2029'!BS9 -> 0 | E134: ='2028-2029'!BT9 -> 0 | F134: ='2028-2029'!BU9 -> 0 | G134: ='2028-2029'!BV9 -> 0 | H134: ='2028-2029'!BW9 -> 0 | I134: ='2028-2029'!BX9 -> 0 | J134: ='2028-2029'!BY9 -> 0 | K134: ='2028-2029'!BZ9 -> 0 | L134: ='2028-2029'!CA9 -> 0 | M134: 0
B135: Initial Net Funding Required | C135: =C129-C133-C134 -> 0 | D135: =D129-D133-D134 -> 0 | E135: 0 | F135: 0 | G135: 0 | H135: 0 | I135: 0 | J135: 0 | K135: 0 | L135: 0 | M135: 0
B136: Licensee Compulsory Contribution | C136: ='2028-2029'!Z9 -> 0 | D136: ='2028-2029'!AA9 -> 0 | E136: ='2028-2029'!AB9 -> 0 | F136: ='2028-2029'!AC9 -> 0 | G136: ='2028-2029'!AD9 -> 0 | H136: ='2028-2029'!AE9 -> 0 | I136: ='2028-2029'!AF9 -> 0 | J136: ='2028-2029'!AG9 -> 0 | K136: ='2028-2029'!AH9 -> 0 | L136: ='2028-2029'!AI9 -> 0 | M136: 0
B137: Outstanding Funding Required | C137: ='2028-2029'!CC9 -> 0 | D137: ='2028-2029'!CD9 -> 0 | E137: ='2028-2029'!CE9 -> 0 | F137: ='2028-2029'!CF9 -> 0 | G137: ='2028-2029'!CG9 -> 0 | H137: ='2028-2029'!CH9 -> 0 | I137: ='2028-2029'!CI9 -> 0 | J137: ='2028-2029'!CJ9 -> 0 | K137: ='2028-2029'!CK9 -> 0 | L137: ='2028-2029'!CL9 -> 0 | M137: 0

Sheet Direct Benefits
A1: Direct Benefits
A3: Direct Benefit: Any benefits of the Project accruing to the Licensee during the Project Implementation, comprising any expenditure included within the Network Lincesee Business plan for RIIO-T1 or ED1 that will be saved as a result of undertaking the project
B7: Description of Direct Benefit
C8: 2021/22 | D8: 2022/23 | E8: 2023/24 | F8: 2024/25 | G8: 2025/26 | H8: 2026/27 | I8: 2027/28 | J8: Total
J9: =SUM(C9:I9) -> 0
J10: =SUM(C10:I10) -> 0
B11: Total Direct Benefits | C11: =SUM(C9:C10) -> 0 | D11: 0 | E11: 0 | F11: 0 | G11: 0 | H11: 0 | I11: 0 | J11: 0
B14: n.b. These are Direct Benefits associated with the Project itself, not the wider deployment of the Solution and therefore should not extend beyond the Project period.

Sheet 2021-2022
B1: Project Costs in 2021-2022
G4: Total Cost £K | R4: Funding source % | Z4: Licensee Compulsory Contribution/Direct Benefits | AK4: Project Partner 1 | AV4: Project Partner 2 | BG4: Project Partner 3 | BR4: Licensee Extra Contribution | CC4: Outstanding Funding Required
G5: Labour | H5: Equipment | I5: Contractors | J5: IT | K5: IPR Costs | L5: Travel & Expenses | M5: Payments to users | N5: Contingency | O5: Decommissioning | P5: Other | R5: Licensee Compulsory Contribution /Direct Benefits | S5: Project Partner 1 | T5: Project Partner 2 | U5: Project Partner 3 | V5: Licensee Extra Contribution | W5: Oustanding Funding Required | X5: Total | Z5: Labour | AA5: Equipment | AB5: Contractors | AC5: IT | AD5: IPR Costs | AE5: Travel & Expenses | AF5: Payments to users | AG5: Contingency | AH5: Decommissioning | AI5: Other | AK5: Labour | AL5: Equipment | AM5: Contractors | AN5: IT | AO5: IPR Costs | AP5: Travel & Expenses | AQ5: Payments to users | AR5: Contingency | AS5: Decommissioning | AT5: Other | AV5: Labour | AW5: Equipment | AX5: Contractors | AY5: IT | AZ5: IPR Costs | BA5: Travel & Expenses | BB5: Payments to users | BC5: Contingency | BD5: Decommissioning | BE5: Other | BG5: Labour | BH5: Equipment | BI5: Contractors | BJ5: IT | BK5: IPR Costs | BL5: Travel & Expenses | BM5: Payments to users | BN5: Contingency | BO5: Decommissioning | BP5: Other | BR5: Labour | BS5: Equipment | BT5: Contractors | BU5: IT | BV5: IPR Costs | BW5: Travel & Expenses | BX5: Payments to users | BY5: Contingency | BZ5: Decommissioning | CA5: Other | CC5: Labour | CD5: Equipment | CE5: Contractors | CF5: IT | CG5: IPR Costs | CH5: Travel & Expenses | CI5: Payments to users | CJ5: Contingency | CK5: Decommissioning | CL5: Other
B6: Description | C6: Task | D6: Project Workstream
A7: Example | B7: Stage 1 - Agreement from customers to proceed | C7: Complete spreadsheet | D7: Workstream 1 | X7: =SUM(R7:W7) -> 0 | Z7: =$R7*G7 -> 0 | AA7: =$R7*H7 -> 0 | AB7: 0 | AC7: 0 | AD7: 0 | AE7: 0 | AF7: 0 | AG7: 0 | AH7: 0 | AI7: 0 | AK7: =$S7*G7 -> 0 | AL7: =$S7*H7 -> 0 | AM7: 0 | AN7: 0 | AO7: 0 | AP7: 0 | AQ7: 0 | AR7: 0 | AS7: 0 | AT7: 0 | AV7: =$T7*G7 -> 0 | AW7: =$T7*H7 -> 0 | AX7: 0 | AY7: 0 | AZ7: 0 | BA7: 0 | BB7: 0 | BC7: 0 | BD7: 0 | BE7: 0 | BG7: =$U7*G7 -> 0 | BH7: =$U7*H7 -> 0 | BI7: 0 | BJ7: 0 | BK7: 0 | BL7: 0 | BM7: 0 | BN7: 0 | BO7: 0 | BP7: 0 | BR7: =$V7*G7 -> 0 | BS7: =$V7*H7 -> 0 | BT7: 0 | BU7: 0 | BV7: 0 | BW7: 0 | BX7: 0 | BY7: 0 | BZ7: 0 | CA7: 0 | CC7: =$W7*G7 -> 0 | CD7: =$W7*H7 -> 0 | CE7: 0 | CF7: 0 | CG7: 0 | CH7: 0 | CI7: 0 | CJ7: 0 | CK7: 0 | CL7: 0
Q8: Total Cost | X8: =SUM(R8:W8) -> 0 | Z8: =$R8*G8 -> 0 | AA8: 0 | AB8: 0 | AC8: 0 | AD8: 0 | AE8: 0 | AF8: 0 | AG8: 0 | AH8: 0 | AI8: 0 | AK8: =$S8*G8 -> 0 | AL8: 0 | AM8: 0 | AN8: 0 | AO8: 0 | AP8: 0 | AQ8: 0 | AR8: 0 | AS8: 0 | AT8: 0 | AV8: =$T8*G8 -> 0 | AW8: 0 | AX8: 0 | AY8: 0 | AZ8: 0 | BA8: 0 | BB8: 0 | BC8: 0 | BD8: 0 | BE8: 0 | BG8: =$U8*G8 -> 0 | BH8: 0 | BI8: 0 | BJ8: 0 | BK8: 0 | BL8: 0 | BM8: 0 | BN8: 0 | BO8: 0 | BP8: 0 | BR8: =$V8*G8 -> 0 | BS8: 0 | BT8: 0 | BU8: 0 | BV8: 0 | BW8: 0 | BX8: 0 | BY8: 0 | BZ8: 0 | CA8: 0 | CC8: =$W8*G8 -> 0 | CD8: 0 | CE8: 0 | CF8: 0 | CG8: 0 | CH8: 0 | CI8: 0 | CJ8: 0 | CK8: 0 | CL8: 0
B9: Total | G9: =SUM(G7:G8) -> 0 | H9: =SUM(H7:H8) -> 0 | I9: 0 | J9: 0 | K9: 0 | L9: 0 | M9: 0 | N9: 0 | O9: 0 | P9: 0 | Q9: =SUM(G9:P9) -> 0 | Z9: =SUM(Z7:Z8) -> 0 | AA9: =SUM(AA7:AA8) -> 0 | AB9: 0 | AC9: 0 | AD9: 0 | AE9: 0 | AF9: 0 | AG9: 0 | AH9: 0 | AI9: 0 | AK9: =SUM(AK7:AK8) -> 0 | AL9: =SUM(AL7:AL8) -> 0 | AM9: 0 | AN9: 0 | AO9: 0 | AP9: 0 | AQ9: 0 | AR9: 0 | AS9: 0 | AT9: 0 | AV9: =SUM(AV7:AV8) -> 0 | AW9: =SUM(AW7:AW8) -> 0 | AX9: 0 | AY9: 0 | AZ9: 0 | BA9: 0 | BB9: 0 | BC9: 0 | BD9: 0 | BE9: 0 | BG9: =SUM(BG7:BG8) -> 0 | BH9: =SUM(BH7:BH8) -> 0 | BI9: 0 | BJ9: 0 | BK9: 0 | BL9: 0 | BM9: 0 | BN9: 0 | BO9: 0 | BP9: 0 | BR9: =SUM(BR7:BR8) -> 0 | BS9: =SUM(BS7:BS8) -> 0 | BT9: 0 | BU9: 0 | BV9: 0 | BW9: 0 | BX9: 0 | BY9: 0 | BZ9: 0 | CA9: 0 | CC9: =SUM(CC7:CC8) -> 0 | CD9: =SUM(CD7:CD8) -> 0 | CE9: 0 | CF9: 0 | CG9: 0 | CH9: 0 | CI9: 0 | CJ9: 0 | CK9: 0 | CL9: 0
D255: Totals

Sheet 2022-2023
B1: Project Costs in 2022-2023
G4: Total Cost £K | R4: Funding source % | AD4: Licensee Compulsory Contribution/Direct Benefits | AO4: Guidehouse | AZ4: Octopus Energy | BK4: Passiv | BV4: SERO | CG4: SP Energy Networks | CR4: Welsh Government | DC4: West Midlands Combined Authority | DN4: Licensee Extra Contribution | DY4: Outstanding Funding Required
G5: Labour | H5: Equipment | I5: Contractors | J5: IT | K5: IPR Costs | L5: Travel & Expenses | M5: Payments to users | N5: Contingency | O5: Decommissioning | P5: Other | R5: Licensee Compulsory Contribution /Direct Benefits | S5: Guidehouse | T5: Octopus Energy | U5: Passiv Systems | V5: SERO | W5: SP Energy Networks | X5: Welsh Government | Y5: West Midlands Combined Authority# | Z5: Licensee Extra Contribution | AA5: Oustanding Funding Required | AB5: Total | AD5: Labour | AE5: Equipment | AF5: Contractors | AG5: IT | AH5: IPR Costs | AI5: Travel & Expenses | AJ5: Payments to users | AK5: Contingency | AL5: Decommissioning | AM5: Other | AO5: Labour | AP5: Equipment | AQ5: Contractors | AR5: IT | AS5: IPR Costs | AT5: Travel & Expenses | AU5: Payments to users | AV5: Contingency | AW5: Decommissioning | AX5: Other | AZ5: Labour | BA5: Equipment | BB5: Contractors | BC5: IT | BD5: IPR Costs | BE5: Travel & Expenses | BF5: Payments to users | BG5: Contingency | BH5: Decommissioning | BI5: Other | BK5: Labour | BL5: Equipment | BM5: Contractors | BN5: IT | BO5: IPR Costs | BP5: Travel & Expenses | BQ5: Payments to users | BR5: Contingency | BS5: Decommissioning | BT5: Other | BV5: Labour | BW5: Equipment | BX5: Contractors | BY5: IT | BZ5: IPR Costs | CA5: Travel & Expenses | CB5: Payments to users | CC5: Contingency | CD5: Decommissioning | CE5: Other | CG5: Labour | CH5: Equipment | CI5: Contractors | CJ5: IT | CK5: IPR Costs | CL5: Travel & Expenses | CM5: Payments to users | CN5: Contingency | CO5: Decommissioning | CP5: Other | CR5: Labour | CS5: Equipment | CT5: Contractors | CU5: IT | CV5: IPR Costs | CW5: Travel & Expenses | CX5: Payments to users | CY5: Contingency | CZ5: Decommissioning | DA5: Other | DC5: Labour | DD5: Equipment | DE5: Contractors | DF5: IT | DG5: IPR Costs | DH5: Travel & Expenses | DI5: Payments to users | DJ5: Contingency | DK5: Decommissioning | DL5: Other | DN5: Labour | DO5: Equipment | DP5: Contractors | DQ5: IT | DR5: IPR Costs | DS5: Travel & Expenses | DT5: Payments to users | DU5: Contingency | DV5: Decommissioning | DW5: Other | DY5: Labour | DZ5: Equipment | EA5: Contractors | EB5: IT | EC5: IPR Costs | ED5: Travel & Expenses | EE5: Payments to users | EF5: Contingency | EG5: Decommissioning | EH5: Other
B6: Description | C6: Task | D6: Project Workstream
B7: Commercial Arrangements | C7: Design M1 & M2 | D7: Workstream 1 | G7: 80.78 | H7: 0 | I7: 0 | J7: 0 | K7: 0 | L7: 0 | M7: 0 | N7: 14 | O7: 0 | P7: 0 | R7: 0.1953864362 | T7: 0.05225084579 | V7: 0.0394033297 | W7: 0.0201480124 | AA7: 0.6928113759 | AB7: =SUM(R7:AA7) -> 1 | AD7: =$R7*G7 -> 15.78331632 | AE7: =$R7*H7 -> 0 | AF7: 0 | AG7: 0 | AH7: 0 | AI7: 0 | AJ7: 0 | AK7: 2.735410107 | AL7: 0 | AM7: 0 | AO7: =$S7*G7 -> 0 | AP7: =$S7*H7 -> 0 | AQ7: =$S7*I7 -> 0 | AR7: =$S7*J7 -> 0 | AS7: =$S7*K7 -> 0 | AT7: =$S7*L7 -> 0 | AU7: =$S7*M7 -> 0 | AV7: =$S7*N7 -> 0 | AW7: =$S7*O7 -> 0 | AX7: =$S7*P7 -> 0 | AZ7: =$T7*G7 -> 4.220823323 | BA7: 0 | BB7: 0 | BC7: 0 | BD7: 0 | BE7: 0 | BF7: 0 | BG7: 0.7315118411 | BH7: 0 | BI7: 0 | BK7: =$U7*G7 -> 0 | BL7: 0 | BM7: 0 | BN7: 0 | BO7: 0 | BP7: 0 | BQ7: 0 | BR7: 0 | BS7: 0 | BT7: 0 | BV7: =$V7*G7 -> 3.183000974 | BW7: =$V7*H7 -> 0 | BX7: 0 | BY7: 0 | BZ7: 0 | CA7: 0 | CB7: 0 | CC7: 0.5516466159 | CD7: 0 | CE7: 0 | CG7: =$W7*G7 -> 1.627556442 | CH7: =$W7*H7 -> 0 | CI7: 0 | CJ7: 0 | CK7: 0 | CL7: 0 | CM7: 0 | CN7: 0.2820721736 | CO7: 0 | CP7: 0 | CR7: =$X7*G7 -> 0 | CS7: =$X7*H7 -> 0 | CT7: 0 | CU7: 0 | CV7: 0 | CW7: 0 | CX7: 0 | CY7: 0 | CZ7: 0 | DA7: 0 | DC7: =$Y7*G7 -> 0 | DD7: =$Y7*H7 -> 0 | DE7: 0 | DF7: 0 | DG7: 0 | DH7: 0 | DI7: 0 | DJ7: 0 | DK7: 0 | DL7: 0 | DN7: =$Z7*G7 -> 0 | DO7: 0 | DP7: 0 | DQ7: 0 | DR7: 0 | DS7: 0 | DT7: 0 | DU7: 0 | DV7: 0 | DW7: 0 | DY7: =$AA7*G7 -> 55.96530294 | DZ7: 0 | EA7: 0 | EB7: 0 | EC7: 0 | ED7: 0 | EE7: 0 | EF7: 9.699359263 | EG7: 0 | EH7: 0
B8: Commercial Arrangements | C8: Refine M1 & M2 & Design M3 | D8: Workstream 1 | G8: 149.18 | H8: 0 | I8: 0 | J8: 0 | K8: 0 | L8: 0 | M8: 0 | N8: 0 | O8: 0 | P8: 0 | R8: 0.1953864362 | S8: 0.32421382 | T8: 0.05225084579 | V8: 0.0394033297 | AA8: 0.3887455683 | AB8: =SUM(R8:AA8) -> 1 | AD8: =$R8*G8 -> 29.14774855 | AE8: 0 | AF8: 0 | AG8: 0 | AH8: 0 | AI8: 0 | AJ8: 0 | AK8: 0 | AL8: 0 | AM8: 0 | AO8: 48.36621766 | AP8: 0 | AQ8: 0 | AR8: 0 | AS8: 0 | AT8: 0 | AU8: 0 | AV8: 0 | AW8: 0 | AX8: 0 | AZ8: =$T8*G8 -> 7.794781176 | BA8: =$T8*H8 -> 0 | BB8: =$T8*I8 -> 0 | BC8: =$T8*J8 -> 0 | BD8: =$T8*K8 -> 0 | BE8: =$T8*L8 -> 0 | BF8: =$T8*M8 -> 0 | BG8: =$T8*N8 -> 0 | BH8: =$T8*O8 -> 0 | BI8: =$T8*P8 -> 0 | BK8: =$U8*G8 -> 0 | BL8: =$U8*H8 -> 0 | BM8: =$U8*I8 -> 0 | BN8: =$U8*J8 -> 0 | BO8: =$U8*K8 -> 0 | BP8: =$U8*L8 -> 0 | BQ8: =$U8*M8 -> 0 | BR8: =$U8*N8 -> 0 | BS8: =$U8*O8 -> 0 | BT8: =$U8*P8 -> 0 | BV8: =$V8*G8 -> 5.878188725 | BW8: 0 | BX8: 0 | BY8: 0 | BZ8: 0 | CA8: 0 | CB8: 0 | CC8: 0 | CD8: 0 | CE8: 0 | CG8: =$W8*G8 -> 0 | CH8: 0 | CI8: 0 | CJ8: 0 | CK8: 0 | CL8: 0 | CM8: 0 | CN8: 0 | CO8: 0 | CP8: 0 | CR8: =$X8*G8 -> 0 | CS8: 0 | CT8: 0 | CU8: 0 | CV8: 0 | CW8: 0 | CX8: 0 | CY8: 0 | CZ8: 0 | DA8: 0 | DC8: =$Y8*G8 -> 0 | DD8: 0 | DE8: 0 | DF8: 0 | DG8: 0 | DH8: 0 | DI8: 0 | DJ8: 0 | DK8: 0 | DL8: 0 | DN8: =$Z8*G8 -> 0 | DO8: =$Z8*H8 -> 0 | DP8: =$Z8*I8 -> 0 | DQ8: =$Z8*J8 -> 0 | DR8: =$Z8*K8 -> 0 | DS8: =$Z8*L8 -> 0 | DT8: =$Z8*M8 -> 0 | DU8: =$Z8*N8 -> 0 | DV8: =$Z8*O8 -> 0 | DW8: =$Z8*P8 -> 0 | DY8: =$AA8*G8 -> 57.99306388 | DZ8: =$AA8*H8 -> 0 | EA8: =$AA8*I8 -> 0 | EB8: =$AA8*J8 -> 0 | EC8: =$AA8*K8 -> 0 | ED8: =$AA8*L8 -> 0 | EE8: =$AA8*M8 -> 0 | EF8: =$AA8*N8 -> 0 | EG8: =$AA8*O8 -> 0 | EH8: =$AA8*P8 -> 0
B9: Commercial Arrangements | C9: Refine M1 & M2 & refine M3 | D9: Workstream 1 | G9: 96.53 | H9: 0 | I9: 0 | J9: 0 | K9: 0 | L9: 0 | M9: 0 | N9: 0 | O9: 0 | P9: 0 | R9: 0.1953864362 | V9: 0.0394033297 | AA9: 0.7652102341 | AB9: 1 | AD9: 18.86065269 | AE9: 0 | AF9: 0 | AG9: 0 | AH9: 0 | AI9: 0 | AJ9: 0 | AK9: 0 | AL9: 0 | AM9: 0 | AO9: 0 | AP9: 0 | AQ9: 0 | AR9: 0 | AS9: 0 | AT9: 0 | AU9: 0 | AV9: 0 | AW9: 0 | AX9: 0 | AZ9: 0 | BA9: 0 | BB9: 0 | BC9: 0 | BD9: 0 | BE9: 0 | BF9: 0 | BG9: 0 | BH9: 0 | BI9: 0 | BK9: 0 | BL9: 0 | BM9: 0 | BN9: 0 | BO9: 0 | BP9: 0 | BQ9: 0 | BR9: 0 | BS9: 0 | BT9: 0 | BV9: 3.803603416 | BW9: 0 | BX9: 0 | BY9: 0 | BZ9: 0 | CA9: 0 | CB9: 0 | CC9: 0 | CD9: 0 | CE9: 0 | CG9: 0 | CH9: 0 | CI9: 0 | CJ9: 0 | CK9: 0 | CL9: 0 | CM9: 0 | CN9: 0 | CO9: 0 | CP9: 0 | CR9: 0 | CS9: 0 | CT9: 0 | CU9: 0 | CV9: 0 | CW9: 0 | CX9: 0 | CY9: 0 | CZ9: 0 | DA9: 0 | DC9: 0 | DD9: 0 | DE9: 0 | DF9: 0 | DG9: 0 | DH9: 0 | DI9: 0 | DJ9: 0 | DK9: 0 | DL9: 0 | DN9: 0 | DO9: 0 | DP9: 0 | DQ9: 0 | DR9: 0 | DS9: 0 | DT9: 0 | DU9: 0 | DV9: 0 | DW9: 0 | DY9: 73.8657439 | DZ9: 0 | EA9: 0 | EB9: 0 | EC9: 0 | ED9: 0 | EE9: 0 | EF9: 0 | EG9: 0 | EH9: 0
B10: Integration and automation | C10: Overall integration planning | D10: Workstream 2 | G10: 250.88 | H10: 0 | I10: 0 | J10: 0 | K10: 0 | L10: 0 | M10: 0 | N10: 50 | O10: 0 | P10: 0 | R10: 0.1953864362 | T10: 0.05225084579 | U10: 0.02046068744 | V10: 0.0394033297 | AA10: 0.6924987009 | AB10: 1 | AD10: 49.01854911 | AE10: 0 | AF10: 0 | AG10: 0 | AH10: 0 | AI10: 0 | AJ10: 0 | AK10: 9.76932181 | AL10: 0 | AM10: 0 | AO10: 0 | AP10: 0 | AQ10: 0 | AR10: 0 | AS10: 0 | AT10: 0 | AU10: 0 | AV10: 0 | AW10: 0 | AX10: 0 | AZ10: 13.10869219 | BA10: 0 | BB10: 0 | BC10: 0 | BD10: 0 | BE10: 0 | BF10: 0 | BG10: 2.61254229 | BH10: 0 | BI10: 0 | BK10: 5.133177264 | BL10: 0 | BM10: 0 | BN10: 0 | BO10: 0 | BP10: 0 | BQ10: 0 | BR10: 1.023034372 | BS10: 0 | BT10: 0 | BV10: 9.885507356 | BW10: 0 | BX10: 0 | BY10: 0 | BZ10: 0 | CA10: 0 | CB10: 0 | CC10: 1.970166485 | CD10: 0 | CE10: 0 | CG10: 0 | CH10: 0 | CI10: 0 | CJ10: 0 | CK10: 0 | CL10: 0 | CM10: 0 | CN10: 0 | CO10: 0 | CP10: 0 | CR10: 0 | CS10: 0 | CT10: 0 | CU10: 0 | CV10: 0 | CW10: 0 | CX10: 0 | CY10: 0 | CZ10: 0 | DA10: 0 | DC10: 0 | DD10: 0 | DE10: 0 | DF10: 0 | DG10: 0 | DH10: 0 | DI10: 0 | DJ10: 0 | DK10: 0 | DL10: 0 | DN10: 0 | DO10: 0 | DP10: 0 | DQ10: 0 | DR10: 0 | DS10: 0 | DT10: 0 | DU10: 0 | DV10: 0 | DW10: 0 | DY10: 173.7340741 | DZ10: 0 | EA10: 0 | EB10: 0 | EC10: 0 | ED10: 0 | EE10: 0 | EF10: 34.62493504 | EG10: 0 | EH10: 0
B11: Integration and automation | C11: Integration delivery and testing | D11: Workstream 2 | G11: 418.05 | H11: 0 | I11: 0 | J11: 250 | K11: 0 | L11: 0 | M11: 0 | N11: 460.73 | O11: 0 | P11: 0 | R11: 0.1953864362 | T11: 0.05225084579 | U11: 0.02046068744 | V11: 0.0394033297 | AA11: 0.6924987009 | AB11: 1 | AD11: 81.68129965 | AE11: 0 | AF11: 0 | AG11: 48.84660905 | AH11: 0 | AI11: 0 | AJ11: 0 | AK11: 90.02039275 | AL11: 0 | AM11: 0 | AO11: 0 | AP11: 0 | AQ11: 0 | AR11: 0 | AS11: 0 | AT11: 0 | AU11: 0 | AV11: 0 | AW11: 0 | AX11: 0 | AZ11: 21.84346608 | BA11: 0 | BB11: 0 | BC11: 13.06271145 | BD11: 0 | BE11: 0 | BF11: 0 | BG11: 24.07353218 | BH11: 0 | BI11: 0 | BK11: 8.553590383 | BL11: 0 | BM11: 0 | BN11: 5.115171859 | BO11: 0 | BP11: 0 | BQ11: 0 | BR11: 9.426852523 | BS11: 0 | BT11: 0 | BV11: 16.47256198 | BW11: 0 | BX11: 0 | BY11: 9.850832426 | BZ11: 0 | CA11: 0 | CB11: 0 | CC11: 18.15429609 | CD11: 0 | CE11: 0 | CG11: 0 | CH11: 0 | CI11: 0 | CJ11: 0 | CK11: 0 | CL11: 0 | CM11: 0 | CN11: 0 | CO11: 0 | CP11: 0 | CR11: 0 | CS11: 0 | CT11: 0 | CU11: 0 | CV11: 0 | CW11: 0 | CX11: 0 | CY11: 0 | CZ11: 0 | DA11: 0 | DC11: 0 | DD11: 0 | DE11: 0 | DF11: 0 | DG11: 0 | DH11: 0 | DI11: 0 | DJ11: 0 | DK11: 0 | DL11: 0 | DN11: 0 | DO11: 0 | DP11: 0 | DQ11: 0 | DR11: 0 | DS11: 0 | DT11: 0 | DU11: 0 | DV11: 0 | DW11: 0 | DY11: 289.4990819 | DZ11: 0 | EA11: 0 | EB11: 173.1246752 | EC11: 0 | ED11: 0 | EE11: 0 | EF11: 319.0549264 | EG11: 0 | EH11: 0
B12: Customer Engagement and Experience | C12: Engagement design | D12: WorkStream 3 | G12: 32.53 | H12: 0 | I12: 0 | J12: 0 | K12: 0 | L12: 0 | M12: 0 | N12: 0 | O12: 0 | P12: 0 | R12: 0.1953864362 | T12: 0.05225084579 | V12: 0.0394033297 | AA12: 0.7129593883 | AB12: 1 | AD12: 6.35592077 | AE12: 0 | AF12: 0 | AG12: 0 | AH12: 0 | AI12: 0 | AJ12: 0 | AK12: 0 | AL12: 0 | AM12: 0 | AO12: 0 | AP12: 0 | AQ12: 0 | AR12: 0 | AS12: 0 | AT12: 0 | AU12: 0 | AV12: 0 | AW12: 0 | AX12: 0 | AZ12: 1.699720014 | BA12: 0 | BB12: 0 | BC12: 0 | BD12: 0 | BE12: 0 | BF12: 0 | BG12: 0 | BH12: 0 | BI12: 0 | BK12: 0 | BL12: 0 | BM12: 0 | BN12: 0 | BO12: 0 | BP12: 0 | BQ12: 0 | BR12: 0 | BS12: 0 | BT12: 0 | BV12: 1.281790315 | BW12: 0 | BX12: 0 | BY12: 0 | BZ12: 0 | CA12: 0 | CB12: 0 | CC12: 0 | CD12: 0 | CE12: 0 | CG12: 0 | CH12: 0 | CI12: 0 | CJ12: 0 | CK12: 0 | CL12: 0 | CM12: 0 | CN12: 0 | CO12: 0 | CP12: 0 | CR12: 0 | CS12: 0 | CT12: 0 | CU12: 0 | CV12: 0 | CW12: 0 | CX12: 0 | CY12: 0 | CZ12: 0 | DA12: 0 | DC12: 0 | DD12: 0 | DE12: 0 | DF12: 0 | DG12: 0 | DH12: 0 | DI12: 0 | DJ12: 0 | DK12: 0 | DL12: 0 | DN12: 0 | DO12: 0 | DP12: 0 | DQ12: 0 | DR12: 0 | DS12: 0 | DT12: 0 | DU12: 0 | DV12: 0 | DW12: 0 | DY12: 23.1925689 | DZ12: 0 | EA12: 0 | EB12: 0 | EC12: 0 | ED12: 0 | EE12: 0 | EF12: 0 | EG12: 0 | EH12: 0
B13: Customer Engagement and Experience | C13: Engagement materials | D13: WorkStream 3 | G13: 23.15 | H13: 0 | I13: 0 | J13: 0 | K13: 0 | L13: 0 | M13: 0 | N13: 0 | O13: 0 | P13: 30 | R13: 0.1953864362 | S13: 0.32421382 | V13: 0.0394033297 | AA13: 0.4409964141 | AB13: 1 | AD13: 4.523195998 | AE13: 0 | AF13: 0 | AG13: 0 | AH13: 0 | AI13: 0 | AJ13: 0 | AK13: 0 | AL13: 0 | AM13: 5.861593086 | AO13: 7.505549932 | AP13: 0 | AQ13: 0 | AR13: 0 | AS13: 0 | AT13: 0 | AU13: 0 | AV13: 0 | AW13: 0 | AX13: 9.726414599 | AZ13: 0 | BA13: 0 | BB13: 0 | BC13: 0 | BD13: 0 | BE13: 0 | BF13: 0 | BG13: 0 | BH13: 0 | BI13: 0 | BK13: 0 | BL13: 0 | BM13: 0 | BN13: 0 | BO13: 0 | BP13: 0 | BQ13: 0 | BR13: 0 | BS13: 0 | BT13: 0 | BV13: 0.9121870827 | BW13: 0 | BX13: 0 | BY13: 0 | BZ13: 0 | CA13: 0 | CB13: 0 | CC13: 0 | CD13: 0 | CE13: 1.182099891 | CG13: 0 | CH13: 0 | CI13: 0 | CJ13: 0 | CK13: 0 | CL13: 0 | CM13: 0 | CN13: 0 | CO13: 0 | CP13: 0 | CR13: 0 | CS13: 0 | CT13: 0 | CU13: 0 | CV13: 0 | CW13: 0 | CX13: 0 | CY13: 0 | CZ13: 0 | DA13: 0 | DC13: 0 | DD13: 0 | DE13: 0 | DF13: 0 | DG13: 0 | DH13: 0 | DI13: 0 | DJ13: 0 | DK13: 0 | DL13: 0 | DN13: 0 | DO13: 0 | DP13: 0 | DQ13: 0 | DR13: 0 | DS13: 0 | DT13: 0 | DU13: 0 | DV13: 0 | DW13: 0 | DY13: 10.20906699 | DZ13: 0 | EA13: 0 | EB13: 0 | EC13: 0 | ED13: 0 | EE13: 0 | EF13: 0 | EG13: 0 | EH13: 13.22989242
B14: Customer Engagement and Experience | C14: Engagement surveys and focus groups | D14: WorkStream 3 | G14: 45 | H14: 0 | I14: 0 | J14: 0 | K14: 0 | L14: 0 | M14: 15 | N14: 0 | O14: 0 | P14: 0 | R14: 0.1953864362 | T14: 0.05225084579 | AA14: 0.752362718 | AB14: 1 | AD14: 8.792389629 | AE14: 0 | AF14: 0 | AG14: 0 | AH14: 0 | AI14: 0 | AJ14: 2.930796543 | AK14: 0 | AL14: 0 | AM14: 0 | AO14: 0 | AP14: 0 | AQ14: 0 | AR14: 0 | AS14: 0 | AT14: 0 | AU14: 0 | AV14: 0 | AW14: 0 | AX14: 0 | AZ14: 2.351288061 | BA14: 0 | BB14: 0 | BC14: 0 | BD14: 0 | BE14: 0 | BF14: 0.7837626869 | BG14: 0 | BH14: 0 | BI14: 0 | BK14: 0 | BL14: 0 | BM14: 0 | BN14: 0 | BO14: 0 | BP14: 0 | BQ14: 0 | BR14: 0 | BS14: 0 | BT14: 0 | BV14: 0 | BW14: 0 | BX14: 0 | BY14: 0 | BZ14: 0 | CA14: 0 | CB14: 0 | CC14: 0 | CD14: 0 | CE14: 0 | CG14: 0 | CH14: 0 | CI14: 0 | CJ14: 0 | CK14: 0 | CL14: 0 | CM14: 0 | CN14: 0 | CO14: 0 | CP14: 0 | CR14: 0 | CS14: 0 | CT14: 0 | CU14: 0 | CV14: 0 | CW14: 0 | CX14: 0 | CY14: 0 | CZ14: 0 | DA14: 0 | DC14: 0 | DD14: 0 | DE14: 0 | DF14: 0 | DG14: 0 | DH14: 0 | DI14: 0 | DJ14: 0 | DK14: 0 | DL14: 0 | DN14: 0 | DO14: 0 | DP14: 0 | DQ14: 0 | DR14: 0 | DS14: 0 | DT14: 0 | DU14: 0 | DV14: 0 | DW14: 0 | DY14: 33.85632231 | DZ14: 0 | EA14: 0 | EB14: 0 | EC14: 0 | ED14: 0 | EE14: 11.28544077 | EF14: 0 | EG14: 0 | EH14: 0
B15: Customer Engagement and Experience | C15: Engagement primary research | D15: WorkStream 3 | G15: 0 | H15: 0 | I15: 50 | J15: 0 | K15: 0 | L15: 0 | M15: 0 | N15: 0 | O15: 0 | P15: 0 | R15: 0.1953864362 | AA15: 0.8046135638 | AB15: 1 | AD15: 0 | AE15: 0 | AF15: 9.76932181 | AG15: 0 | AH15: 0 | AI15: 0 | AJ15: 0 | AK15: 0 | AL15: 0 | AM15: 0 | AO15: 0 | AP15: 0 | AQ15: 0 | AR15: 0 | AS15: 0 | AT15: 0 | AU15: 0 | AV15: 0 | AW15: 0 | AX15: 0 | AZ15: 0 | BA15: 0 | BB15: 0 | BC15: 0 | BD15: 0 | BE15: 0 | BF15: 0 | BG15: 0 | BH15: 0 | BI15: 0 | BK15: 0 | BL15: 0 | BM15: 0 | BN15: 0 | BO15: 0 | BP15: 0 | BQ15: 0 | BR15: 0 | BS15: 0 | BT15: 0 | BV15: 0 | BW15: 0 | BX15: 0 | BY15: 0 | BZ15: 0 | CA15: 0 | CB15: 0 | CC15: 0 | CD15: 0 | CE15: 0 | CG15: 0 | CH15: 0 | CI15: 0 | CJ15: 0 | CK15: 0 | CL15: 0 | CM15: 0 | CN15: 0 | CO15: 0 | CP15: 0 | CR15: 0 | CS15: 0 | CT15: 0 | CU15: 0 | CV15: 0 | CW15: 0 | CX15: 0 | CY15: 0 | CZ15: 0 | DA15: 0 | DC15: 0 | DD15: 0 | DE15: 0 | DF15: 0 | DG15: 0 | DH15: 0 | DI15: 0 | DJ15: 0 | DK15: 0 | DL15: 0 | DN15: 0 | DO15: 0 | DP15: 0 | DQ15: 0 | DR15: 0 | DS15: 0 | DT15: 0 | DU15: 0 | DV15: 0 | DW15: 0 | DY15: 0 | DZ15: 0 | EA15: 40.23067819 | EB15: 0 | EC15: 0 | ED15: 0 | EE15: 0 | EF15: 0 | EG15: 0 | EH15: 0
B16: Trials | C16: Overal Trial Design | D16: Workstream 4 | G16: 75.03 | H16: 0 | I16: 0 | J16: 0 | K16: 0 | L16: 0 | M16: 0 | N16: 0 | O16: 0 | P16: 0 | R16: 0.1953864362 | T16: 0.05225084579 | W16: 0.0201480124 | AA16: 0.7322147056 | AB16: 1 | AD16: 14.65984431 | AE16: 0 | AF16: 0 | AG16: 0 | AH16: 0 | AI16: 0 | AJ16: 0 | AK16: 0 | AL16: 0 | AM16: 0 | AO16: 0 | AP16: 0 | AQ16: 0 | AR16: 0 | AS16: 0 | AT16: 0 | AU16: 0 | AV16: 0 | AW16: 0 | AX16: 0 | AZ16: 3.92038096 | BA16: 0 | BB16: 0 | BC16: 0 | BD16: 0 | BE16: 0 | BF16: 0 | BG16: 0 | BH16: 0 | BI16: 0 | BK16: 0 | BL16: 0 | BM16: 0 | BN16: 0 | BO16: 0 | BP16: 0 | BQ16: 0 | BR16: 0 | BS16: 0 | BT16: 0 | BV16: 0 | BW16: 0 | BX16: 0 | BY16: 0 | BZ16: 0 | CA16: 0 | CB16: 0 | CC16: 0 | CD16: 0 | CE16: 0 | CG16: 1.511705371 | CH16: 0 | CI16: 0 | CJ16: 0 | CK16: 0 | CL16: 0 | CM16: 0 | CN16: 0 | CO16: 0 | CP16: 0 | CR16: 0 | CS16: 0 | CT16: 0 | CU16: 0 | CV16: 0 | CW16: 0 | CX16: 0 | CY16: 0 | CZ16: 0 | DA16: 0 | DC16: 0 | DD16: 0 | DE16: 0 | DF16: 0 | DG16: 0 | DH16: 0 | DI16: 0 | DJ16: 0 | DK16: 0 | DL16: 0 | DN16: 0 | DO16: 0 | DP16: 0 | DQ16: 0 | DR16: 0 | DS16: 0 | DT16: 0 | DU16: 0 | DV16: 0 | DW16: 0 | DY16: 54.93806936 | DZ16: 0 | EA16: 0 | EB16: 0 | EC16: 0 | ED16: 0 | EE16: 0 | EF16: 0 | EG16: 0 | EH16: 0
B17: Trials | C17: Simulation modelling | D17: Workstream 4 | G17: 105.2 | H17: 0 | I17: 50 | J17: 0 | K17: 0 | L17: 0 | M17: 0 | N17: 0 | O17: 0 | P17: 0 | R17: 0.1953864362 | S17: 0.32421382 | U17: 0.02046068744 | AA17: 0.4599390564 | AB17: 1 | AD17: 20.55465309 | AE17: 0 | AF17: 9.76932181 | AG17: 0 | AH17: 0 | AI17: 0 | AJ17: 0 | AK17: 0 | AL17: 0 | AM17: 0 | AO17: 34.10729386 | AP17: 0 | AQ17: 16.210691 | AR17: 0 | AS17: 0 | AT17: 0 | AU17: 0 | AV17: 0 | AW17: 0 | AX17: 0 | AZ17: 0 | BA17: 0 | BB17: 0 | BC17: 0 | BD17: 0 | BE17: 0 | BF17: 0 | BG17: 0 | BH17: 0 | BI17: 0 | BK17: 2.152464318 | BL17: 0 | BM17: 1.023034372 | BN17: 0 | BO17: 0 | BP17: 0 | BQ17: 0 | BR17: 0 | BS17: 0 | BT17: 0 | BV17: 0 | BW17: 0 | BX17: 0 | BY17: 0 | BZ17: 0 | CA17: 0 | CB17: 0 | CC17: 0 | CD17: 0 | CE17: 0 | CG17: 0 | CH17: 0 | CI17: 0 | CJ17: 0 | CK17: 0 | CL17: 0 | CM17: 0 | CN17: 0 | CO17: 0 | CP17: 0 | CR17: 0 | CS17: 0 | CT17: 0 | CU17: 0 | CV17: 0 | CW17: 0 | CX17: 0 | CY17: 0 | CZ17: 0 | DA17: 0 | DC17: 0 | DD17: 0 | DE17: 0 | DF17: 0 | DG17: 0 | DH17: 0 | DI17: 0 | DJ17: 0 | DK17: 0 | DL17: 0 | DN17: 0 | DO17: 0 | DP17: 0 | DQ17: 0 | DR17: 0 | DS17: 0 | DT17: 0 | DU17: 0 | DV17: 0 | DW17: 0 | DY17: 48.38558873 | DZ17: 0 | EA17: 22.99695282 | EB17: 0 | EC17: 0 | ED17: 0 | EE17: 0 | EF17: 0 | EG17: 0 | EH17: 0
B18: Trials | C18: Trial delivery and analysis | D18: Workstream 4 | G18: 318 | H18: 7000 | I18: 0 | J18: 0 | K18: 0 | L18: 0 | M18: 60 | N18: 110 | O18: 0 | P18: 0 | X18: 0.6677350427 | Y18: 0.2670940171 | AA18: 0.06517094017 | AB18: 1 | AD18: 0 | AE18: 0 | AF18: 0 | AG18: 0 | AH18: 0 | AI18: 0 | AJ18: 0 | AK18: 0 | AL18: 0 | AM18: 0 | AO18: 0 | AP18: 0 | AQ18: 0 | AR18: 0 | AS18: 0 | AT18: 0 | AU18: 0 | AV18: 0 | AW18: 0 | AX18: 0 | AZ18: 0 | BA18: 0 | BB18: 0 | BC18: 0 | BD18: 0 | BE18: 0 | BF18: 0 | BG18: 0 | BH18: 0 | BI18: 0 | BK18: 0 | BL18: 0 | BM18: 0 | BN18: 0 | BO18: 0 | BP18: 0 | BQ18: 0 | BR18: 0 | BS18: 0 | BT18: 0 | BV18: 0 | BW18: 0 | BX18: 0 | BY18: 0 | BZ18: 0 | CA18: 0 | CB18: 0 | CC18: 0 | CD18: 0 | CE18: 0 | CG18: 0 | CH18: 0 | CI18: 0 | CJ18: 0 | CK18: 0 | CL18: 0 | CM18: 0 | CN18: 0 | CO18: 0 | CP18: 0 | CR18: 212.3397436 | CS18: 4674.145299 | CT18: 0 | CU18: 0 | CV18: 0 | CW18: 0 | CX18: 40.06410256 | CY18: 73.4508547 | CZ18: 0 | DA18: 0 | DC18: 84.93589744 | DD18: 1869.65812 | DE18: 0 | DF18: 0 | DG18: 0 | DH18: 0 | DI18: 16.02564103 | DJ18: 29.38034188 | DK18: 0 | DL18: 0 | DN18: 0 | DO18: 0 | DP18: 0 | DQ18: 0 | DR18: 0 | DS18: 0 | DT18: 0 | DU18: 0 | DV18: 0 | DW18: 0 | DY18: 20.72435897 | DZ18: 456.1965812 | EA18: 0 | EB18: 0 | EC18: 0 | ED18: 0 | EE18: 3.91025641 | EF18: 7.168803419 | EG18: 0 | EH18: 0
B19: Trials | C19: Business case update and transistion | D19: Workstream 4 | G19: 55.15 | H19: 0 | I19: 0 | J19: 0 | K19: 0 | L19: 0 | M19: 0 | N19: 0 | O19: 0 | P19: 0 | R19: 0.1953864362 | S19: 0.32421382 | W19: 0.0201480124 | AA19: 0.4602517314 | AB19: 1 | AD19: 10.77556196 | AE19: 0 | AF19: 0 | AG19: 0 | AH19: 0 | AI19: 0 | AJ19: 0 | AK19: 0 | AL19: 0 | AM19: 0 | AO19: 17.88039217 | AP19: 0 | AQ19: 0 | AR19: 0 | AS19: 0 | AT19: 0 | AU19: 0 | AV19: 0 | AW19: 0 | AX19: 0 | AZ19: 0 | BA19: 0 | BB19: 0 | BC19: 0 | BD19: 0 | BE19: 0 | BF19: 0 | BG19: 0 | BH19: 0 | BI19: 0 | BK19: 0 | BL19: 0 | BM19: 0 | BN19: 0 | BO19: 0 | BP19: 0 | BQ19: 0 | BR19: 0 | BS19: 0 | BT19: 0 | BV19: 0 | BW19: 0 | BX19: 0 | BY19: 0 | BZ19: 0 | CA19: 0 | CB19: 0 | CC19: 0 | CD19: 0 | CE19: 0 | CG19: 1.111162884 | CH19: 0 | CI19: 0 | CJ19: 0 | CK19: 0 | CL19: 0 | CM19: 0 | CN19: 0 | CO19: 0 | CP19: 0 | CR19: 0 | CS19: 0 | CT19: 0 | CU19: 0 | CV19: 0 | CW19: 0 | CX19: 0 | CY19: 0 | CZ19: 0 | DA19: 0 | DC19: 0 | DD19: 0 | DE19: 0 | DF19: 0 | DG19: 0 | DH19: 0 | DI19: 0 | DJ19: 0 | DK19: 0 | DL19: 0 | DN19: 0 | DO19: 0 | DP19: 0 | DQ19: 0 | DR19: 0 | DS19: 0 | DT19: 0 | DU19: 0 | DV19: 0 | DW19: 0 | DY19: 25.38288299 | DZ19: 0 | EA19: 0 | EB19: 0 | EC19: 0 | ED19: 0 | EE19: 0 | EF19: 0 | EG19: 0 | EH19: 0
B20: PM Management and knowledge dissemination | C20: PM Labour | D20: WorkStream 5 | G20: 271.28 | H20: 0 | I20: 0 | J20: 0 | K20: 0 | L20: 20 | M20: 0 | N20: 0 | O20: 0 | P20: 0 | R20: 0.1953864362 | T20: 0.05225084579 | U20: 0.02046068744 | V20: 0.0394033297 | AA20: 0.6924987009 | AB20: 1 | AD20: 53.00443241 | AE20: 0 | AF20: 0 | AG20: 0 | AH20: 0 | AI20: 3.907728724 | AJ20: 0 | AK20: 0 | AL20: 0 | AM20: 0 | AO20: 0 | AP20: 0 | AQ20: 0 | AR20: 0 | AS20: 0 | AT20: 0 | AU20: 0 | AV20: 0 | AW20: 0 | AX20: 0 | AZ20: 14.17460945 | BA20: 0 | BB20: 0 | BC20: 0 | BD20: 0 | BE20: 1.045016916 | BF20: 0 | BG20: 0 | BH20: 0 | BI20: 0 | BK20: 5.550575288 | BL20: 0 | BM20: 0 | BN20: 0 | BO20: 0 | BP20: 0.4092137487 | BQ20: 0 | BR20: 0 | BS20: 0 | BT20: 0 | BV20: 10.68933528 | BW20: 0 | BX20: 0 | BY20: 0 | BZ20: 0 | CA20: 0.7880665941 | CB20: 0 | CC20: 0 | CD20: 0 | CE20: 0 | CG20: 0 | CH20: 0 | CI20: 0 | CJ20: 0 | CK20: 0 | CL20: 0 | CM20: 0 | CN20: 0 | CO20: 0 | CP20: 0 | CR20: 0 | CS20: 0 | CT20: 0 | CU20: 0 | CV20: 0 | CW20: 0 | CX20: 0 | CY20: 0 | CZ20: 0 | DA20: 0 | DC20: 0 | DD20: 0 | DE20: 0 | DF20: 0 | DG20: 0 | DH20: 0 | DI20: 0 | DJ20: 0 | DK20: 0 | DL20: 0 | DN20: 0 | DO20: 0 | DP20: 0 | DQ20: 0 | DR20: 0 | DS20: 0 | DT20: 0 | DU20: 0 | DV20: 0 | DW20: 0 | DY20: 187.8610476 | DZ20: 0 | EA20: 0 | EB20: 0 | EC20: 0 | ED20: 13.84997402 | EE20: 0 | EF20: 0 | EG20: 0 | EH20: 0
B21: PM Management and knowledge dissemination | C21: Knowledge transfer and dissemination | D21: WorkStream 5 | G21: 105.58 | H21: 0 | I21: 0 | J21: 0 | K21: 0 | L21: 0 | M21: 0 | N21: 0 | O21: 0 | P21: 30 | Q21: Total Cost | R21: 0.1953864362 | S21: 0.32421382 | T21: 0.05225084579 | V21: 0.0394033297 | AA21: 0.3887455683 | AB21: =SUM(R21:AA21) -> 1 | AD21: 20.62889993 | AE21: 0 | AF21: 0 | AG21: 0 | AH21: 0 | AI21: 0 | AJ21: 0 | AK21: 0 | AL21: 0 | AM21: 5.861593086 | AO21: 34.23049511 | AP21: 0 | AQ21: 0 | AR21: 0 | AS21: 0 | AT21: 0 | AU21: 0 | AV21: 0 | AW21: 0 | AX21: 9.726414599 | AZ21: =$T21*G21 -> 5.516644299 | BA21: 0 | BB21: 0 | BC21: 0 | BD21: 0 | BE21: 0 | BF21: 0 | BG21: 0 | BH21: 0 | BI21: 1.567525374 | BK21: =$U21*G21 -> 0 | BL21: 0 | BM21: 0 | BN21: 0 | BO21: 0 | BP21: 0 | BQ21: 0 | BR21: 0 | BS21: 0 | BT21: 0 | BV21: 4.16020355 | BW21: 0 | BX21: 0 | BY21: 0 | BZ21: 0 | CA21: 0 | CB21: 0 | CC21: 0 | CD21: 0 | CE21: 1.182099891 | CG21: 0 | CH21: 0 | CI21: 0 | CJ21: 0 | CK21: 0 | CL21: 0 | CM21: 0 | CN21: 0 | CO21: 0 | CP21: 0 | CR21: 0 | CS21: 0 | CT21: 0 | CU21: 0 | CV21: 0 | CW21: 0 | CX21: 0 | CY21: 0 | CZ21: 0 | DA21: 0 | DC21: 0 | DD21: 0 | DE21: 0 | DF21: 0 | DG21: 0 | DH21: 0 | DI21: 0 | DJ21: 0 | DK21: 0 | DL21: 0 | DN21: =$Z21*G21 -> 0 | DO21: 0 | DP21: 0 | DQ21: 0 | DR21: 0 | DS21: 0 | DT21: 0 | DU21: 0 | DV21: 0 | DW21: 0 | DY21: =$AA21*G21 -> 41.0437571 | DZ21: 0 | EA21: 0 | EB21: 0 | EC21: 0 | ED21: 0 | EE21: 0 | EF21: 0 | EG21: 0 | EH21: 11.66236705
B22: Total | G22: =SUM(G7:G21) -> 2026.34 | H22: =SUM(H7:H21) -> 7000 | I22: 100 | J22: 250 | K22: 0 | L22: 20 | M22: 75 | N22: 634.73 | O22: 0 | P22: 60 | Q22: =SUM(G22:P22) -> 10166.07 | AD22: =SUM(AD7:AD21) -> 333.7864644 | AE22: =SUM(AE7:AE21) -> 0 | AF22: 19.53864362 | AG22: 48.84660905 | AH22: 0 | AI22: 3.907728724 | AJ22: 2.930796543 | AK22: 102.5251247 | AL22: 0 | AM22: 11.72318617 | AO22: =SUM(AO7:AO21) -> 142.0899487 | AP22: =SUM(AP7:AP21) -> 0 | AQ22: 16.210691 | AR22: 0 | AS22: 0 | AT22: 0 | AU22: 0 | AV22: 0 | AW22: 0 | AX22: 19.4528292 | AZ22: =SUM(AZ7:AZ21) -> 74.63040556 | BA22: =SUM(BA7:BA21) -> 0 | BB22: 0 | BC22: 13.06271145 | BD22: 0 | BE22: 1.045016916 | BF22: 0.7837626869 | BG22: 27.41758631 | BH22: 0 | BI22: 1.567525374 | BK22: =SUM(BK7:BK21) -> 21.38980725 | BL22: =SUM(BL7:BL21) -> 0 | BM22: 1.023034372 | BN22: 5.115171859 | BO22: 0 | BP22: 0.4092137487 | BQ22: 0 | BR22: 10.44988689 | BS22: 0 | BT22: 0 | BV22: =SUM(BV7:BV21) -> 56.26637869 | BW22: =SUM(BW7:BW21) -> 0 | BX22: 0 | BY22: 9.850832426 | BZ22: 0 | CA22: 0.7880665941 | CB22: 0 | CC22: 20.6761092 | CD22: 0 | CE22: 2.364199782 | CG22: =SUM(CG7:CG21) -> 4.250424696 | CH22: =SUM(CH7:CH21) -> 0 | CI22: 0 | CJ22: 0 | CK22: 0 | CL22: 0 | CM22: 0 | CN22: 0.2820721736 | CO22: 0 | CP22: 0 | CR22: =SUM(CR7:CR21) -> 212.3397436 | CS22: =SUM(CS7:CS21) -> 4674.145299 | CT22: 0 | CU22: 0 | CV22: 0 | CW22: 0 | CX22: 40.06410256 | CY22: 73.4508547 | CZ22: 0 | DA22: 0 | DC22: =SUM(DC7:DC21) -> 84.93589744 | DD22: =SUM(DD7:DD21) -> 1869.65812 | DE22: 0 | DF22: 0 | DG22: 0 | DH22: 0 | DI22: 16.02564103 | DJ22: 29.38034188 | DK22: 0 | DL22: 0 | DN22: =SUM(DN7:DN21) -> 0 | DO22: =SUM(DO7:DO21) -> 0 | DP22: 0 | DQ22: 0 | DR22: 0 | DS22: 0 | DT22: 0 | DU22: 0 | DV22: 0 | DW22: 0 | DY22: =SUM(DY7:DY21) -> 1096.65093 | DZ22: =SUM(DZ7:DZ21) -> 456.1965812 | EA22: 63.22763101 | EB22: 173.1246752 | EC22: 0 | ED22: 13.84997402 | EE22: 15.19569718 | EF22: 370.5480242 | EG22: 0 | EH22: 24.89225947
D268: Totals

Sheet 2023-2024
B1: Project Costs in 2023-2024
G4: Total Cost £K | R4: Funding source % | AD4: Licensee Compulsory Contribution/Direct Benefits | AO4: Guidehouse | AZ4: Octopus Energy | BK4: Passiv | BV4: SERO | CG4: SP Energy Networks | CR4: Welsh Government | DC4: West Midlands Combined Authority | DN4: Licensee Extra Contribution | DY4: Outstanding Funding Required
G5: Labour | H5: Equipment | I5: Contractors | J5: IT | K5: IPR Costs | L5: Travel & Expenses | M5: Payments to users | N5: Contingency | O5: Decommissioning | P5: Other | R5: Licensee Compulsory Contribution /Direct Benefits | S5: Guidehouse | T5: Octopus Energy | U5: Passiv Systems | V5: SERO | W5: SP Energy Networks | X5: Welsh Government | Y5: West Midlands Combined Authority# | Z5: Licensee Extra Contribution | AA5: Oustanding Funding Required | AB5: Total | AD5: Labour | AE5: Equipment | AF5: Contractors | AG5: IT | AH5: IPR Costs | AI5: Travel & Expenses | AJ5: Payments to users | AK5: Contingency | AL5: Decommissioning | AM5: Other | AO5: Labour | AP5: Equipment | AQ5: Contractors | AR5: IT | AS5: IPR Costs | AT5: Travel & Expenses | AU5: Payments to users | AV5: Contingency | AW5: Decommissioning | AX5: Other | AZ5: Labour | BA5: Equipment | BB5: Contractors | BC5: IT | BD5: IPR Costs | BE5: Travel & Expenses | BF5: Payments to users | BG5: Contingency | BH5: Decommissioning | BI5: Other | BK5: Labour | BL5: Equipment | BM5: Contractors | BN5: IT | BO5: IPR Costs | BP5: Travel & Expenses | BQ5: Payments to users | BR5: Contingency | BS5: Decommissioning | BT5: Other | BV5: Labour | BW5: Equipment | BX5: Contractors | BY5: IT | BZ5: IPR Costs | CA5: Travel & Expenses | CB5: Payments to users | CC5: Contingency | CD5: Decommissioning | CE5: Other | CG5: Labour | CH5: Equipment | CI5: Contractors | CJ5: IT | CK5: IPR Costs | CL5: Travel & Expenses | CM5: Payments to users | CN5: Contingency | CO5: Decommissioning | CP5: Other | CR5: Labour | CS5: Equipment | CT5: Contractors | CU5: IT | CV5: IPR Costs | CW5: Travel & Expenses | CX5: Payments to users | CY5: Contingency | CZ5: Decommissioning | DA5: Other | DC5: Labour | DD5: Equipment | DE5: Contractors | DF5: IT | DG5: IPR Costs | DH5: Travel & Expenses | DI5: Payments to users | DJ5: Contingency | DK5: Decommissioning | DL5: Other | DN5: Labour | DO5: Equipment | DP5: Contractors | DQ5: IT | DR5: IPR Costs | DS5: Travel & Expenses | DT5: Payments to users | DU5: Contingency | DV5: Decommissioning | DW5: Other | DY5: Labour | DZ5: Equipment | EA5: Contractors | EB5: IT | EC5: IPR Costs | ED5: Travel & Expenses | EE5: Payments to users | EF5: Contingency | EG5: Decommissioning | EH5: Other
B6: Description | C6: Task | D6: Project Workstream
B7: Commercial Arrangements | C7: Design M1 & M2 | D7: Workstream 1 | G7: 1.7875 | H7: 0 | I7: 0 | J7: 0 | K7: 0 | L7: 0 | M7: 0 | N7: 0 | O7: 0 | P7: 0 | R7: 0.05051010188 | W7: 0.02127386508 | AA7: 0.928216033 | AB7: =SUM(R7:AA7) -> 1 | AD7: =$R7*G7 -> 0.09028680711 | AE7: 0 | AF7: 0 | AG7: 0 | AH7: 0 | AI7: 0 | AJ7: 0 | AK7: 0 | AL7: 0 | AM7: 0 | AO7: =$S7*G7 -> 0 | AP7: =$S7*H7 -> 0 | AQ7: 0 | AR7: 0 | AS7: 0 | AT7: 0 | AU7: 0 | AV7: 0 | AW7: 0 | AX7: 0 | AZ7: =$T7*G7 -> 0 | BA7: 0 | BB7: 0 | BC7: 0 | BD7: 0 | BE7: 0 | BF7: 0 | BG7: 0 | BH7: 0 | BI7: 0 | BK7: =$U7*G7 -> 0 | BL7: =$U7*H7 -> 0 | BM7: =$U7*I7 -> 0 | BN7: =$U7*J7 -> 0 | BO7: =$U7*K7 -> 0 | BP7: =$U7*L7 -> 0 | BQ7: =$U7*M7 -> 0 | BR7: =$U7*N7 -> 0 | BS7: =$U7*O7 -> 0 | BT7: =$U7*P7 -> 0 | BV7: =$V7*G7 -> 0 | BW7: =$V7*H7 -> 0 | BX7: 0 | BY7: 0 | BZ7: 0 | CA7: 0 | CB7: 0 | CC7: 0 | CD7: 0 | CE7: 0 | CG7: =$W7*G7 -> 0.03802703383 | CH7: =$W7*H7 -> 0 | CI7: 0 | CJ7: 0 | CK7: 0 | CL7: 0 | CM7: 0 | CN7: 0 | CO7: 0 | CP7: 0 | CR7: =$X7*G7 -> 0 | CS7: =$X7*H7 -> 0 | CT7: 0 | CU7: 0 | CV7: 0 | CW7: 0 | CX7: 0 | CY7: 0 | CZ7: 0 | DA7: 0 | DC7: =$Y7*G7 -> 0 | DD7: =$Y7*H7 -> 0 | DE7: 0 | DF7: 0 | DG7: 0 | DH7: 0 | DI7: 0 | DJ7: 0 | DK7: 0 | DL7: 0 | DN7: =$Z7*G7 -> 0 | DO7: 0 | DP7: 0 | DQ7: 0 | DR7: 0 | DS7: 0 | DT7: 0 | DU7: 0 | DV7: 0 | DW7: 0 | DY7: =$AA7*G7 -> 1.659186159 | DZ7: =$AA7*H7 -> 0 | EA7: =$AA7*I7 -> 0 | EB7: 0 | EC7: 0 | ED7: 0 | EE7: 0 | EF7: 0 | EG7: 0 | EH7: 0
B8: Commercial Arrangements | C8: Refine M1 & M2 & Design M3 | D8: Workstream 1 | G8: 30.025 | H8: 0 | I8: 0 | J8: 0 | K8: 0 | L8: 0 | M8: 0 | N8: 5 | O8: 0 | P8: 0 | R8: 0.05051010188 | T8: 0.02029673609 | V8: 0.01190385469 | AA8: 0.9172893073 | AB8: =SUM(R8:AA8) -> 1 | AD8: =$R8*G8 -> 1.516565809 | AE8: =$R8*H8 -> 0 | AF8: =$R8*I8 -> 0 | AG8: =$R8*J8 -> 0 | AH8: =$R8*K8 -> 0 | AI8: =$R8*L8 -> 0 | AJ8: =$R8*M8 -> 0 | AK8: =$R8*N8 -> 0.2525505094 | AL8: =$R8*O8 -> 0 | AM8: =$R8*P8 -> 0 | AO8: =$S8*G8 -> 0 | AP8: 0 | AQ8: 0 | AR8: 0 | AS8: 0 | AT8: 0 | AU8: 0 | AV8: 0 | AW8: 0 | AX8: 0 | AZ8: =$T8*G8 -> 0.6094095011 | BA8: =$T8*H8 -> 0 | BB8: =$T8*I8 -> 0 | BC8: =$T8*J8 -> 0 | BD8: =$T8*K8 -> 0 | BE8: =$T8*L8 -> 0 | BF8: =$T8*M8 -> 0 | BG8: =$T8*N8 -> 0.1014836805 | BH8: =$T8*O8 -> 0 | BI8: =$T8*P8 -> 0 | BK8: 0 | BL8: 0 | BM8: 0 | BN8: 0 | BO8: 0 | BP8: 0 | BQ8: 0 | BR8: 0 | BS8: 0 | BT8: 0 | BV8: =$V8*G8 -> 0.357413237 | BW8: 0 | BX8: 0 | BY8: 0 | BZ8: 0 | CA8: 0 | CB8: 0 | CC8: 0.05951927343 | CD8: 0 | CE8: 0 | CG8: =$W8*G8 -> 0 | CH8: 0 | CI8: 0 | CJ8: 0 | CK8: 0 | CL8: 0 | CM8: 0 | CN8: 0 | CO8: 0 | CP8: 0 | CR8: =$X8*G8 -> 0 | CS8: 0 | CT8: 0 | CU8: 0 | CV8: 0 | CW8: 0 | CX8: 0 | CY8: 0 | CZ8: 0 | DA8: 0 | DC8: =$Y8*G8 -> 0 | DD8: 0 | DE8: 0 | DF8: 0 | DG8: 0 | DH8: 0 | DI8: 0 | DJ8: 0 | DK8: 0 | DL8: 0 | DN8: =$Z8*G8 -> 0 | DO8: =$Z8*H8 -> 0 | DP8: =$Z8*I8 -> 0 | DQ8: =$Z8*J8 -> 0 | DR8: =$Z8*K8 -> 0 | DS8: =$Z8*L8 -> 0 | DT8: =$Z8*M8 -> 0 | DU8: =$Z8*N8 -> 0 | DV8: =$Z8*O8 -> 0 | DW8: =$Z8*P8 -> 0 | DY8: =$AA8*G8 -> 27.54161145 | DZ8: =$AA8*H8 -> 0 | EA8: 0 | EB8: 0 | EC8: 0 | ED8: 0 | EE8: 0 | EF8: 4.586446537 | EG8: 0 | EH8: 0
B9: Commercial Arrangements | C9: Refine M1 & M2 & refine M3 | D9: Workstream 1 | G9: 144.175 | H9: 0 | I9: 0 | J9: 0 | K9: 0 | L9: 0 | M9: 0 | N9: 0 | O9: 0 | P9: 0 | R9: 0.05051010188 | S9: 0.07355617533 | V9: 0.01190385469 | AA9: 0.8640298681 | AB9: 1 | AD9: 7.282293938 | AE9: 0 | AF9: 0 | AG9: 0 | AH9: 0 | AI9: 0 | AJ9: 0 | AK9: 0 | AL9: 0 | AM9: 0 | AO9: 10.60496158 | AP9: 0 | AQ9: 0 | AR9: 0 | AS9: 0 | AT9: 0 | AU9: 0 | AV9: 0 | AW9: 0 | AX9: 0 | AZ9: 0 | BA9: 0 | BB9: 0 | BC9: 0 | BD9: 0 | BE9: 0 | BF9: 0 | BG9: 0 | BH9: 0 | BI9: 0 | BK9: 0 | BL9: 0 | BM9: 0 | BN9: 0 | BO9: 0 | BP9: 0 | BQ9: 0 | BR9: 0 | BS9: 0 | BT9: 0 | BV9: 1.716238249 | BW9: 0 | BX9: 0 | BY9: 0 | BZ9: 0 | CA9: 0 | CB9: 0 | CC9: 0 | CD9: 0 | CE9: 0 | CG9: 0 | CH9: 0 | CI9: 0 | CJ9: 0 | CK9: 0 | CL9: 0 | CM9: 0 | CN9: 0 | CO9: 0 | CP9: 0 | CR9: 0 | CS9: 0 | CT9: 0 | CU9: 0 | CV9: 0 | CW9: 0 | CX9: 0 | CY9: 0 | CZ9: 0 | DA9: 0 | DC9: 0 | DD9: 0 | DE9: 0 | DF9: 0 | DG9: 0 | DH9: 0 | DI9: 0 | DJ9: 0 | DK9: 0 | DL9: 0 | DN9: 0 | DO9: 0 | DP9: 0 | DQ9: 0 | DR9: 0 | DS9: 0 | DT9: 0 | DU9: 0 | DV9: 0 | DW9: 0 | DY9: 124.5715062 | DZ9: 0 | EA9: 0 | EB9: 0 | EC9: 0 | ED9: 0 | EE9: 0 | EF9: 0 | EG9: 0 | EH9: 0
B10: Integration and automation | C10: Overall integration planning | D10: Workstream 2 | G10: 75.075 | H10: 0 | I10: 0 | J10: 0 | K10: 0 | L10: 0 | M10: 0 | N10: 100 | O10: 0 | P10: 0 | R10: 0.05051010188 | V10: 0.01190385469 | AA10: 0.9375860434 | AB10: 1 | AD10: 3.792045898 | AE10: 0 | AF10: 0 | AG10: 0 | AH10: 0 | AI10: 0 | AJ10: 0 | AK10: 5.051010188 | AL10: 0 | AM10: 0 | AO10: 0 | AP10: 0 | AQ10: 0 | AR10: 0 | AS10: 0 | AT10: 0 | AU10: 0 | AV10: 0 | AW10: 0 | AX10: 0 | AZ10: 0 | BA10: 0 | BB10: 0 | BC10: 0 | BD10: 0 | BE10: 0 | BF10: 0 | BG10: 0 | BH10: 0 | BI10: 0 | BK10: 0 | BL10: 0 | BM10: 0 | BN10: 0 | BO10: 0 | BP10: 0 | BQ10: 0 | BR10: 0 | BS10: 0 | BT10: 0 | BV10: 0.8936818906 | BW10: 0 | BX10: 0 | BY10: 0 | BZ10: 0 | CA10: 0 | CB10: 0 | CC10: 1.190385469 | CD10: 0 | CE10: 0 | CG10: 0 | CH10: 0 | CI10: 0 | CJ10: 0 | CK10: 0 | CL10: 0 | CM10: 0 | CN10: 0 | CO10: 0 | CP10: 0 | CR10: 0 | CS10: 0 | CT10: 0 | CU10: 0 | CV10: 0 | CW10: 0 | CX10: 0 | CY10: 0 | CZ10: 0 | DA10: 0 | DC10: 0 | DD10: 0 | DE10: 0 | DF10: 0 | DG10: 0 | DH10: 0 | DI10: 0 | DJ10: 0 | DK10: 0 | DL10: 0 | DN10: 0 | DO10: 0 | DP10: 0 | DQ10: 0 | DR10: 0 | DS10: 0 | DT10: 0 | DU10: 0 | DV10: 0 | DW10: 0 | DY10: 70.38927221 | DZ10: 0 | EA10: 0 | EB10: 0 | EC10: 0 | ED10: 0 | EE10: 0 | EF10: 93.75860434 | EG10: 0 | EH10: 0
B11: Integration and automation | C11: Integration delivery and testing | D11: Workstream 2 | G11: 359.1 | H11: 0 | I11: 0 | J11: 0 | K11: 0 | L11: 0 | M11: 0 | N11: 462.87 | O11: 0 | P11: 0 | R11: 0.05051010188 | T11: 0.02029673609 | V11: 0.01190385469 | AA11: 0.9172893073 | AB11: 1 | AD11: 18.13817758 | AE11: 0 | AF11: 0 | AG11: 0 | AH11: 0 | AI11: 0 | AJ11: 0 | AK11: 23.37961086 | AL11: 0 | AM11: 0 | AO11: 0 | AP11: 0 | AQ11: 0 | AR11: 0 | AS11: 0 | AT11: 0 | AU11: 0 | AV11: 0 | AW11: 0 | AX11: 0 | AZ11: 7.28855793 | BA11: 0 | BB11: 0 | BC11: 0 | BD11: 0 | BE11: 0 | BF11: 0 | BG11: 9.394750234 | BH11: 0 | BI11: 0 | BK11: 0 | BL11: 0 | BM11: 0 | BN11: 0 | BO11: 0 | BP11: 0 | BQ11: 0 | BR11: 0 | BS11: 0 | BT11: 0 | BV11: 4.274674218 | BW11: 0 | BX11: 0 | BY11: 0 | BZ11: 0 | CA11: 0 | CB11: 0 | CC11: 5.509937219 | CD11: 0 | CE11: 0 | CG11: 0 | CH11: 0 | CI11: 0 | CJ11: 0 | CK11: 0 | CL11: 0 | CM11: 0 | CN11: 0 | CO11: 0 | CP11: 0 | CR11: 0 | CS11: 0 | CT11: 0 | CU11: 0 | CV11: 0 | CW11: 0 | CX11: 0 | CY11: 0 | CZ11: 0 | DA11: 0 | DC11: 0 | DD11: 0 | DE11: 0 | DF11: 0 | DG11: 0 | DH11: 0 | DI11: 0 | DJ11: 0 | DK11: 0 | DL11: 0 | DN11: 0 | DO11: 0 | DP11: 0 | DQ11: 0 | DR11: 0 | DS11: 0 | DT11: 0 | DU11: 0 | DV11: 0 | DW11: 0 | DY11: 329.3985903 | DZ11: 0 | EA11: 0 | EB11: 0 | EC11: 0 | ED11: 0 | EE11: 0 | EF11: 424.5857017 | EG11: 0 | EH11: 0
B12: Customer Engagement and Experience | C12: Engagement design | D12: WorkStream 3 | G12: 7.15 | H12: 0 | I12: 0 | J12: 0 | K12: 0 | L12: 0 | M12: 0 | N12: 0 | O12: 0 | P12: 0 | R12: 0.05051010188 | V12: 0.01190385469 | AA12: 0.9375860434 | AB12: 1 | AD12: 0.3611472284 | AE12: 0 | AF12: 0 | AG12: 0 | AH12: 0 | AI12: 0 | AJ12: 0 | AK12: 0 | AL12: 0 | AM12: 0 | AO12: 0 | AP12: 0 | AQ12: 0 | AR12: 0 | AS12: 0 | AT12: 0 | AU12: 0 | AV12: 0 | AW12: 0 | AX12: 0 | AZ12: 0 | BA12: 0 | BB12: 0 | BC12: 0 | BD12: 0 | BE12: 0 | BF12: 0 | BG12: 0 | BH12: 0 | BI12: 0 | BK12: 0 | BL12: 0 | BM12: 0 | BN12: 0 | BO12: 0 | BP12: 0 | BQ12: 0 | BR12: 0 | BS12: 0 | BT12: 0 | BV12: 0.08511256101 | BW12: 0 | BX12: 0 | BY12: 0 | BZ12: 0 | CA12: 0 | CB12: 0 | CC12: 0 | CD12: 0 | CE12: 0 | CG12: 0 | CH12: 0 | CI12: 0 | CJ12: 0 | CK12: 0 | CL12: 0 | CM12: 0 | CN12: 0 | CO12: 0 | CP12: 0 | CR12: 0 | CS12: 0 | CT12: 0 | CU12: 0 | CV12: 0 | CW12: 0 | CX12: 0 | CY12: 0 | CZ12: 0 | DA12: 0 | DC12: 0 | DD12: 0 | DE12: 0 | DF12: 0 | DG12: 0 | DH12: 0 | DI12: 0 | DJ12: 0 | DK12: 0 | DL12: 0 | DN12: 0 | DO12: 0 | DP12: 0 | DQ12: 0 | DR12: 0 | DS12: 0 | DT12: 0 | DU12: 0 | DV12: 0 | DW12: 0 | DY12: 6.703740211 | DZ12: 0 | EA12: 0 | EB12: 0 | EC12: 0 | ED12: 0 | EE12: 0 | EF12: 0 | EG12: 0 | EH12: 0
B13: Customer Engagement and Experience | C13: Engagement materials | D13: WorkStream 3 | G13: 44.6 | H13: 0 | I13: 0 | J13: 0 | K13: 0 | L13: 0 | M13: 0 | N13: 0 | O13: 0 | P13: 30 | R13: 0.05051010188 | S13: 0.07355617533 | V13: 0.01190385469 | AA13: 0.8640298681 | AB13: 1 | AD13: 2.252750544 | AE13: 0 | AF13: 0 | AG13: 0 | AH13: 0 | AI13: 0 | AJ13: 0 | AK13: 0 | AL13: 0 | AM13: 1.515303056 | AO13: 3.28060542 | AP13: 0 | AQ13: 0 | AR13: 0 | AS13: 0 | AT13: 0 | AU13: 0 | AV13: 0 | AW13: 0 | AX13: 2.20668526 | AZ13: 0 | BA13: 0 | BB13: 0 | BC13: 0 | BD13: 0 | BE13: 0 | BF13: 0 | BG13: 0 | BH13: 0 | BI13: 0 | BK13: 0 | BL13: 0 | BM13: 0 | BN13: 0 | BO13: 0 | BP13: 0 | BQ13: 0 | BR13: 0 | BS13: 0 | BT13: 0 | BV13: 0.530911919 | BW13: 0 | BX13: 0 | BY13: 0 | BZ13: 0 | CA13: 0 | CB13: 0 | CC13: 0 | CD13: 0 | CE13: 0.3571156406 | CG13: 0 | CH13: 0 | CI13: 0 | CJ13: 0 | CK13: 0 | CL13: 0 | CM13: 0 | CN13: 0 | CO13: 0 | CP13: 0 | CR13: 0 | CS13: 0 | CT13: 0 | CU13: 0 | CV13: 0 | CW13: 0 | CX13: 0 | CY13: 0 | CZ13: 0 | DA13: 0 | DC13: 0 | DD13: 0 | DE13: 0 | DF13: 0 | DG13: 0 | DH13: 0 | DI13: 0 | DJ13: 0 | DK13: 0 | DL13: 0 | DN13: 0 | DO13: 0 | DP13: 0 | DQ13: 0 | DR13: 0 | DS13: 0 | DT13: 0 | DU13: 0 | DV13: 0 | DW13: 0 | DY13: 38.53573212 | DZ13: 0 | EA13: 0 | EB13: 0 | EC13: 0 | ED13: 0 | EE13: 0 | EF13: 0 | EG13: 0 | EH13: 25.92089604
B14: Customer Engagement and Experience | C14: Engagement surveys and focus groups | D14: WorkStream 3 | G14: 73.075 | H14: 0 | I14: 0 | J14: 0 | K14: 0 | L14: 0 | M14: 15 | N14: 0 | O14: 0 | P14: 0 | R14: 0.05051010188 | T14: 0.02029673609 | V14: 0.01190385469 | AA14: 0.9172893073 | AB14: 1 | AD14: 3.691025695 | AE14: 0 | AF14: 0 | AG14: 0 | AH14: 0 | AI14: 0 | AJ14: 0.7576515282 | AK14: 0 | AL14: 0 | AM14: 0 | AO14: 0 | AP14: 0 | AQ14: 0 | AR14: 0 | AS14: 0 | AT14: 0 | AU14: 0 | AV14: 0 | AW14: 0 | AX14: 0 | AZ14: 1.48318399 | BA14: 0 | BB14: 0 | BC14: 0 | BD14: 0 | BE14: 0 | BF14: 0.3044510414 | BG14: 0 | BH14: 0 | BI14: 0 | BK14: 0 | BL14: 0 | BM14: 0 | BN14: 0 | BO14: 0 | BP14: 0 | BQ14: 0 | BR14: 0 | BS14: 0 | BT14: 0 | BV14: 0.8698741812 | BW14: 0 | BX14: 0 | BY14: 0 | BZ14: 0 | CA14: 0 | CB14: 0.1785578203 | CC14: 0 | CD14: 0 | CE14: 0 | CG14: 0 | CH14: 0 | CI14: 0 | CJ14: 0 | CK14: 0 | CL14: 0 | CM14: 0 | CN14: 0 | CO14: 0 | CP14: 0 | CR14: 0 | CS14: 0 | CT14: 0 | CU14: 0 | CV14: 0 | CW14: 0 | CX14: 0 | CY14: 0 | CZ14: 0 | DA14: 0 | DC14: 0 | DD14: 0 | DE14: 0 | DF14: 0 | DG14: 0 | DH14: 0 | DI14: 0 | DJ14: 0 | DK14: 0 | DL14: 0 | DN14: 0 | DO14: 0 | DP14: 0 | DQ14: 0 | DR14: 0 | DS14: 0 | DT14: 0 | DU14: 0 | DV14: 0 | DW14: 0 | DY14: 67.03091613 | DZ14: 0 | EA14: 0 | EB14: 0 | EC14: 0 | ED14: 0 | EE14: 13.75933961 | EF14: 0 | EG14: 0 | EH14: 0
B15: Customer Engagement and Experience | C15: Engagement primary research | D15: WorkStream 3 | G15: 32.175 | H15: 0 | I15: 50 | J15: 0 | K15: 0 | L15: 0 | M15: 0 | N15: 0 | O15: 0 | P15: 0 | R15: 0.05051010188 | V15: 0.01190385469 | AA15: 0.9375860434 | AB15: 1 | AD15: 1.625162528 | AE15: 0 | AF15: 2.525505094 | AG15: 0 | AH15: 0 | AI15: 0 | AJ15: 0 | AK15: 0 | AL15: 0 | AM15: 0 | AO15: 0 | AP15: 0 | AQ15: 0 | AR15: 0 | AS15: 0 | AT15: 0 | AU15: 0 | AV15: 0 | AW15: 0 | AX15: 0 | AZ15: 0 | BA15: 0 | BB15: 0 | BC15: 0 | BD15: 0 | BE15: 0 | BF15: 0 | BG15: 0 | BH15: 0 | BI15: 0 | BK15: 0 | BL15: 0 | BM15: 0 | BN15: 0 | BO15: 0 | BP15: 0 | BQ15: 0 | BR15: 0 | BS15: 0 | BT15: 0 | BV15: 0.3830065245 | BW15: 0 | BX15: 0.5951927343 | BY15: 0 | BZ15: 0 | CA15: 0 | CB15: 0 | CC15: 0 | CD15: 0 | CE15: 0 | CG15: 0 | CH15: 0 | CI15: 0 | CJ15: 0 | CK15: 0 | CL15: 0 | CM15: 0 | CN15: 0 | CO15: 0 | CP15: 0 | CR15: 0 | CS15: 0 | CT15: 0 | CU15: 0 | CV15: 0 | CW15: 0 | CX15: 0 | CY15: 0 | CZ15: 0 | DA15: 0 | DC15: 0 | DD15: 0 | DE15: 0 | DF15: 0 | DG15: 0 | DH15: 0 | DI15: 0 | DJ15: 0 | DK15: 0 | DL15: 0 | DN15: 0 | DO15: 0 | DP15: 0 | DQ15: 0 | DR15: 0 | DS15: 0 | DT15: 0 | DU15: 0 | DV15: 0 | DW15: 0 | DY15: 30.16683095 | DZ15: 0 | EA15: 46.87930217 | EB15: 0 | EC15: 0 | ED15: 0 | EE15: 0 | EF15: 0 | EG15: 0 | EH15: 0
B16: Trials | C16: Overal Trial Design | D16: Workstream 4 | G16: 111.5 | H16: 0 | I16: 0 | J16: 0 | K16: 0 | L16: 0 | M16: 0 | N16: 0 | O16: 0 | P16: 0 | R16: 0.05051010188 | T16: 0.02029673609 | V16: 0.01190385469 | AA16: 0.9172893073 | AB16: 1 | AD16: 5.631876359 | AE16: 0 | AF16: 0 | AG16: 0 | AH16: 0 | AI16: 0 | AJ16: 0 | AK16: 0 | AL16: 0 | AM16: 0 | AO16: 0 | AP16: 0 | AQ16: 0 | AR16: 0 | AS16: 0 | AT16: 0 | AU16: 0 | AV16: 0 | AW16: 0 | AX16: 0 | AZ16: 2.263086074 | BA16: 0 | BB16: 0 | BC16: 0 | BD16: 0 | BE16: 0 | BF16: 0 | BG16: 0 | BH16: 0 | BI16: 0 | BK16: 0 | BL16: 0 | BM16: 0 | BN16: 0 | BO16: 0 | BP16: 0 | BQ16: 0 | BR16: 0 | BS16: 0 | BT16: 0 | BV16: 1.327279798 | BW16: 0 | BX16: 0 | BY16: 0 | BZ16: 0 | CA16: 0 | CB16: 0 | CC16: 0 | CD16: 0 | CE16: 0 | CG16: 0 | CH16: 0 | CI16: 0 | CJ16: 0 | CK16: 0 | CL16: 0 | CM16: 0 | CN16: 0 | CO16: 0 | CP16: 0 | CR16: 0 | CS16: 0 | CT16: 0 | CU16: 0 | CV16: 0 | CW16: 0 | CX16: 0 | CY16: 0 | CZ16: 0 | DA16: 0 | DC16: 0 | DD16: 0 | DE16: 0 | DF16: 0 | DG16: 0 | DH16: 0 | DI16: 0 | DJ16: 0 | DK16: 0 | DL16: 0 | DN16: 0 | DO16: 0 | DP16: 0 | DQ16: 0 | DR16: 0 | DS16: 0 | DT16: 0 | DU16: 0 | DV16: 0 | DW16: 0 | DY16: 102.2777578 | DZ16: 0 | EA16: 0 | EB16: 0 | EC16: 0 | ED16: 0 | EE16: 0 | EF16: 0 | EG16: 0 | EH16: 0
B17: Trials | C17: Simulation modelling | D17: Workstream 4 | G17: 137.375 | H17: 0 | I17: 20 | J17: 0 | K17: 0 | L17: 0 | M17: 0 | N17: 0 | O17: 0 | P17: 0 | R17: 0.05051010188 | S17: 0.07355617533 | U17: 0.02387727446 | V17: 0.01190385469 | AA17: 0.8401525936 | AB17: 1 | AD17: 6.938825245 | AE17: 0 | AF17: 1.010202038 | AG17: 0 | AH17: 0 | AI17: 0 | AJ17: 0 | AK17: 0 | AL17: 0 | AM17: 0 | AO17: 10.10477959 | AP17: 0 | AQ17: 1.471123507 | AR17: 0 | AS17: 0 | AT17: 0 | AU17: 0 | AV17: 0 | AW17: 0 | AX17: 0 | AZ17: 0 | BA17: 0 | BB17: 0 | BC17: 0 | BD17: 0 | BE17: 0 | BF17: 0 | BG17: 0 | BH17: 0 | BI17: 0 | BK17: 3.280140578 | BL17: 0 | BM17: 0.4775454891 | BN17: 0 | BO17: 0 | BP17: 0 | BQ17: 0 | BR17: 0 | BS17: 0 | BT17: 0 | BV17: 1.635292038 | BW17: 0 | BX17: 0.2380770937 | BY17: 0 | BZ17: 0 | CA17: 0 | CB17: 0 | CC17: 0 | CD17: 0 | CE17: 0 | CG17: 0 | CH17: 0 | CI17: 0 | CJ17: 0 | CK17: 0 | CL17: 0 | CM17: 0 | CN17: 0 | CO17: 0 | CP17: 0 | CR17: 0 | CS17: 0 | CT17: 0 | CU17: 0 | CV17: 0 | CW17: 0 | CX17: 0 | CY17: 0 | CZ17: 0 | DA17: 0 | DC17: 0 | DD17: 0 | DE17: 0 | DF17: 0 | DG17: 0 | DH17: 0 | DI17: 0 | DJ17: 0 | DK17: 0 | DL17: 0 | DN17: 0 | DO17: 0 | DP17: 0 | DQ17: 0 | DR17: 0 | DS17: 0 | DT17: 0 | DU17: 0 | DV17: 0 | DW17: 0 | DY17: 115.4159626 | DZ17: 0 | EA17: 16.80305187 | EB17: 0 | EC17: 0 | ED17: 0 | EE17: 0 | EF17: 0 | EG17: 0 | EH17: 0
B18: Trials | C18: Trial delivery and analysis | D18: Workstream 4 | G18: 304.45 | H18: 0 | I18: 0 | J18: 0 | K18: 0 | L18: 0 | M18: 60 | N18: 60 | O18: 0 | P18: 0 | R18: 0.05051010188 | AA18: 0.9494898981 | AB18: 1 | AD18: 15.37780052 | AE18: 0 | AF18: 0 | AG18: 0 | AH18: 0 | AI18: 0 | AJ18: 3.030606113 | AK18: 3.030606113 | AL18: 0 | AM18: 0 | AO18: 0 | AP18: 0 | AQ18: 0 | AR18: 0 | AS18: 0 | AT18: 0 | AU18: 0 | AV18: 0 | AW18: 0 | AX18: 0 | AZ18: 0 | BA18: 0 | BB18: 0 | BC18: 0 | BD18: 0 | BE18: 0 | BF18: 0 | BG18: 0 | BH18: 0 | BI18: 0 | BK18: 0 | BL18: 0 | BM18: 0 | BN18: 0 | BO18: 0 | BP18: 0 | BQ18: 0 | BR18: 0 | BS18: 0 | BT18: 0 | BV18: 0 | BW18: 0 | BX18: 0 | BY18: 0 | BZ18: 0 | CA18: 0 | CB18: 0 | CC18: 0 | CD18: 0 | CE18: 0 | CG18: 0 | CH18: 0 | CI18: 0 | CJ18: 0 | CK18: 0 | CL18: 0 | CM18: 0 | CN18: 0 | CO18: 0 | CP18: 0 | CR18: 0 | CS18: 0 | CT18: 0 | CU18: 0 | CV18: 0 | CW18: 0 | CX18: 0 | CY18: 0 | CZ18: 0 | DA18: 0 | DC18: 0 | DD18: 0 | DE18: 0 | DF18: 0 | DG18: 0 | DH18: 0 | DI18: 0 | DJ18: 0 | DK18: 0 | DL18: 0 | DN18: 0 | DO18: 0 | DP18: 0 | DQ18: 0 | DR18: 0 | DS18: 0 | DT18: 0 | DU18: 0 | DV18: 0 | DW18: 0 | DY18: 289.0721995 | DZ18: 0 | EA18: 0 | EB18: 0 | EC18: 0 | ED18: 0 | EE18: 56.96939389 | EF18: 56.96939389 | EG18: 0 | EH18: 0
B19: Trials | C19: Business case update and transistion | D19: Workstream 4 | G19: 53.3625 | H19: 0 | I19: 0 | J19: 0 | K19: 0 | L19: 0 | M19: 0 | N19: 0 | O19: 0 | P19: 0 | R19: 0.05051010188 | S19: 0.07355617533 | W19: 0.02127386508 | AA19: 0.8546598577 | AB19: 1 | AD19: 2.695345311 | AE19: 0 | AF19: 0 | AG19: 0 | AH19: 0 | AI19: 0 | AJ19: 0 | AK19: 0 | AL19: 0 | AM19: 0 | AO19: 3.925141406 | AP19: 0 | AQ19: 0 | AR19: 0 | AS19: 0 | AT19: 0 | AU19: 0 | AV19: 0 | AW19: 0 | AX19: 0 | AZ19: 0 | BA19: 0 | BB19: 0 | BC19: 0 | BD19: 0 | BE19: 0 | BF19: 0 | BG19: 0 | BH19: 0 | BI19: 0 | BK19: 0 | BL19: 0 | BM19: 0 | BN19: 0 | BO19: 0 | BP19: 0 | BQ19: 0 | BR19: 0 | BS19: 0 | BT19: 0 | BV19: 0 | BW19: 0 | BX19: 0 | BY19: 0 | BZ19: 0 | CA19: 0 | CB19: 0 | CC19: 0 | CD19: 0 | CE19: 0 | CG19: 1.135226625 | CH19: 0 | CI19: 0 | CJ19: 0 | CK19: 0 | CL19: 0 | CM19: 0 | CN19: 0 | CO19: 0 | CP19: 0 | CR19: 0 | CS19: 0 | CT19: 0 | CU19: 0 | CV19: 0 | CW19: 0 | CX19: 0 | CY19: 0 | CZ19: 0 | DA19: 0 | DC19: 0 | DD19: 0 | DE19: 0 | DF19: 0 | DG19: 0 | DH19: 0 | DI19: 0 | DJ19: 0 | DK19: 0 | DL19: 0 | DN19: 0 | DO19: 0 | DP19: 0 | DQ19: 0 | DR19: 0 | DS19: 0 | DT19: 0 | DU19: 0 | DV19: 0 | DW19: 0 | DY19: 45.60678666 | DZ19: 0 | EA19: 0 | EB19: 0 | EC19: 0 | ED19: 0 | EE19: 0 | EF19: 0 | EG19: 0 | EH19: 0
B20: PM Management and knowledge dissemination | C20: PM Labour | D20: WorkStream 5 | G20: 258.78 | H20: 0 | I20: 0 | J20: 0 | K20: 0 | L20: 0 | M20: 0 | N20: 0 | O20: 0 | P20: 0 | R20: 0.05051010188 | T20: 0.02029673609 | U20: 0.02387727446 | V20: 0.01190385469 | AA20: 0.8934120329 | AB20: 1 | AD20: 13.07100416 | AE20: 0 | AF20: 0 | AG20: 0 | AH20: 0 | AI20: 0 | AJ20: 0 | AK20: 0 | AL20: 0 | AM20: 0 | AO20: 0 | AP20: 0 | AQ20: 0 | AR20: 0 | AS20: 0 | AT20: 0 | AU20: 0 | AV20: 0 | AW20: 0 | AX20: 0 | AZ20: 5.252389366 | BA20: 0 | BB20: 0 | BC20: 0 | BD20: 0 | BE20: 0 | BF20: 0 | BG20: 0 | BH20: 0 | BI20: 0 | BK20: 6.178961084 | BL20: 0 | BM20: 0 | BN20: 0 | BO20: 0 | BP20: 0 | BQ20: 0 | BR20: 0 | BS20: 0 | BT20: 0 | BV20: 3.080479516 | BW20: 0 | BX20: 0 | BY20: 0 | BZ20: 0 | CA20: 0 | CB20: 0 | CC20: 0 | CD20: 0 | CE20: 0 | CG20: 0 | CH20: 0 | CI20: 0 | CJ20: 0 | CK20: 0 | CL20: 0 | CM20: 0 | CN20: 0 | CO20: 0 | CP20: 0 | CR20: 0 | CS20: 0 | CT20: 0 | CU20: 0 | CV20: 0 | CW20: 0 | CX20: 0 | CY20: 0 | CZ20: 0 | DA20: 0 | DC20: 0 | DD20: 0 | DE20: 0 | DF20: 0 | DG20: 0 | DH20: 0 | DI20: 0 | DJ20: 0 | DK20: 0 | DL20: 0 | DN20: 0 | DO20: 0 | DP20: 0 | DQ20: 0 | DR20: 0 | DS20: 0 | DT20: 0 | DU20: 0 | DV20: 0 | DW20: 0 | DY20: 231.1971659 | DZ20: 0 | EA20: 0 | EB20: 0 | EC20: 0 | ED20: 0 | EE20: 0 | EF20: 0 | EG20: 0 | EH20: 0
B21: PM Management and knowledge dissemination | C21: Knowledge transfer and dissemination | D21: WorkStream 5 | G21: 115.025 | H21: 0 | I21: 66 | J21: 0 | K21: 0 | L21: 0 | M21: 0 | N21: 0 | O21: 0 | P21: 15 | Q21: Total Cost | R21: 0.05051010188 | S21: 0.07355617533 | T21: 0.02029673609 | AA21: 0.8556369867 | AB21: =SUM(R21:AA21) -> 1 | AD21: =$R21*G21 -> 5.809924468 | AE21: 0 | AF21: 3.333666724 | AG21: 0 | AH21: 0 | AI21: 0 | AJ21: 0 | AK21: 0 | AL21: 0 | AM21: 0.7576515282 | AO21: =$S21*G21 -> 8.460799067 | AP21: 0 | AQ21: 4.854707572 | AR21: 0 | AS21: 0 | AT21: 0 | AU21: 0 | AV21: 0 | AW21: 0 | AX21: 1.10334263 | AZ21: =$T21*G21 -> 2.334632069 | BA21: 0 | BB21: 1.339584582 | BC21: 0 | BD21: 0 | BE21: 0 | BF21: 0 | BG21: 0 | BH21: 0 | BI21: 0.3044510414 | BK21: 0 | BL21: 0 | BM21: 0 | BN21: 0 | BO21: 0 | BP21: 0 | BQ21: 0 | BR21: 0 | BS21: 0 | BT21: 0 | BV21: 0 | BW21: 0 | BX21: 0 | BY21: 0 | BZ21: 0 | CA21: 0 | CB21: 0 | CC21: 0 | CD21: 0 | CE21: 0 | CG21: 0 | CH21: 0 | CI21: 0 | CJ21: 0 | CK21: 0 | CL21: 0 | CM21: 0 | CN21: 0 | CO21: 0 | CP21: 0 | CR21: 0 | CS21: 0 | CT21: 0 | CU21: 0 | CV21: 0 | CW21: 0 | CX21: 0 | CY21: 0 | CZ21: 0 | DA21: 0 | DC21: 0 | DD21: 0 | DE21: 0 | DF21: 0 | DG21: 0 | DH21: 0 | DI21: 0 | DJ21: 0 | DK21: 0 | DL21: 0 | DN21: =$Z21*G21 -> 0 | DO21: 0 | DP21: 0 | DQ21: 0 | DR21: 0 | DS21: 0 | DT21: 0 | DU21: 0 | DV21: 0 | DW21: 0 | DY21: =$AA21*G21 -> 98.4196444 | DZ21: 0 | EA21: 56.47204112 | EB21: 0 | EC21: 0 | ED21: 0 | EE21: 0 | EF21: 0 | EG21: 0 | EH21: 12.8345548
B22: Total | G22: =SUM(G7:G21) -> 1747.655 | H22: =SUM(H7:H21) -> 0 | I22: 136 | J22: 0 | K22: 0 | L22: 0 | M22: 75 | N22: 627.87 | O22: 0 | P22: 45 | Q22: =SUM(G22:P22) -> 2631.525 | AD22: =SUM(AD7:AD21) -> 88.2742321 | AE22: =SUM(AE7:AE21) -> 0 | AF22: 6.869373855 | AG22: 0 | AH22: 0 | AI22: 0 | AJ22: 3.788257641 | AK22: 31.71377767 | AL22: 0 | AM22: 2.272954584 | AO22: =SUM(AO7:AO21) -> 36.37628706 | AP22: =SUM(AP7:AP21) -> 0 | AQ22: 6.325831078 | AR22: 0 | AS22: 0 | AT22: 0 | AU22: 0 | AV22: 0 | AW22: 0 | AX22: 3.31002789 | AZ22: =SUM(AZ7:AZ21) -> 19.23125893 | BA22: =SUM(BA7:BA21) -> 0 | BB22: 1.339584582 | BC22: 0 | BD22: 0 | BE22: 0 | BF22: 0.3044510414 | BG22: 9.496233915 | BH22: 0 | BI22: 0.3044510414 | BK22: =SUM(BK7:BK21) -> 9.459101662 | BL22: =SUM(BL7:BL21) -> 0 | BM22: 0.4775454891 | BN22: 0 | BO22: 0 | BP22: 0 | BQ22: 0 | BR22: 0 | BS22: 0 | BT22: 0 | BV22: =SUM(BV7:BV21) -> 15.15396413 | BW22: =SUM(BW7:BW21) -> 0 | BX22: 0.833269828 | BY22: 0 | BZ22: 0 | CA22: 0 | CB22: 0.1785578203 | CC22: 6.759841961 | CD22: 0 | CE22: 0.3571156406 | CG22: =SUM(CG7:CG21) -> 1.173253659 | CH22: =SUM(CH7:CH21) -> 0 | CI22: 0 | CJ22: 0 | CK22: 0 | CL22: 0 | CM22: 0 | CN22: 0 | CO22: 0 | CP22: 0 | CR22: =SUM(CR7:CR21) -> 0 | CS22: =SUM(CS7:CS21) -> 0 | CT22: 0 | CU22: 0 | CV22: 0 | CW22: 0 | CX22: 0 | CY22: 0 | CZ22: 0 | DA22: 0 | DC22: =SUM(DC7:DC21) -> 0 | DD22: =SUM(DD7:DD21) -> 0 | DE22: 0 | DF22: 0 | DG22: 0 | DH22: 0 | DI22: 0 | DJ22: 0 | DK22: 0 | DL22: 0 | DN22: =SUM(DN7:DN21) -> 0 | DO22: =SUM(DO7:DO21) -> 0 | DP22: 0 | DQ22: 0 | DR22: 0 | DS22: 0 | DT22: 0 | DU22: 0 | DV22: 0 | DW22: 0 | DY22: =SUM(DY7:DY21) -> 1577.986902 | DZ22: =SUM(DZ7:DZ21) -> 0 | EA22: 120.1543952 | EB22: 0 | EC22: 0 | ED22: 0 | EE22: 70.7287335 | EF22: 579.9001465 | EG22: 0 | EH22: 38.75545084
D268: Totals

Sheet 2024-2025
B1: Project Costs in 2024-2025
G4: Total Cost £K | R4: Funding source % | AD4: Licensee Compulsory Contribution/Direct Benefits | AO4: Guidehouse | AZ4: Octopus Energy | BK4: Passiv | BV4: SERO | CG4: SP Energy Networks | CR4: Welsh Government | DC4: West Midlands Combined Authority | DN4: Licensee Extra Contribution | DY4: Outstanding Funding Required
G5: Labour | H5: Equipment | I5: Contractors | J5: IT | K5: IPR Costs | L5: Travel & Expenses | M5: Payments to users | N5: Contingency | O5: Decommissioning | P5: Other | R5: Licensee Compulsory Contribution /Direct Benefits | S5: Guidehouse | T5: Octopus Energy | U5: Passiv Systems | V5: SERO | W5: SP Energy Networks | X5: Welsh Government | Y5: West Midlands Combined Authority# | Z5: Licensee Extra Contribution | AA5: Oustanding Funding Required | AB5: Total | AD5: Labour | AE5: Equipment | AF5: Contractors | AG5: IT | AH5: IPR Costs | AI5: Travel & Expenses | AJ5: Payments to users | AK5: Contingency | AL5: Decommissioning | AM5: Other | AO5: Labour | AP5: Equipment | AQ5: Contractors | AR5: IT | AS5: IPR Costs | AT5: Travel & Expenses | AU5: Payments to users | AV5: Contingency | AW5: Decommissioning | AX5: Other | AZ5: Labour | BA5: Equipment | BB5: Contractors | BC5: IT | BD5: IPR Costs | BE5: Travel & Expenses | BF5: Payments to users | BG5: Contingency | BH5: Decommissioning | BI5: Other | BK5: Labour | BL5: Equipment | BM5: Contractors | BN5: IT | BO5: IPR Costs | BP5: Travel & Expenses | BQ5: Payments to users | BR5: Contingency | BS5: Decommissioning | BT5: Other | BV5: Labour | BW5: Equipment | BX5: Contractors | BY5: IT | BZ5: IPR Costs | CA5: Travel & Expenses | CB5: Payments to users | CC5: Contingency | CD5: Decommissioning | CE5: Other | CG5: Labour | CH5: Equipment | CI5: Contractors | CJ5: IT | CK5: IPR Costs | CL5: Travel & Expenses | CM5: Payments to users | CN5: Contingency | CO5: Decommissioning | CP5: Other | CR5: Labour | CS5: Equipment | CT5: Contractors | CU5: IT | CV5: IPR Costs | CW5: Travel & Expenses | CX5: Payments to users | CY5: Contingency | CZ5: Decommissioning | DA5: Other | DC5: Labour | DD5: Equipment | DE5: Contractors | DF5: IT | DG5: IPR Costs | DH5: Travel & Expenses | DI5: Payments to users | DJ5: Contingency | DK5: Decommissioning | DL5: Other | DN5: Labour | DO5: Equipment | DP5: Contractors | DQ5: IT | DR5: IPR Costs | DS5: Travel & Expenses | DT5: Payments to users | DU5: Contingency | DV5: Decommissioning | DW5: Other | DY5: Labour | DZ5: Equipment | EA5: Contractors | EB5: IT | EC5: IPR Costs | ED5: Travel & Expenses | EE5: Payments to users | EF5: Contingency | EG5: Decommissioning | EH5: Other
B6: Description | C6: Task | D6: Project Workstream
B7: Commercial Arrangements | C7: Design M1 & M2 | D7: Workstream 1 | G7: 1.7875 | H7: 0 | I7: 0 | J7: 0 | K7: 0 | L7: 0 | M7: 0 | N7: 0 | O7: 0 | P7: 0 | R7: 0.06841259383 | W7: 0.0110702007 | AA7: 0.9205172055 | AB7: =SUM(R7:AA7) -> 1 | AD7: =$R7*G7 -> 0.1222875115 | AE7: =$R7*H7 -> 0 | AF7: =$R7*I7 -> 0 | AG7: =$R7*J7 -> 0 | AH7: =$R7*K7 -> 0 | AI7: =$R7*L7 -> 0 | AJ7: =$R7*M7 -> 0 | AK7: =$R7*N7 -> 0 | AL7: =$R7*O7 -> 0 | AM7: =$R7*P7 -> 0 | AO7: =$S7*G7 -> 0 | AP7: =$S7*H7 -> 0 | AQ7: =$S7*I7 -> 0 | AR7: =$S7*J7 -> 0 | AS7: =$S7*K7 -> 0 | AT7: =$S7*L7 -> 0 | AU7: =$S7*M7 -> 0 | AV7: =$S7*N7 -> 0 | AW7: =$S7*O7 -> 0 | AX7: =$S7*P7 -> 0 | AZ7: =$T7*G7 -> 0 | BA7: =$T7*H7 -> 0 | BB7: =$T7*I7 -> 0 | BC7: =$T7*J7 -> 0 | BD7: =$T7*K7 -> 0 | BE7: =$T7*L7 -> 0 | BF7: =$T7*M7 -> 0 | BG7: =$T7*N7 -> 0 | BH7: =$T7*O7 -> 0 | BI7: =$T7*P7 -> 0 | BK7: =$U7*G7 -> 0 | BL7: =$U7*H7 -> 0 | BM7: =$U7*I7 -> 0 | BN7: =$U7*J7 -> 0 | BO7: =$U7*K7 -> 0 | BP7: =$U7*L7 -> 0 | BQ7: =$U7*M7 -> 0 | BR7: =$U7*N7 -> 0 | BS7: =$U7*O7 -> 0 | BT7: =$U7*P7 -> 0 | BV7: =$V7*G7 -> 0 | BW7: =$V7*H7 -> 0 | BX7: 0 | BY7: 0 | BZ7: 0 | CA7: 0 | CB7: 0 | CC7: 0 | CD7: 0 | CE7: 0 | CG7: =$W7*G7 -> 0.01978798374 | CH7: =$W7*H7 -> 0 | CI7: 0 | CJ7: 0 | CK7: 0 | CL7: 0 | CM7: 0 | CN7: 0 | CO7: 0 | CP7: 0 | CR7: =$X7*G7 -> 0 | CS7: =$X7*H7 -> 0 | CT7: 0 | CU7: 0 | CV7: 0 | CW7: 0 | CX7: 0 | CY7: 0 | CZ7: 0 | DA7: 0 | DC7: =$Y7*G7 -> 0 | DD7: =$Y7*H7 -> 0 | DE7: 0 | DF7: 0 | DG7: 0 | DH7: 0 | DI7: 0 | DJ7: 0 | DK7: 0 | DL7: 0 | DN7: =$Z7*G7 -> 0 | DO7: =$Z7*H7 -> 0 | DP7: =$Z7*I7 -> 0 | DQ7: =$Z7*J7 -> 0 | DR7: =$Z7*K7 -> 0 | DS7: =$Z7*L7 -> 0 | DT7: =$Z7*M7 -> 0 | DU7: =$Z7*N7 -> 0 | DV7: =$Z7*O7 -> 0 | DW7: =$Z7*P7 -> 0 | DY7: =$AA7*G7 -> 1.645424505 | DZ7: =$AA7*H7 -> 0 | EA7: =$AA7*I7 -> 0 | EB7: =$AA7*J7 -> 0 | EC7: =$AA7*K7 -> 0 | ED7: =$AA7*L7 -> 0 | EE7: =$AA7*M7 -> 0 | EF7: =$AA7*N7 -> 0 | EG7: =$AA7*O7 -> 0 | EH7: =$AA7*P7 -> 0
B8: Commercial Arrangements | C8: Refine M1 & M2 & Design M3 | D8: Workstream 1 | G8: 0 | H8: 0 | I8: 0 | J8: 0 | K8: 0 | L8: 0 | M8: 0 | N8: 0 | O8: 0 | P8: 0 | R8: 0.06841259383 | AA8: 0.9315874062 | AB8: =SUM(R8:AA8) -> 1 | AD8: 0 | AE8: 0 | AF8: 0 | AG8: 0 | AH8: 0 | AI8: 0 | AJ8: 0 | AK8: 0 | AL8: 0 | AM8: 0 | AO8: 0 | AP8: 0 | AQ8: 0 | AR8: 0 | AS8: 0 | AT8: 0 | AU8: 0 | AV8: 0 | AW8: 0 | AX8: 0 | AZ8: 0 | BA8: 0 | BB8: 0 | BC8: 0 | BD8: 0 | BE8: 0 | BF8: 0 | BG8: 0 | BH8: 0 | BI8: 0 | BK8: 0 | BL8: 0 | BM8: 0 | BN8: 0 | BO8: 0 | BP8: 0 | BQ8: 0 | BR8: 0 | BS8: 0 | BT8: 0 | BV8: =$V8*G8 -> 0 | BW8: 0 | BX8: 0 | BY8: 0 | BZ8: 0 | CA8: 0 | CB8: 0 | CC8: 0 | CD8: 0 | CE8: 0 | CG8: =$W8*G8 -> 0 | CH8: =$W8*H8 -> 0 | CI8: =$W8*I8 -> 0 | CJ8: =$W8*J8 -> 0 | CK8: =$W8*K8 -> 0 | CL8: =$W8*L8 -> 0 | CM8: =$W8*M8 -> 0 | CN8: =$W8*N8 -> 0 | CO8: =$W8*O8 -> 0 | CP8: =$W8*P8 -> 0 | CR8: =$X8*G8 -> 0 | CS8: 0 | CT8: 0 | CU8: 0 | CV8: 0 | CW8: 0 | CX8: 0 | CY8: 0 | CZ8: 0 | DA8: 0 | DC8: =$Y8*G8 -> 0 | DD8: 0 | DE8: 0 | DF8: 0 | DG8: 0 | DH8: 0 | DI8: 0 | DJ8: 0 | DK8: 0 | DL8: 0 | DN8: 0 | DO8: 0 | DP8: 0 | DQ8: 0 | DR8: 0 | DS8: 0 | DT8: 0 | DU8: 0 | DV8: 0 | DW8: 0 | DY8: 0 | DZ8: 0 | EA8: 0 | EB8: 0 | EC8: 0 | ED8: 0 | EE8: 0 | EF8: 0 | EG8: 0 | EH8: 0
B9: Commercial Arrangements | C9: Refine M1 & M2 & refine M3 | D9: Workstream 1 | G9: 8.575 | H9: 0 | I9: 0 | J9: 0 | K9: 0 | L9: 0 | M9: 0 | N9: 5 | O9: 0 | P9: 0 | R9: 0.06841259383 | AA9: 0.9315874062 | AB9: 1 | AD9: 0.5866379921 | AE9: 0 | AF9: 0 | AG9: 0 | AH9: 0 | AI9: 0 | AJ9: 0 | AK9: 0.3420629691 | AL9: 0 | AM9: 0 | AO9: 0 | AP9: 0 | AQ9: 0 | AR9: 0 | AS9: 0 | AT9: 0 | AU9: 0 | AV9: 0 | AW9: 0 | AX9: 0 | AZ9: 0 | BA9: 0 | BB9: 0 | BC9: 0 | BD9: 0 | BE9: 0 | BF9: 0 | BG9: 0 | BH9: 0 | BI9: 0 | BK9: 0 | BL9: 0 | BM9: 0 | BN9: 0 | BO9: 0 | BP9: 0 | BQ9: 0 | BR9: 0 | BS9: 0 | BT9: 0 | BV9: 0 | BW9: 0 | BX9: 0 | BY9: 0 | BZ9: 0 | CA9: 0 | CB9: 0 | CC9: 0 | CD9: 0 | CE9: 0 | CG9: 0 | CH9: 0 | CI9: 0 | CJ9: 0 | CK9: 0 | CL9: 0 | CM9: 0 | CN9: 0 | CO9: 0 | CP9: 0 | CR9: 0 | CS9: 0 | CT9: 0 | CU9: 0 | CV9: 0 | CW9: 0 | CX9: 0 | CY9: 0 | CZ9: 0 | DA9: 0 | DC9: 0 | DD9: 0 | DE9: 0 | DF9: 0 | DG9: 0 | DH9: 0 | DI9: 0 | DJ9: 0 | DK9: 0 | DL9: 0 | DN9: 0 | DO9: 0 | DP9: 0 | DQ9: 0 | DR9: 0 | DS9: 0 | DT9: 0 | DU9: 0 | DV9: 0 | DW9: 0 | DY9: 7.988362008 | DZ9: 0 | EA9: 0 | EB9: 0 | EC9: 0 | ED9: 0 | EE9: 0 | EF9: 4.657937031 | EG9: 0 | EH9: 0
B10: Integration and automation | C10: Overall integration planning | D10: Workstream 2 | G10: 112 | H10: 0 | I10: 0 | J10: 0 | K10: 0 | L10: 0 | M10: 0 | N10: 0 | O10: 0 | P10: 0 | R10: 0.06841259383 | S10: 0.03040910702 | T10: 0.03720664867 | AA10: 0.8639716505 | AB10: 1 | AD10: 7.662210509 | AE10: 0 | AF10: 0 | AG10: 0 | AH10: 0 | AI10: 0 | AJ10: 0 | AK10: 0 | AL10: 0 | AM10: 0 | AO10: 3.405819986 | AP10: 0 | AQ10: 0 | AR10: 0 | AS10: 0 | AT10: 0 | AU10: 0 | AV10: 0 | AW10: 0 | AX10: 0 | AZ10: 4.167144651 | BA10: 0 | BB10: 0 | BC10: 0 | BD10: 0 | BE10: 0 | BF10: 0 | BG10: 0 | BH10: 0 | BI10: 0 | BK10: 0 | BL10: 0 | BM10: 0 | BN10: 0 | BO10: 0 | BP10: 0 | BQ10: 0 | BR10: 0 | BS10: 0 | BT10: 0 | BV10: 0 | BW10: 0 | BX10: 0 | BY10: 0 | BZ10: 0 | CA10: 0 | CB10: 0 | CC10: 0 | CD10: 0 | CE10: 0 | CG10: 0 | CH10: 0 | CI10: 0 | CJ10: 0 | CK10: 0 | CL10: 0 | CM10: 0 | CN10: 0 | CO10: 0 | CP10: 0 | CR10: 0 | CS10: 0 | CT10: 0 | CU10: 0 | CV10: 0 | CW10: 0 | CX10: 0 | CY10: 0 | CZ10: 0 | DA10: 0 | DC10: 0 | DD10: 0 | DE10: 0 | DF10: 0 | DG10: 0 | DH10: 0 | DI10: 0 | DJ10: 0 | DK10: 0 | DL10: 0 | DN10: 0 | DO10: 0 | DP10: 0 | DQ10: 0 | DR10: 0 | DS10: 0 | DT10: 0 | DU10: 0 | DV10: 0 | DW10: 0 | DY10: 96.76482485 | DZ10: 0 | EA10: 0 | EB10: 0 | EC10: 0 | ED10: 0 | EE10: 0 | EF10: 0 | EG10: 0 | EH10: 0
B11: Integration and automation | C11: Integration delivery and testing | D11: Workstream 2 | G11: 53.625 | H11: 0 | I11: 0 | J11: 0 | K11: 0 | L11: 0 | M11: 0 | N11: 150 | O11: 0 | P11: 0 | R11: 0.06841259383 | V11: 0.01363267503 | AA11: 0.9179547311 | AB11: 1 | AD11: 3.668625344 | AE11: 0 | AF11: 0 | AG11: 0 | AH11: 0 | AI11: 0 | AJ11: 0 | AK11: 10.26188907 | AL11: 0 | AM11: 0 | AO11: 0 | AP11: 0 | AQ11: 0 | AR11: 0 | AS11: 0 | AT11: 0 | AU11: 0 | AV11: 0 | AW11: 0 | AX11: 0 | AZ11: 0 | BA11: 0 | BB11: 0 | BC11: 0 | BD11: 0 | BE11: 0 | BF11: 0 | BG11: 0 | BH11: 0 | BI11: 0 | BK11: 0 | BL11: 0 | BM11: 0 | BN11: 0 | BO11: 0 | BP11: 0 | BQ11: 0 | BR11: 0 | BS11: 0 | BT11: 0 | BV11: 0.7310521986 | BW11: 0 | BX11: 0 | BY11: 0 | BZ11: 0 | CA11: 0 | CB11: 0 | CC11: 2.044901255 | CD11: 0 | CE11: 0 | CG11: 0 | CH11: 0 | CI11: 0 | CJ11: 0 | CK11: 0 | CL11: 0 | CM11: 0 | CN11: 0 | CO11: 0 | CP11: 0 | CR11: 0 | CS11: 0 | CT11: 0 | CU11: 0 | CV11: 0 | CW11: 0 | CX11: 0 | CY11: 0 | CZ11: 0 | DA11: 0 | DC11: 0 | DD11: 0 | DE11: 0 | DF11: 0 | DG11: 0 | DH11: 0 | DI11: 0 | DJ11: 0 | DK11: 0 | DL11: 0 | DN11: 0 | DO11: 0 | DP11: 0 | DQ11: 0 | DR11: 0 | DS11: 0 | DT11: 0 | DU11: 0 | DV11: 0 | DW11: 0 | DY11: 49.22532246 | DZ11: 0 | EA11: 0 | EB11: 0 | EC11: 0 | ED11: 0 | EE11: 0 | EF11: 137.6932097 | EG11: 0 | EH11: 0
B12: Customer Engagement and Experience | C12: Engagement design | D12: WorkStream 3 | G12: 10.725 | H12: 0 | I12: 0 | J12: 0 | K12: 0 | L12: 0 | M12: 0 | N12: 0 | O12: 0 | P12: 0 | R12: 0.06841259383 | AA12: 0.9315874062 | AB12: 1 | AD12: 0.7337250688 | AE12: 0 | AF12: 0 | AG12: 0 | AH12: 0 | AI12: 0 | AJ12: 0 | AK12: 0 | AL12: 0 | AM12: 0 | AO12: 0 | AP12: 0 | AQ12: 0 | AR12: 0 | AS12: 0 | AT12: 0 | AU12: 0 | AV12: 0 | AW12: 0 | AX12: 0 | AZ12: 0 | BA12: 0 | BB12: 0 | BC12: 0 | BD12: 0 | BE12: 0 | BF12: 0 | BG12: 0 | BH12: 0 | BI12: 0 | BK12: 0 | BL12: 0 | BM12: 0 | BN12: 0 | BO12: 0 | BP12: 0 | BQ12: 0 | BR12: 0 | BS12: 0 | BT12: 0 | BV12: 0 | BW12: 0 | BX12: 0 | BY12: 0 | BZ12: 0 | CA12: 0 | CB12: 0 | CC12: 0 | CD12: 0 | CE12: 0 | CG12: 0 | CH12: 0 | CI12: 0 | CJ12: 0 | CK12: 0 | CL12: 0 | CM12: 0 | CN12: 0 | CO12: 0 | CP12: 0 | CR12: 0 | CS12: 0 | CT12: 0 | CU12: 0 | CV12: 0 | CW12: 0 | CX12: 0 | CY12: 0 | CZ12: 0 | DA12: 0 | DC12: 0 | DD12: 0 | DE12: 0 | DF12: 0 | DG12: 0 | DH12: 0 | DI12: 0 | DJ12: 0 | DK12: 0 | DL12: 0 | DN12: 0 | DO12: 0 | DP12: 0 | DQ12: 0 | DR12: 0 | DS12: 0 | DT12: 0 | DU12: 0 | DV12: 0 | DW12: 0 | DY12: 9.991274931 | DZ12: 0 | EA12: 0 | EB12: 0 | EC12: 0 | ED12: 0 | EE12: 0 | EF12: 0 | EG12: 0 | EH12: 0
B13: Customer Engagement and Experience | C13: Engagement materials | D13: WorkStream 3 | G13: 8 | H13: 0 | I13: 0 | J13: 0 | K13: 0 | L13: 0 | M13: 0 | N13: 0 | O13: 0 | P13: 0 | R13: 0.06841259383 | S13: 0.03040910702 | T13: 0.03720664867 | AA13: 0.8639716505 | AB13: 1 | AD13: 0.5473007506 | AE13: 0 | AF13: 0 | AG13: 0 | AH13: 0 | AI13: 0 | AJ13: 0 | AK13: 0 | AL13: 0 | AM13: 0 | AO13: 0.2432728561 | AP13: 0 | AQ13: 0 | AR13: 0 | AS13: 0 | AT13: 0 | AU13: 0 | AV13: 0 | AW13: 0 | AX13: 0 | AZ13: 0.2976531894 | BA13: 0 | BB13: 0 | BC13: 0 | BD13: 0 | BE13: 0 | BF13: 0 | BG13: 0 | BH13: 0 | BI13: 0 | BK13: 0 | BL13: 0 | BM13: 0 | BN13: 0 | BO13: 0 | BP13: 0 | BQ13: 0 | BR13: 0 | BS13: 0 | BT13: 0 | BV13: 0 | BW13: 0 | BX13: 0 | BY13: 0 | BZ13: 0 | CA13: 0 | CB13: 0 | CC13: 0 | CD13: 0 | CE13: 0 | CG13: 0 | CH13: 0 | CI13: 0 | CJ13: 0 | CK13: 0 | CL13: 0 | CM13: 0 | CN13: 0 | CO13: 0 | CP13: 0 | CR13: 0 | CS13: 0 | CT13: 0 | CU13: 0 | CV13: 0 | CW13: 0 | CX13: 0 | CY13: 0 | CZ13: 0 | DA13: 0 | DC13: 0 | DD13: 0 | DE13: 0 | DF13: 0 | DG13: 0 | DH13: 0 | DI13: 0 | DJ13: 0 | DK13: 0 | DL13: 0 | DN13: 0 | DO13: 0 | DP13: 0 | DQ13: 0 | DR13: 0 | DS13: 0 | DT13: 0 | DU13: 0 | DV13: 0 | DW13: 0 | DY13: 6.911773204 | DZ13: 0 | EA13: 0 | EB13: 0 | EC13: 0 | ED13: 0 | EE13: 0 | EF13: 0 | EG13: 0 | EH13: 0
B14: Customer Engagement and Experience | C14: Engagement surveys and focus groups | D14: WorkStream 3 | G14: 44.475 | H14: 0 | I14: 0 | J14: 0 | K14: 0 | L14: 0 | M14: 15 | N14: 0 | O14: 0 | P14: 0 | R14: 0.06841259383 | V14: 0.01363267503 | AA14: 0.9179547311 | AB14: 1 | AD14: 3.042650111 | AE14: 0 | AF14: 0 | AG14: 0 | AH14: 0 | AI14: 0 | AJ14: 1.026188907 | AK14: 0 | AL14: 0 | AM14: 0 | AO14: 0 | AP14: 0 | AQ14: 0 | AR14: 0 | AS14: 0 | AT14: 0 | AU14: 0 | AV14: 0 | AW14: 0 | AX14: 0 | AZ14: 0 | BA14: 0 | BB14: 0 | BC14: 0 | BD14: 0 | BE14: 0 | BF14: 0 | BG14: 0 | BH14: 0 | BI14: 0 | BK14: 0 | BL14: 0 | BM14: 0 | BN14: 0 | BO14: 0 | BP14: 0 | BQ14: 0 | BR14: 0 | BS14: 0 | BT14: 0 | BV14: 0.6063132221 | BW14: 0 | BX14: 0 | BY14: 0 | BZ14: 0 | CA14: 0 | CB14: 0.2044901255 | CC14: 0 | CD14: 0 | CE14: 0 | CG14: 0 | CH14: 0 | CI14: 0 | CJ14: 0 | CK14: 0 | CL14: 0 | CM14: 0 | CN14: 0 | CO14: 0 | CP14: 0 | CR14: 0 | CS14: 0 | CT14: 0 | CU14: 0 | CV14: 0 | CW14: 0 | CX14: 0 | CY14: 0 | CZ14: 0 | DA14: 0 | DC14: 0 | DD14: 0 | DE14: 0 | DF14: 0 | DG14: 0 | DH14: 0 | DI14: 0 | DJ14: 0 | DK14: 0 | DL14: 0 | DN14: 0 | DO14: 0 | DP14: 0 | DQ14: 0 | DR14: 0 | DS14: 0 | DT14: 0 | DU14: 0 | DV14: 0 | DW14: 0 | DY14: 40.82603667 | DZ14: 0 | EA14: 0 | EB14: 0 | EC14: 0 | ED14: 0 | EE14: 13.76932097 | EF14: 0 | EG14: 0 | EH14: 0
B15: Customer Engagement and Experience | C15: Engagement primary research | D15: WorkStream 3 | G15: 21.45 | H15: 0 | I15: 50 | J15: 0 | K15: 0 | L15: 0 | M15: 0 | N15: 0 | O15: 0 | P15: 0 | R15: 0.06841259383 | V15: 0.01363267503 | AA15: 0.9179547311 | AB15: 1 | AD15: 1.467450138 | AE15: 0 | AF15: 3.420629691 | AG15: 0 | AH15: 0 | AI15: 0 | AJ15: 0 | AK15: 0 | AL15: 0 | AM15: 0 | AO15: 0 | AP15: 0 | AQ15: 0 | AR15: 0 | AS15: 0 | AT15: 0 | AU15: 0 | AV15: 0 | AW15: 0 | AX15: 0 | AZ15: 0 | BA15: 0 | BB15: 0 | BC15: 0 | BD15: 0 | BE15: 0 | BF15: 0 | BG15: 0 | BH15: 0 | BI15: 0 | BK15: 0 | BL15: 0 | BM15: 0 | BN15: 0 | BO15: 0 | BP15: 0 | BQ15: 0 | BR15: 0 | BS15: 0 | BT15: 0 | BV15: 0.2924208794 | BW15: 0 | BX15: 0.6816337516 | BY15: 0 | BZ15: 0 | CA15: 0 | CB15: 0 | CC15: 0 | CD15: 0 | CE15: 0 | CG15: 0 | CH15: 0 | CI15: 0 | CJ15: 0 | CK15: 0 | CL15: 0 | CM15: 0 | CN15: 0 | CO15: 0 | CP15: 0 | CR15: 0 | CS15: 0 | CT15: 0 | CU15: 0 | CV15: 0 | CW15: 0 | CX15: 0 | CY15: 0 | CZ15: 0 | DA15: 0 | DC15: 0 | DD15: 0 | DE15: 0 | DF15: 0 | DG15: 0 | DH15: 0 | DI15: 0 | DJ15: 0 | DK15: 0 | DL15: 0 | DN15: 0 | DO15: 0 | DP15: 0 | DQ15: 0 | DR15: 0 | DS15: 0 | DT15: 0 | DU15: 0 | DV15: 0 | DW15: 0 | DY15: 19.69012898 | DZ15: 0 | EA15: 45.89773656 | EB15: 0 | EC15: 0 | ED15: 0 | EE15: 0 | EF15: 0 | EG15: 0 | EH15: 0
B16: Trials | C16: Overal Trial Design | D16: Workstream 4 | G16: 82.9 | H16: 0 | I16: 0 | J16: 0 | K16: 0 | L16: 0 | M16: 0 | N16: 0 | O16: 0 | P16: 0 | R16: 0.06841259383 | V16: 0.01363267503 | AA16: 0.9179547311 | AB16: 1 | AD16: 5.671404028 | AE16: 0 | AF16: 0 | AG16: 0 | AH16: 0 | AI16: 0 | AJ16: 0 | AK16: 0 | AL16: 0 | AM16: 0 | AO16: 0 | AP16: 0 | AQ16: 0 | AR16: 0 | AS16: 0 | AT16: 0 | AU16: 0 | AV16: 0 | AW16: 0 | AX16: 0 | AZ16: 0 | BA16: 0 | BB16: 0 | BC16: 0 | BD16: 0 | BE16: 0 | BF16: 0 | BG16: 0 | BH16: 0 | BI16: 0 | BK16: 0 | BL16: 0 | BM16: 0 | BN16: 0 | BO16: 0 | BP16: 0 | BQ16: 0 | BR16: 0 | BS16: 0 | BT16: 0 | BV16: 1.13014876 | BW16: 0 | BX16: 0 | BY16: 0 | BZ16: 0 | CA16: 0 | CB16: 0 | CC16: 0 | CD16: 0 | CE16: 0 | CG16: 0 | CH16: 0 | CI16: 0 | CJ16: 0 | CK16: 0 | CL16: 0 | CM16: 0 | CN16: 0 | CO16: 0 | CP16: 0 | CR16: 0 | CS16: 0 | CT16: 0 | CU16: 0 | CV16: 0 | CW16: 0 | CX16: 0 | CY16: 0 | CZ16: 0 | DA16: 0 | DC16: 0 | DD16: 0 | DE16: 0 | DF16: 0 | DG16: 0 | DH16: 0 | DI16: 0 | DJ16: 0 | DK16: 0 | DL16: 0 | DN16: 0 | DO16: 0 | DP16: 0 | DQ16: 0 | DR16: 0 | DS16: 0 | DT16: 0 | DU16: 0 | DV16: 0 | DW16: 0 | DY16: 76.09844721 | DZ16: 0 | EA16: 0 | EB16: 0 | EC16: 0 | ED16: 0 | EE16: 0 | EF16: 0 | EG16: 0 | EH16: 0
B17: Trials | C17: Simulation modelling | D17: Workstream 4 | G17: 115.925 | H17: 0 | I17: 20 | J17: 0 | K17: 0 | L17: 0 | M17: 0 | N17: 0 | O17: 0 | P17: 0 | R17: 0.06841259383 | S17: 0.03040910702 | T17: 0.03720664867 | U17: 0.01593641862 | V17: 0.01363267503 | AA17: 0.8344025568 | AB17: 1 | AD17: 7.93072994 | AE17: 0 | AF17: 1.368251877 | AG17: 0 | AH17: 0 | AI17: 0 | AJ17: 0 | AK17: 0 | AL17: 0 | AM17: 0 | AO17: 3.525175731 | AP17: 0 | AQ17: 0.6081821404 | AR17: 0 | AS17: 0 | AT17: 0 | AU17: 0 | AV17: 0 | AW17: 0 | AX17: 0 | AZ17: 4.313180747 | BA17: 0 | BB17: 0.7441329734 | BC17: 0 | BD17: 0 | BE17: 0 | BF17: 0 | BG17: 0 | BH17: 0 | BI17: 0 | BK17: 1.847429329 | BL17: 0 | BM17: 0.3187283725 | BN17: 0 | BO17: 0 | BP17: 0 | BQ17: 0 | BR17: 0 | BS17: 0 | BT17: 0 | BV17: 1.580367853 | BW17: 0 | BX17: 0.2726535007 | BY17: 0 | BZ17: 0 | CA17: 0 | CB17: 0 | CC17: 0 | CD17: 0 | CE17: 0 | CG17: 0 | CH17: 0 | CI17: 0 | CJ17: 0 | CK17: 0 | CL17: 0 | CM17: 0 | CN17: 0 | CO17: 0 | CP17: 0 | CR17: 0 | CS17: 0 | CT17: 0 | CU17: 0 | CV17: 0 | CW17: 0 | CX17: 0 | CY17: 0 | CZ17: 0 | DA17: 0 | DC17: 0 | DD17: 0 | DE17: 0 | DF17: 0 | DG17: 0 | DH17: 0 | DI17: 0 | DJ17: 0 | DK17: 0 | DL17: 0 | DN17: 0 | DO17: 0 | DP17: 0 | DQ17: 0 | DR17: 0 | DS17: 0 | DT17: 0 | DU17: 0 | DV17: 0 | DW17: 0 | DY17: 96.7281164 | DZ17: 0 | EA17: 16.68805114 | EB17: 0 | EC17: 0 | ED17: 0 | EE17: 0 | EF17: 0 | EG17: 0 | EH17: 0
B18: Trials | C18: Trial delivery and analysis | D18: Workstream 4 | G18: 308.025 | H18: 0 | I18: 0 | J18: 0 | K18: 0 | L18: 0 | M18: 60 | N18: 60 | O18: 0 | P18: 0 | S18: 0.03040910702 | AA18: 0.969590893 | AB18: 1 | AD18: 0 | AE18: 0 | AF18: 0 | AG18: 0 | AH18: 0 | AI18: 0 | AJ18: 0 | AK18: 0 | AL18: 0 | AM18: 0 | AO18: 9.366765189 | AP18: 0 | AQ18: 0 | AR18: 0 | AS18: 0 | AT18: 0 | AU18: 1.824546421 | AV18: 1.824546421 | AW18: 0 | AX18: 0 | AZ18: 0 | BA18: 0 | BB18: 0 | BC18: 0 | BD18: 0 | BE18: 0 | BF18: 0 | BG18: 0 | BH18: 0 | BI18: 0 | BK18: 0 | BL18: 0 | BM18: 0 | BN18: 0 | BO18: 0 | BP18: 0 | BQ18: 0 | BR18: 0 | BS18: 0 | BT18: 0 | BV18: 0 | BW18: 0 | BX18: 0 | BY18: 0 | BZ18: 0 | CA18: 0 | CB18: 0 | CC18: 0 | CD18: 0 | CE18: 0 | CG18: 0 | CH18: 0 | CI18: 0 | CJ18: 0 | CK18: 0 | CL18: 0 | CM18: 0 | CN18: 0 | CO18: 0 | CP18: 0 | CR18: 0 | CS18: 0 | CT18: 0 | CU18: 0 | CV18: 0 | CW18: 0 | CX18: 0 | CY18: 0 | CZ18: 0 | DA18: 0 | DC18: 0 | DD18: 0 | DE18: 0 | DF18: 0 | DG18: 0 | DH18: 0 | DI18: 0 | DJ18: 0 | DK18: 0 | DL18: 0 | DN18: 0 | DO18: 0 | DP18: 0 | DQ18: 0 | DR18: 0 | DS18: 0 | DT18: 0 | DU18: 0 | DV18: 0 | DW18: 0 | DY18: 298.6582348 | DZ18: 0 | EA18: 0 | EB18: 0 | EC18: 0 | ED18: 0 | EE18: 58.17545358 | EF18: 58.17545358 | EG18: 0 | EH18: 0
B19: Trials | C19: Business case update and transistion | D19: Workstream 4 | G19: 64.0875 | H19: 0 | I19: 0 | J19: 0 | K19: 0 | L19: 0 | M19: 0 | N19: 0 | O19: 0 | P19: 0 | R19: 0.06841259383 | S19: 0.03040910702 | T19: 0.03720664867 | V19: 0.01363267503 | W19: 0.0110702007 | AA19: 0.8392687748 | AB19: 1 | AD19: 4.384392107 | AE19: 0 | AF19: 0 | AG19: 0 | AH19: 0 | AI19: 0 | AJ19: 0 | AK19: 0 | AL19: 0 | AM19: 0 | AO19: 1.948843646 | AP19: 0 | AQ19: 0 | AR19: 0 | AS19: 0 | AT19: 0 | AU19: 0 | AV19: 0 | AW19: 0 | AX19: 0 | AZ19: 2.384481097 | BA19: 0 | BB19: 0 | BC19: 0 | BD19: 0 | BE19: 0 | BF19: 0 | BG19: 0 | BH19: 0 | BI19: 0 | BK19: 0 | BL19: 0 | BM19: 0 | BN19: 0 | BO19: 0 | BP19: 0 | BQ19: 0 | BR19: 0 | BS19: 0 | BT19: 0 | BV19: 0.8736840611 | BW19: 0 | BX19: 0 | BY19: 0 | BZ19: 0 | CA19: 0 | CB19: 0 | CC19: 0 | CD19: 0 | CE19: 0 | CG19: 0.7094614871 | CH19: 0 | CI19: 0 | CJ19: 0 | CK19: 0 | CL19: 0 | CM19: 0 | CN19: 0 | CO19: 0 | CP19: 0 | CR19: 0 | CS19: 0 | CT19: 0 | CU19: 0 | CV19: 0 | CW19: 0 | CX19: 0 | CY19: 0 | CZ19: 0 | DA19: 0 | DC19: 0 | DD19: 0 | DE19: 0 | DF19: 0 | DG19: 0 | DH19: 0 | DI19: 0 | DJ19: 0 | DK19: 0 | DL19: 0 | DN19: 0 | DO19: 0 | DP19: 0 | DQ19: 0 | DR19: 0 | DS19: 0 | DT19: 0 | DU19: 0 | DV19: 0 | DW19: 0 | DY19: 53.7866376 | DZ19: 0 | EA19: 0 | EB19: 0 | EC19: 0 | ED19: 0 | EE19: 0 | EF19: 0 | EG19: 0 | EH19: 0
B20: PM Management and knowledge dissemination | C20: PM Labour | D20: WorkStream 5 | G20: 251.63 | H20: 0 | I20: 0 | J20: 0 | K20: 0 | L20: 0 | M20: 0 | N20: 0 | O20: 0 | P20: 0 | R20: 0.06841259383 | U20: 0.01593641862 | V20: 0.01363267503 | AA20: 0.9020183125 | AB20: 1 | AD20: 17.21466099 | AE20: 0 | AF20: 0 | AG20: 0 | AH20: 0 | AI20: 0 | AJ20: 0 | AK20: 0 | AL20: 0 | AM20: 0 | AO20: 0 | AP20: 0 | AQ20: 0 | AR20: 0 | AS20: 0 | AT20: 0 | AU20: 0 | AV20: 0 | AW20: 0 | AX20: 0 | AZ20: 0 | BA20: 0 | BB20: 0 | BC20: 0 | BD20: 0 | BE20: 0 | BF20: 0 | BG20: 0 | BH20: 0 | BI20: 0 | BK20: 4.010081018 | BL20: 0 | BM20: 0 | BN20: 0 | BO20: 0 | BP20: 0 | BQ20: 0 | BR20: 0 | BS20: 0 | BT20: 0 | BV20: 3.430390018 | BW20: 0 | BX20: 0 | BY20: 0 | BZ20: 0 | CA20: 0 | CB20: 0 | CC20: 0 | CD20: 0 | CE20: 0 | CG20: 0 | CH20: 0 | CI20: 0 | CJ20: 0 | CK20: 0 | CL20: 0 | CM20: 0 | CN20: 0 | CO20: 0 | CP20: 0 | CR20: 0 | CS20: 0 | CT20: 0 | CU20: 0 | CV20: 0 | CW20: 0 | CX20: 0 | CY20: 0 | CZ20: 0 | DA20: 0 | DC20: 0 | DD20: 0 | DE20: 0 | DF20: 0 | DG20: 0 | DH20: 0 | DI20: 0 | DJ20: 0 | DK20: 0 | DL20: 0 | DN20: 0 | DO20: 0 | DP20: 0 | DQ20: 0 | DR20: 0 | DS20: 0 | DT20: 0 | DU20: 0 | DV20: 0 | DW20: 0 | DY20: 226.974868 | DZ20: 0 | EA20: 0 | EB20: 0 | EC20: 0 | ED20: 0 | EE20: 0 | EF20: 0 | EG20: 0 | EH20: 0
B21: PM Management and knowledge dissemination | C21: Knowledge transfer and dissemination | D21: WorkStream 5 | G21: 111.45 | H21: 0 | I21: 66 | J21: 0 | K21: 0 | L21: 0 | M21: 0 | N21: 0 | O21: 0 | P21: 15 | Q21: Total Cost | R21: 0.06841259383 | S21: 0.03040910702 | T21: 0.03720664867 | V21: 0.01363267503 | AA21: 0.8503389755 | AB21: =SUM(R21:AA21) -> 1 | AD21: 7.624583582 | AE21: 0 | AF21: 4.515231193 | AG21: 0 | AH21: 0 | AI21: 0 | AJ21: 0 | AK21: 0 | AL21: 0 | AM21: 1.026188907 | AO21: 3.389094977 | AP21: 0 | AQ21: 2.007001063 | AR21: 0 | AS21: 0 | AT21: 0 | AU21: 0 | AV21: 0 | AW21: 0 | AX21: 0.4561366053 | AZ21: 4.146680994 | BA21: 0 | BB21: 2.455638812 | BC21: 0 | BD21: 0 | BE21: 0 | BF21: 0 | BG21: 0 | BH21: 0 | BI21: 0.5580997301 | BK21: 0 | BL21: 0 | BM21: 0 | BN21: 0 | BO21: 0 | BP21: 0 | BQ21: 0 | BR21: 0 | BS21: 0 | BT21: 0 | BV21: 1.519361632 | BW21: 0 | BX21: 0.8997565521 | BY21: 0 | BZ21: 0 | CA21: 0 | CB21: 0 | CC21: 0 | CD21: 0 | CE21: 0.2044901255 | CG21: 0 | CH21: 0 | CI21: 0 | CJ21: 0 | CK21: 0 | CL21: 0 | CM21: 0 | CN21: 0 | CO21: 0 | CP21: 0 | CR21: 0 | CS21: 0 | CT21: 0 | CU21: 0 | CV21: 0 | CW21: 0 | CX21: 0 | CY21: 0 | CZ21: 0 | DA21: 0 | DC21: 0 | DD21: 0 | DE21: 0 | DF21: 0 | DG21: 0 | DH21: 0 | DI21: 0 | DJ21: 0 | DK21: 0 | DL21: 0 | DN21: 0 | DO21: 0 | DP21: 0 | DQ21: 0 | DR21: 0 | DS21: 0 | DT21: 0 | DU21: 0 | DV21: 0 | DW21: 0 | DY21: 94.77027881 | DZ21: 0 | EA21: 56.12237238 | EB21: 0 | EC21: 0 | ED21: 0 | EE21: 0 | EF21: 0 | EG21: 0 | EH21: 12.75508463
B22: Total | G22: =SUM(G7:G21) -> 1194.655 | H22: =SUM(H7:H21) -> 0 | I22: 136 | J22: 0 | K22: 0 | L22: 0 | M22: 75 | N22: 215 | O22: 0 | P22: 15 | Q22: =SUM(G22:P22) -> 1635.655 | AD22: =SUM(AD7:AD21) -> 60.65665807 | AE22: =SUM(AE7:AE21) -> 0 | AF22: 9.304112761 | AG22: 0 | AH22: 0 | AI22: 0 | AJ22: 1.026188907 | AK22: 10.60395204 | AL22: 0 | AM22: 1.026188907 | AO22: =SUM(AO7:AO21) -> 21.87897239 | AP22: =SUM(AP7:AP21) -> 0 | AQ22: 2.615183204 | AR22: 0 | AS22: 0 | AT22: 0 | AU22: 1.824546421 | AV22: 1.824546421 | AW22: 0 | AX22: 0.4561366053 | AZ22: =SUM(AZ7:AZ21) -> 15.30914068 | BA22: =SUM(BA7:BA21) -> 0 | BB22: 3.199771786 | BC22: 0 | BD22: 0 | BE22: 0 | BF22: 0 | BG22: 0 | BH22: 0 | BI22: 0.5580997301 | BK22: =SUM(BK7:BK21) -> 5.857510347 | BL22: =SUM(BL7:BL21) -> 0 | BM22: 0.3187283725 | BN22: 0 | BO22: 0 | BP22: 0 | BQ22: 0 | BR22: 0 | BS22: 0 | BT22: 0 | BV22: =SUM(BV7:BV21) -> 10.16373863 | BW22: =SUM(BW7:BW21) -> 0 | BX22: 1.854043804 | BY22: 0 | BZ22: 0 | CA22: 0 | CB22: 0.2044901255 | CC22: 2.044901255 | CD22: 0 | CE22: 0.2044901255 | CG22: =SUM(CG7:CG21) -> 0.7292494708 | CH22: =SUM(CH7:CH21) -> 0 | CI22: 0 | CJ22: 0 | CK22: 0 | CL22: 0 | CM22: 0 | CN22: 0 | CO22: 0 | CP22: 0 | CR22: =SUM(CR7:CR21) -> 0 | CS22: =SUM(CS7:CS21) -> 0 | CT22: 0 | CU22: 0 | CV22: 0 | CW22: 0 | CX22: 0 | CY22: 0 | CZ22: 0 | DA22: 0 | DC22: =SUM(DC7:DC21) -> 0 | DD22: =SUM(DD7:DD21) -> 0 | DE22: 0 | DF22: 0 | DG22: 0 | DH22: 0 | DI22: 0 | DJ22: 0 | DK22: 0 | DL22: 0 | DN22: =SUM(DN7:DN21) -> 0 | DO22: =SUM(DO7:DO21) -> 0 | DP22: 0 | DQ22: 0 | DR22: 0 | DS22: 0 | DT22: 0 | DU22: 0 | DV22: 0 | DW22: 0 | DY22: =SUM(DY7:DY21) -> 1080.05973 | DZ22: =SUM(DZ7:DZ21) -> 0 | EA22: 118.7081601 | EB22: 0 | EC22: 0 | ED22: 0 | EE22: 71.94477455 | EF22: 200.5266003 | EG22: 0 | EH22: 12.75508463
D268: Totals

Sheet 2025-2026
B1: Project Costs in 2025-2026
G4: Total Cost £K | R4: Funding source % | AD4: Licensee Compulsory Contribution/Direct Benefits | AO4: Guidehouse | AZ4: Octopus Energy | BK4: Passiv | BV4: SERO | CG4: SP Energy Networks | CR4: Welsh Government | DC4: West Midlands Combined Authority | DN4: Licensee Extra Contribution | DY4: Outstanding Funding Required
G5: Labour | H5: Equipment | I5: Contractors | J5: IT | K5: IPR Costs | L5: Travel & Expenses | M5: Payments to users | N5: Contingency | O5: Decommissioning | P5: Other | R5: Licensee Compulsory Contribution /Direct Benefits | S5: Guidehouse | T5: Octopus Energy | U5: Passiv Systems | V5: SERO | W5: SP Energy Networks | X5: Welsh Government | Y5: West Midlands Combined Authority# | Z5: Licensee Extra Contribution | AA5: Oustanding Funding Required | AB5: Total | AD5: Labour | AE5: Equipment | AF5: Contractors | AG5: IT | AH5: IPR Costs | AI5: Travel & Expenses | AJ5: Payments to users | AK5: Contingency | AL5: Decommissioning | AM5: Other | AO5: Labour | AP5: Equipment | AQ5: Contractors | AR5: IT | AS5: IPR Costs | AT5: Travel & Expenses | AU5: Payments to users | AV5: Contingency | AW5: Decommissioning | AX5: Other | AZ5: Labour | BA5: Equipment | BB5: Contractors | BC5: IT | BD5: IPR Costs | BE5: Travel & Expenses | BF5: Payments to users | BG5: Contingency | BH5: Decommissioning | BI5: Other | BK5: Labour | BL5: Equipment | BM5: Contractors | BN5: IT | BO5: IPR Costs | BP5: Travel & Expenses | BQ5: Payments to users | BR5: Contingency | BS5: Decommissioning | BT5: Other | BV5: Labour | BW5: Equipment | BX5: Contractors | BY5: IT | BZ5: IPR Costs | CA5: Travel & Expenses | CB5: Payments to users | CC5: Contingency | CD5: Decommissioning | CE5: Other | CG5: Labour | CH5: Equipment | CI5: Contractors | CJ5: IT | CK5: IPR Costs | CL5: Travel & Expenses | CM5: Payments to users | CN5: Contingency | CO5: Decommissioning | CP5: Other | CR5: Labour | CS5: Equipment | CT5: Contractors | CU5: IT | CV5: IPR Costs | CW5: Travel & Expenses | CX5: Payments to users | CY5: Contingency | CZ5: Decommissioning | DA5: Other | DC5: Labour | DD5: Equipment | DE5: Contractors | DF5: IT | DG5: IPR Costs | DH5: Travel & Expenses | DI5: Payments to users | DJ5: Contingency | DK5: Decommissioning | DL5: Other | DN5: Labour | DO5: Equipment | DP5: Contractors | DQ5: IT | DR5: IPR Costs | DS5: Travel & Expenses | DT5: Payments to users | DU5: Contingency | DV5: Decommissioning | DW5: Other | DY5: Labour | DZ5: Equipment | EA5: Contractors | EB5: IT | EC5: IPR Costs | ED5: Travel & Expenses | EE5: Payments to users | EF5: Contingency | EG5: Decommissioning | EH5: Other
B6: Description | C6: Task | D6: Project Workstream
B7: Commercial Arrangements | C7: Design M1 & M2 | D7: Workstream 1 | G7: 10.725 | H7: 0 | I7: 0 | J7: 0 | K7: 0 | L7: 0 | M7: 0 | N7: 0 | O7: 0 | P7: 0 | R7: 0.05051010188 | AA7: 0.9494898981 | AB7: =SUM(R7:AA7) -> 1 | AD7: =$R7*G7 -> 0.5417208426 | AE7: =$R7*H7 -> 0 | AF7: =$R7*I7 -> 0 | AG7: 0 | AH7: 0 | AI7: 0 | AJ7: 0 | AK7: 0 | AL7: 0 | AM7: 0 | AO7: =$S7*G7 -> 0 | AP7: =$S7*H7 -> 0 | AQ7: 0 | AR7: 0 | AS7: 0 | AT7: 0 | AU7: 0 | AV7: 0 | AW7: 0 | AX7: 0 | AZ7: =$T7*G7 -> 0 | BA7: =$T7*H7 -> 0 | BB7: 0 | BC7: 0 | BD7: 0 | BE7: 0 | BF7: 0 | BG7: 0 | BH7: 0 | BI7: 0 | BK7: =$U7*G7 -> 0 | BL7: 0 | BM7: 0 | BN7: 0 | BO7: 0 | BP7: 0 | BQ7: 0 | BR7: 0 | BS7: 0 | BT7: 0 | BV7: =$V7*G7 -> 0 | BW7: =$V7*H7 -> 0 | BX7: 0 | BY7: 0 | BZ7: 0 | CA7: 0 | CB7: 0 | CC7: 0 | CD7: 0 | CE7: 0 | CG7: =$W7*G7 -> 0 | CH7: =$W7*H7 -> 0 | CI7: 0 | CJ7: 0 | CK7: 0 | CL7: 0 | CM7: 0 | CN7: 0 | CO7: 0 | CP7: 0 | CR7: =$X7*G7 -> 0 | CS7: =$X7*H7 -> 0 | CT7: 0 | CU7: 0 | CV7: 0 | CW7: 0 | CX7: 0 | CY7: 0 | CZ7: 0 | DA7: 0 | DC7: =$Y7*G7 -> 0 | DD7: =$Y7*H7 -> 0 | DE7: 0 | DF7: 0 | DG7: 0 | DH7: 0 | DI7: 0 | DJ7: 0 | DK7: 0 | DL7: 0 | DN7: =$Z7*G7 -> 0 | DO7: =$Z7*H7 -> 0 | DP7: 0 | DQ7: 0 | DR7: 0 | DS7: 0 | DT7: 0 | DU7: 0 | DV7: 0 | DW7: 0 | DY7: =$AA7*G7 -> 10.18327916 | DZ7: =$AA7*H7 -> 0 | EA7: 0 | EB7: 0 | EC7: 0 | ED7: 0 | EE7: 0 | EF7: 0 | EG7: 0 | EH7: =$AA7*P7 -> 0
B8: Commercial Arrangements | C8: Refine M1 & M2 & Design M3 | D8: Workstream 1 | G8: 0 | H8: 0 | I8: 0 | J8: 0 | K8: 0 | L8: 0 | M8: 0 | N8: 0 | O8: 0 | P8: 0 | R8: 0.05051010188 | AA8: 0.9494898981 | AB8: =SUM(R8:AA8) -> 1 | AD8: =$R8*G8 -> 0 | AE8: =$R8*H8 -> 0 | AF8: 0 | AG8: 0 | AH8: 0 | AI8: 0 | AJ8: 0 | AK8: 0 | AL8: 0 | AM8: 0 | AO8: =$S8*G8 -> 0 | AP8: 0 | AQ8: 0 | AR8: 0 | AS8: 0 | AT8: 0 | AU8: 0 | AV8: 0 | AW8: 0 | AX8: 0 | AZ8: =$T8*G8 -> 0 | BA8: 0 | BB8: 0 | BC8: 0 | BD8: 0 | BE8: 0 | BF8: 0 | BG8: 0 | BH8: 0 | BI8: 0 | BK8: =$U8*G8 -> 0 | BL8: =$U8*H8 -> 0 | BM8: =$U8*I8 -> 0 | BN8: =$U8*J8 -> 0 | BO8: =$U8*K8 -> 0 | BP8: =$U8*L8 -> 0 | BQ8: =$U8*M8 -> 0 | BR8: =$U8*N8 -> 0 | BS8: =$U8*O8 -> 0 | BT8: =$U8*P8 -> 0 | BV8: =$V8*G8 -> 0 | BW8: 0 | BX8: 0 | BY8: 0 | BZ8: 0 | CA8: 0 | CB8: 0 | CC8: 0 | CD8: 0 | CE8: 0 | CG8: =$W8*G8 -> 0 | CH8: 0 | CI8: 0 | CJ8: 0 | CK8: 0 | CL8: 0 | CM8: 0 | CN8: 0 | CO8: 0 | CP8: 0 | CR8: =$X8*G8 -> 0 | CS8: 0 | CT8: 0 | CU8: 0 | CV8: 0 | CW8: 0 | CX8: 0 | CY8: 0 | CZ8: 0 | DA8: 0 | DC8: =$Y8*G8 -> 0 | DD8: 0 | DE8: 0 | DF8: 0 | DG8: 0 | DH8: 0 | DI8: 0 | DJ8: 0 | DK8: 0 | DL8: 0 | DN8: =$Z8*G8 -> 0 | DO8: 0 | DP8: 0 | DQ8: 0 | DR8: 0 | DS8: 0 | DT8: 0 | DU8: 0 | DV8: 0 | DW8: 0 | DY8: =$AA8*G8 -> 0 | DZ8: 0 | EA8: 0 | EB8: 0 | EC8: 0 | ED8: 0 | EE8: 0 | EF8: 0 | EG8: 0 | EH8: 0
B9: Commercial Arrangements | C9: Refine M1 & M2 & refine M3 | D9: Workstream 1 | G9: 25.725 | H9: 0 | I9: 0 | J9: 0 | K9: 0 | L9: 0 | M9: 0 | N9: 5 | O9: 0 | P9: 0 | R9: 0.05051010188 | AA9: 0.9494898981 | AB9: 1 | AD9: 1.299372371 | AE9: 0 | AF9: 0 | AG9: 0 | AH9: 0 | AI9: 0 | AJ9: 0 | AK9: 0.2525505094 | AL9: 0 | AM9: 0 | AO9: 0 | AP9: 0 | AQ9: 0 | AR9: 0 | AS9: 0 | AT9: 0 | AU9: 0 | AV9: 0 | AW9: 0 | AX9: 0 | AZ9: 0 | BA9: 0 | BB9: 0 | BC9: 0 | BD9: 0 | BE9: 0 | BF9: 0 | BG9: 0 | BH9: 0 | BI9: 0 | BK9: 0 | BL9: 0 | BM9: 0 | BN9: 0 | BO9: 0 | BP9: 0 | BQ9: 0 | BR9: 0 | BS9: 0 | BT9: 0 | BV9: 0 | BW9: 0 | BX9: 0 | BY9: 0 | BZ9: 0 | CA9: 0 | CB9: 0 | CC9: 0 | CD9: 0 | CE9: 0 | CG9: 0 | CH9: 0 | CI9: 0 | CJ9: 0 | CK9: 0 | CL9: 0 | CM9: 0 | CN9: 0 | CO9: 0 | CP9: 0 | CR9: 0 | CS9: 0 | CT9: 0 | CU9: 0 | CV9: 0 | CW9: 0 | CX9: 0 | CY9: 0 | CZ9: 0 | DA9: 0 | DC9: 0 | DD9: 0 | DE9: 0 | DF9: 0 | DG9: 0 | DH9: 0 | DI9: 0 | DJ9: 0 | DK9: 0 | DL9: 0 | DN9: 0 | DO9: 0 | DP9: 0 | DQ9: 0 | DR9: 0 | DS9: 0 | DT9: 0 | DU9: 0 | DV9: 0 | DW9: 0 | DY9: 24.42562763 | DZ9: 0 | EA9: 0 | EB9: 0 | EC9: 0 | ED9: 0 | EE9: 0 | EF9: 4.747449491 | EG9: 0 | EH9: 0
B10: Integration and automation | C10: Overall integration planning | D10: Workstream 2 | G10: 84 | H10: 0 | I10: 0 | J10: 0 | K10: 0 | L10: 0 | M10: 0 | N10: 0 | O10: 0 | P10: 0 | R10: 0.05051010188 | AA10: 0.9494898981 | AB10: 1 | AD10: 4.242848558 | AE10: 0 | AF10: 0 | AG10: 0 | AH10: 0 | AI10: 0 | AJ10: 0 | AK10: 0 | AL10: 0 | AM10: 0 | AO10: 0 | AP10: 0 | AQ10: 0 | AR10: 0 | AS10: 0 | AT10: 0 | AU10: 0 | AV10: 0 | AW10: 0 | AX10: 0 | AZ10: 0 | BA10: 0 | BB10: 0 | BC10: 0 | BD10: 0 | BE10: 0 | BF10: 0 | BG10: 0 | BH10: 0 | BI10: 0 | BK10: 0 | BL10: 0 | BM10: 0 | BN10: 0 | BO10: 0 | BP10: 0 | BQ10: 0 | BR10: 0 | BS10: 0 | BT10: 0 | BV10: 0 | BW10: 0 | BX10: 0 | BY10: 0 | BZ10: 0 | CA10: 0 | CB10: 0 | CC10: 0 | CD10: 0 | CE10: 0 | CG10: 0 | CH10: 0 | CI10: 0 | CJ10: 0 | CK10: 0 | CL10: 0 | CM10: 0 | CN10: 0 | CO10: 0 | CP10: 0 | CR10: 0 | CS10: 0 | CT10: 0 | CU10: 0 | CV10: 0 | CW10: 0 | CX10: 0 | CY10: 0 | CZ10: 0 | DA10: 0 | DC10: 0 | DD10: 0 | DE10: 0 | DF10: 0 | DG10: 0 | DH10: 0 | DI10: 0 | DJ10: 0 | DK10: 0 | DL10: 0 | DN10: 0 | DO10: 0 | DP10: 0 | DQ10: 0 | DR10: 0 | DS10: 0 | DT10: 0 | DU10: 0 | DV10: 0 | DW10: 0 | DY10: 79.75715144 | DZ10: 0 | EA10: 0 | EB10: 0 | EC10: 0 | ED10: 0 | EE10: 0 | EF10: 0 | EG10: 0 | EH10: 0
B11: Integration and automation | C11: Integration delivery and testing | D11: Workstream 2 | G11: 25.025 | H11: 0 | I11: 0 | J11: 0 | K11: 0 | L11: 0 | M11: 0 | N11: 0 | O11: 0 | P11: 0 | R11: 0.05051010188 | AA11: 0.9494898981 | AB11: 1 | AD11: 1.264015299 | AE11: 0 | AF11: 0 | AG11: 0 | AH11: 0 | AI11: 0 | AJ11: 0 | AK11: 0 | AL11: 0 | AM11: 0 | AO11: 0 | AP11: 0 | AQ11: 0 | AR11: 0 | AS11: 0 | AT11: 0 | AU11: 0 | AV11: 0 | AW11: 0 | AX11: 0 | AZ11: 0 | BA11: 0 | BB11: 0 | BC11: 0 | BD11: 0 | BE11: 0 | BF11: 0 | BG11: 0 | BH11: 0 | BI11: 0 | BK11: 0 | BL11: 0 | BM11: 0 | BN11: 0 | BO11: 0 | BP11: 0 | BQ11: 0 | BR11: 0 | BS11: 0 | BT11: 0 | BV11: 0 | BW11: 0 | BX11: 0 | BY11: 0 | BZ11: 0 | CA11: 0 | CB11: 0 | CC11: 0 | CD11: 0 | CE11: 0 | CG11: 0 | CH11: 0 | CI11: 0 | CJ11: 0 | CK11: 0 | CL11: 0 | CM11: 0 | CN11: 0 | CO11: 0 | CP11: 0 | CR11: 0 | CS11: 0 | CT11: 0 | CU11: 0 | CV11: 0 | CW11: 0 | CX11: 0 | CY11: 0 | CZ11: 0 | DA11: 0 | DC11: 0 | DD11: 0 | DE11: 0 | DF11: 0 | DG11: 0 | DH11: 0 | DI11: 0 | DJ11: 0 | DK11: 0 | DL11: 0 | DN11: 0 | DO11: 0 | DP11: 0 | DQ11: 0 | DR11: 0 | DS11: 0 | DT11: 0 | DU11: 0 | DV11: 0 | DW11: 0 | DY11: 23.7609847 | DZ11: 0 | EA11: 0 | EB11: 0 | EC11: 0 | ED11: 0 | EE11: 0 | EF11: 0 | EG11: 0 | EH11: 0
B12: Customer Engagement and Experience | C12: Engagement design | D12: WorkStream 3 | G12: 10.725 | H12: 0 | I12: 0 | J12: 0 | K12: 0 | L12: 0 | M12: 0 | N12: 0 | O12: 0 | P12: 0 | R12: 0.05051010188 | AA12: 0.9494898981 | AB12: 1 | AD12: 0.5417208426 | AE12: 0 | AF12: 0 | AG12: 0 | AH12: 0 | AI12: 0 | AJ12: 0 | AK12: 0 | AL12: 0 | AM12: 0 | AO12: 0 | AP12: 0 | AQ12: 0 | AR12: 0 | AS12: 0 | AT12: 0 | AU12: 0 | AV12: 0 | AW12: 0 | AX12: 0 | AZ12: 0 | BA12: 0 | BB12: 0 | BC12: 0 | BD12: 0 | BE12: 0 | BF12: 0 | BG12: 0 | BH12: 0 | BI12: 0 | BK12: 0 | BL12: 0 | BM12: 0 | BN12: 0 | BO12: 0 | BP12: 0 | BQ12: 0 | BR12: 0 | BS12: 0 | BT12: 0 | BV12: 0 | BW12: 0 | BX12: 0 | BY12: 0 | BZ12: 0 | CA12: 0 | CB12: 0 | CC12: 0 | CD12: 0 | CE12: 0 | CG12: 0 | CH12: 0 | CI12: 0 | CJ12: 0 | CK12: 0 | CL12: 0 | CM12: 0 | CN12: 0 | CO12: 0 | CP12: 0 | CR12: 0 | CS12: 0 | CT12: 0 | CU12: 0 | CV12: 0 | CW12: 0 | CX12: 0 | CY12: 0 | CZ12: 0 | DA12: 0 | DC12: 0 | DD12: 0 | DE12: 0 | DF12: 0 | DG12: 0 | DH12: 0 | DI12: 0 | DJ12: 0 | DK12: 0 | DL12: 0 | DN12: 0 | DO12: 0 | DP12: 0 | DQ12: 0 | DR12: 0 | DS12: 0 | DT12: 0 | DU12: 0 | DV12: 0 | DW12: 0 | DY12: 10.18327916 | DZ12: 0 | EA12: 0 | EB12: 0 | EC12: 0 | ED12: 0 | EE12: 0 | EF12: 0 | EG12: 0 | EH12: 0
B13: Customer Engagement and Experience | C13: Engagement materials | D13: WorkStream 3 | G13: 0 | H13: 0 | I13: 0 | J13: 0 | K13: 0 | L13: 0 | M13: 0 | N13: 0 | O13: 0 | P13: 0 | R13: 0.05051010188 | AA13: 0.9494898981 | AB13: 1 | AD13: 0 | AE13: 0 | AF13: 0 | AG13: 0 | AH13: 0 | AI13: 0 | AJ13: 0 | AK13: 0 | AL13: 0 | AM13: 0 | AO13: 0 | AP13: 0 | AQ13: 0 | AR13: 0 | AS13: 0 | AT13: 0 | AU13: 0 | AV13: 0 | AW13: 0 | AX13: 0 | AZ13: 0 | BA13: 0 | BB13: 0 | BC13: 0 | BD13: 0 | BE13: 0 | BF13: 0 | BG13: 0 | BH13: 0 | BI13: 0 | BK13: 0 | BL13: 0 | BM13: 0 | BN13: 0 | BO13: 0 | BP13: 0 | BQ13: 0 | BR13: 0 | BS13: 0 | BT13: 0 | BV13: 0 | BW13: 0 | BX13: 0 | BY13: 0 | BZ13: 0 | CA13: 0 | CB13: 0 | CC13: 0 | CD13: 0 | CE13: 0 | CG13: 0 | CH13: 0 | CI13: 0 | CJ13: 0 | CK13: 0 | CL13: 0 | CM13: 0 | CN13: 0 | CO13: 0 | CP13: 0 | CR13: 0 | CS13: 0 | CT13: 0 | CU13: 0 | CV13: 0 | CW13: 0 | CX13: 0 | CY13: 0 | CZ13: 0 | DA13: 0 | DC13: 0 | DD13: 0 | DE13: 0 | DF13: 0 | DG13: 0 | DH13: 0 | DI13: 0 | DJ13: 0 | DK13: 0 | DL13: 0 | DN13: 0 | DO13: 0 | DP13: 0 | DQ13: 0 | DR13: 0 | DS13: 0 | DT13: 0 | DU13: 0 | DV13: 0 | DW13: 0 | DY13: 0 | DZ13: 0 | EA13: 0 | EB13: 0 | EC13: 0 | ED13: 0 | EE13: 0 | EF13: 0 | EG13: 0 | EH13: 0
B14: Customer Engagement and Experience | C14: Engagement surveys and focus groups | D14: WorkStream 3 | G14: 33.75 | H14: 0 | I14: 0 | J14: 0 | K14: 0 | L14: 0 | M14: 0 | N14: 15 | O14: 0 | P14: 0 | R14: 0.05051010188 | AA14: 0.9494898981 | AB14: 1 | AD14: 1.704715938 | AE14: 0 | AF14: 0 | AG14: 0 | AH14: 0 | AI14: 0 | AJ14: 0 | AK14: 0.7576515282 | AL14: 0 | AM14: 0 | AO14: 0 | AP14: 0 | AQ14: 0 | AR14: 0 | AS14: 0 | AT14: 0 | AU14: 0 | AV14: 0 | AW14: 0 | AX14: 0 | AZ14: 0 | BA14: 0 | BB14: 0 | BC14: 0 | BD14: 0 | BE14: 0 | BF14: 0 | BG14: 0 | BH14: 0 | BI14: 0 | BK14: 0 | BL14: 0 | BM14: 0 | BN14: 0 | BO14: 0 | BP14: 0 | BQ14: 0 | BR14: 0 | BS14: 0 | BT14: 0 | BV14: 0 | BW14: 0 | BX14: 0 | BY14: 0 | BZ14: 0 | CA14: 0 | CB14: 0 | CC14: 0 | CD14: 0 | CE14: 0 | CG14: 0 | CH14: 0 | CI14: 0 | CJ14: 0 | CK14: 0 | CL14: 0 | CM14: 0 | CN14: 0 | CO14: 0 | CP14: 0 | CR14: 0 | CS14: 0 | CT14: 0 | CU14: 0 | CV14: 0 | CW14: 0 | CX14: 0 | CY14: 0 | CZ14: 0 | DA14: 0 | DC14: 0 | DD14: 0 | DE14: 0 | DF14: 0 | DG14: 0 | DH14: 0 | DI14: 0 | DJ14: 0 | DK14: 0 | DL14: 0 | DN14: 0 | DO14: 0 | DP14: 0 | DQ14: 0 | DR14: 0 | DS14: 0 | DT14: 0 | DU14: 0 | DV14: 0 | DW14: 0 | DY14: 32.04528406 | DZ14: 0 | EA14: 0 | EB14: 0 | EC14: 0 | ED14: 0 | EE14: 0 | EF14: 14.24234847 | EG14: 0 | EH14: 0
B15: Customer Engagement and Experience | C15: Engagement primary research | D15: WorkStream 3 | G15: 0 | H15: 0 | I15: 50 | J15: 0 | K15: 0 | L15: 0 | M15: 0 | N15: 0 | O15: 0 | P15: 0 | R15: 0.05051010188 | AA15: 0.9494898981 | AB15: 1 | AD15: 0 | AE15: 0 | AF15: 2.525505094 | AG15: 0 | AH15: 0 | AI15: 0 | AJ15: 0 | AK15: 0 | AL15: 0 | AM15: 0 | AO15: 0 | AP15: 0 | AQ15: 0 | AR15: 0 | AS15: 0 | AT15: 0 | AU15: 0 | AV15: 0 | AW15: 0 | AX15: 0 | AZ15: 0 | BA15: 0 | BB15: 0 | BC15: 0 | BD15: 0 | BE15: 0 | BF15: 0 | BG15: 0 | BH15: 0 | BI15: 0 | BK15: 0 | BL15: 0 | BM15: 0 | BN15: 0 | BO15: 0 | BP15: 0 | BQ15: 0 | BR15: 0 | BS15: 0 | BT15: 0 | BV15: 0 | BW15: 0 | BX15: 0 | BY15: 0 | BZ15: 0 | CA15: 0 | CB15: 0 | CC15: 0 | CD15: 0 | CE15: 0 | CG15: 0 | CH15: 0 | CI15: 0 | CJ15: 0 | CK15: 0 | CL15: 0 | CM15: 0 | CN15: 0 | CO15: 0 | CP15: 0 | CR15: 0 | CS15: 0 | CT15: 0 | CU15: 0 | CV15: 0 | CW15: 0 | CX15: 0 | CY15: 0 | CZ15: 0 | DA15: 0 | DC15: 0 | DD15: 0 | DE15: 0 | DF15: 0 | DG15: 0 | DH15: 0 | DI15: 0 | DJ15: 0 | DK15: 0 | DL15: 0 | DN15: 0 | DO15: 0 | DP15: 0 | DQ15: 0 | DR15: 0 | DS15: 0 | DT15: 0 | DU15: 0 | DV15: 0 | DW15: 0 | DY15: 0 | DZ15: 0 | EA15: 47.47449491 | EB15: 0 | EC15: 0 | ED15: 0 | EE15: 0 | EF15: 0 | EG15: 0 | EH15: 0
B16: Trials | C16: Overal Trial Design | D16: Workstream 4 | G16: 33.575 | H16: 0 | I16: 0 | J16: 0 | K16: 0 | L16: 0 | M16: 0 | N16: 0 | O16: 0 | P16: 0 | R16: 0.05051010188 | AA16: 0.9494898981 | AB16: 1 | AD16: 1.695876671 | AE16: 0 | AF16: 0 | AG16: 0 | AH16: 0 | AI16: 0 | AJ16: 0 | AK16: 0 | AL16: 0 | AM16: 0 | AO16: 0 | AP16: 0 | AQ16: 0 | AR16: 0 | AS16: 0 | AT16: 0 | AU16: 0 | AV16: 0 | AW16: 0 | AX16: 0 | AZ16: 0 | BA16: 0 | BB16: 0 | BC16: 0 | BD16: 0 | BE16: 0 | BF16: 0 | BG16: 0 | BH16: 0 | BI16: 0 | BK16: 0 | BL16: 0 | BM16: 0 | BN16: 0 | BO16: 0 | BP16: 0 | BQ16: 0 | BR16: 0 | BS16: 0 | BT16: 0 | BV16: 0 | BW16: 0 | BX16: 0 | BY16: 0 | BZ16: 0 | CA16: 0 | CB16: 0 | CC16: 0 | CD16: 0 | CE16: 0 | CG16: 0 | CH16: 0 | CI16: 0 | CJ16: 0 | CK16: 0 | CL16: 0 | CM16: 0 | CN16: 0 | CO16: 0 | CP16: 0 | CR16: 0 | CS16: 0 | CT16: 0 | CU16: 0 | CV16: 0 | CW16: 0 | CX16: 0 | CY16: 0 | CZ16: 0 | DA16: 0 | DC16: 0 | DD16: 0 | DE16: 0 | DF16: 0 | DG16: 0 | DH16: 0 | DI16: 0 | DJ16: 0 | DK16: 0 | DL16: 0 | DN16: 0 | DO16: 0 | DP16: 0 | DQ16: 0 | DR16: 0 | DS16: 0 | DT16: 0 | DU16: 0 | DV16: 0 | DW16: 0 | DY16: 31.87912333 | DZ16: 0 | EA16: 0 | EB16: 0 | EC16: 0 | ED16: 0 | EE16: 0 | EF16: 0 | EG16: 0 | EH16: 0
B17: Trials | C17: Simulation modelling | D17: Workstream 4 | G17: 36 | H17: 0 | I17: 30 | J17: 0 | K17: 0 | L17: 0 | M17: 0 | N17: 0 | O17: 0 | P17: 0 | R17: 0.05051010188 | AA17: 0.9494898981 | AB17: 1 | AD17: 1.818363668 | AE17: 0 | AF17: 1.515303056 | AG17: 0 | AH17: 0 | AI17: 0 | AJ17: 0 | AK17: 0 | AL17: 0 | AM17: 0 | AO17: 0 | AP17: 0 | AQ17: 0 | AR17: 0 | AS17: 0 | AT17: 0 | AU17: 0 | AV17: 0 | AW17: 0 | AX17: 0 | AZ17: 0 | BA17: 0 | BB17: 0 | BC17: 0 | BD17: 0 | BE17: 0 | BF17: 0 | BG17: 0 | BH17: 0 | BI17: 0 | BK17: 0 | BL17: 0 | BM17: 0 | BN17: 0 | BO17: 0 | BP17: 0 | BQ17: 0 | BR17: 0 | BS17: 0 | BT17: 0 | BV17: 0 | BW17: 0 | BX17: 0 | BY17: 0 | BZ17: 0 | CA17: 0 | CB17: 0 | CC17: 0 | CD17: 0 | CE17: 0 | CG17: 0 | CH17: 0 | CI17: 0 | CJ17: 0 | CK17: 0 | CL17: 0 | CM17: 0 | CN17: 0 | CO17: 0 | CP17: 0 | CR17: 0 | CS17: 0 | CT17: 0 | CU17: 0 | CV17: 0 | CW17: 0 | CX17: 0 | CY17: 0 | CZ17: 0 | DA17: 0 | DC17: 0 | DD17: 0 | DE17: 0 | DF17: 0 | DG17: 0 | DH17: 0 | DI17: 0 | DJ17: 0 | DK17: 0 | DL17: 0 | DN17: 0 | DO17: 0 | DP17: 0 | DQ17: 0 | DR17: 0 | DS17: 0 | DT17: 0 | DU17: 0 | DV17: 0 | DW17: 0 | DY17: 34.18163633 | DZ17: 0 | EA17: 28.48469694 | EB17: 0 | EC17: 0 | ED17: 0 | EE17: 0 | EF17: 0 | EG17: 0 | EH17: 0
B18: Trials | C18: Trial delivery and analysis | D18: Workstream 4 | G18: 126.45 | H18: 0 | I18: 0 | J18: 0 | K18: 0 | L18: 0 | M18: 0 | N18: 0 | O18: 0 | P18: 0 | R18: 0.05051010188 | AA18: 0.9494898981 | AB18: 1 | AD18: 6.387002382 | AE18: 0 | AF18: 0 | AG18: 0 | AH18: 0 | AI18: 0 | AJ18: 0 | AK18: 0 | AL18: 0 | AM18: 0 | AO18: 0 | AP18: 0 | AQ18: 0 | AR18: 0 | AS18: 0 | AT18: 0 | AU18: 0 | AV18: 0 | AW18: 0 | AX18: 0 | AZ18: 0 | BA18: 0 | BB18: 0 | BC18: 0 | BD18: 0 | BE18: 0 | BF18: 0 | BG18: 0 | BH18: 0 | BI18: 0 | BK18: 0 | BL18: 0 | BM18: 0 | BN18: 0 | BO18: 0 | BP18: 0 | BQ18: 0 | BR18: 0 | BS18: 0 | BT18: 0 | BV18: 0 | BW18: 0 | BX18: 0 | BY18: 0 | BZ18: 0 | CA18: 0 | CB18: 0 | CC18: 0 | CD18: 0 | CE18: 0 | CG18: 0 | CH18: 0 | CI18: 0 | CJ18: 0 | CK18: 0 | CL18: 0 | CM18: 0 | CN18: 0 | CO18: 0 | CP18: 0 | CR18: 0 | CS18: 0 | CT18: 0 | CU18: 0 | CV18: 0 | CW18: 0 | CX18: 0 | CY18: 0 | CZ18: 0 | DA18: 0 | DC18: 0 | DD18: 0 | DE18: 0 | DF18: 0 | DG18: 0 | DH18: 0 | DI18: 0 | DJ18: 0 | DK18: 0 | DL18: 0 | DN18: 0 | DO18: 0 | DP18: 0 | DQ18: 0 | DR18: 0 | DS18: 0 | DT18: 0 | DU18: 0 | DV18: 0 | DW18: 0 | DY18: 120.0629976 | DZ18: 0 | EA18: 0 | EB18: 0 | EC18: 0 | ED18: 0 | EE18: 0 | EF18: 0 | EG18: 0 | EH18: 0
B19: Trials | C19: Business case update and transistion | D19: Workstream 4 | G19: 95.325 | H19: 0 | I19: 0 | J19: 0 | K19: 0 | L19: 0 | M19: 0 | N19: 0 | O19: 0 | P19: 0 | R19: 0.05051010188 | AA19: 0.9494898981 | AB19: 1 | AD19: 4.814875461 | AE19: 0 | AF19: 0 | AG19: 0 | AH19: 0 | AI19: 0 | AJ19: 0 | AK19: 0 | AL19: 0 | AM19: 0 | AO19: 0 | AP19: 0 | AQ19: 0 | AR19: 0 | AS19: 0 | AT19: 0 | AU19: 0 | AV19: 0 | AW19: 0 | AX19: 0 | AZ19: 0 | BA19: 0 | BB19: 0 | BC19: 0 | BD19: 0 | BE19: 0 | BF19: 0 | BG19: 0 | BH19: 0 | BI19: 0 | BK19: 0 | BL19: 0 | BM19: 0 | BN19: 0 | BO19: 0 | BP19: 0 | BQ19: 0 | BR19: 0 | BS19: 0 | BT19: 0 | BV19: 0 | BW19: 0 | BX19: 0 | BY19: 0 | BZ19: 0 | CA19: 0 | CB19: 0 | CC19: 0 | CD19: 0 | CE19: 0 | CG19: 0 | CH19: 0 | CI19: 0 | CJ19: 0 | CK19: 0 | CL19: 0 | CM19: 0 | CN19: 0 | CO19: 0 | CP19: 0 | CR19: 0 | CS19: 0 | CT19: 0 | CU19: 0 | CV19: 0 | CW19: 0 | CX19: 0 | CY19: 0 | CZ19: 0 | DA19: 0 | DC19: 0 | DD19: 0 | DE19: 0 | DF19: 0 | DG19: 0 | DH19: 0 | DI19: 0 | DJ19: 0 | DK19: 0 | DL19: 0 | DN19: 0 | DO19: 0 | DP19: 0 | DQ19: 0 | DR19: 0 | DS19: 0 | DT19: 0 | DU19: 0 | DV19: 0 | DW19: 0 | DY19: 90.51012454 | DZ19: 0 | EA19: 0 | EB19: 0 | EC19: 0 | ED19: 0 | EE19: 0 | EF19: 0 | EG19: 0 | EH19: 0
B20: PM Management and knowledge dissemination | C20: PM Labour | D20: WorkStream 5 | G20: 165.485 | H20: 0 | I20: 0 | J20: 0 | K20: 0 | L20: 0 | M20: 0 | N20: 0 | O20: 0 | P20: 0 | Q20: Total Cost | R20: 0.05051010188 | AA20: 0.9494898981 | AB20: 1 | AD20: 8.358664209 | AE20: 0 | AF20: 0 | AG20: 0 | AH20: 0 | AI20: 0 | AJ20: 0 | AK20: 0 | AL20: 0 | AM20: 0 | AO20: 0 | AP20: 0 | AQ20: 0 | AR20: 0 | AS20: 0 | AT20: 0 | AU20: 0 | AV20: 0 | AW20: 0 | AX20: 0 | AZ20: 0 | BA20: 0 | BB20: 0 | BC20: 0 | BD20: 0 | BE20: 0 | BF20: 0 | BG20: 0 | BH20: 0 | BI20: 0 | BK20: 0 | BL20: 0 | BM20: 0 | BN20: 0 | BO20: 0 | BP20: 0 | BQ20: 0 | BR20: 0 | BS20: 0 | BT20: 0 | BV20: 0 | BW20: 0 | BX20: 0 | BY20: 0 | BZ20: 0 | CA20: 0 | CB20: 0 | CC20: 0 | CD20: 0 | CE20: 0 | CG20: 0 | CH20: 0 | CI20: 0 | CJ20: 0 | CK20: 0 | CL20: 0 | CM20: 0 | CN20: 0 | CO20: 0 | CP20: 0 | CR20: 0 | CS20: 0 | CT20: 0 | CU20: 0 | CV20: 0 | CW20: 0 | CX20: 0 | CY20: 0 | CZ20: 0 | DA20: 0 | DC20: 0 | DD20: 0 | DE20: 0 | DF20: 0 | DG20: 0 | DH20: 0 | DI20: 0 | DJ20: 0 | DK20: 0 | DL20: 0 | DN20: 0 | DO20: 0 | DP20: 0 | DQ20: 0 | DR20: 0 | DS20: 0 | DT20: 0 | DU20: 0 | DV20: 0 | DW20: 0 | DY20: 157.1263358 | DZ20: 0 | EA20: 0 | EB20: 0 | EC20: 0 | ED20: 0 | EE20: 0 | EF20: 0 | EG20: 0 | EH20: 0
B21: PM Management and knowledge dissemination | C21: Knowledge transfer and dissemination | D21: WorkStream 5 | G21: 109.325 | H21: 0 | I21: 66 | J21: 0 | K21: 0 | L21: 0 | M21: 0 | N21: 0 | O21: 0 | P21: 20 | R21: 0.05051010188 | AA21: 0.9494898981 | AB21: 1 | AD21: 5.522016888 | AE21: 0 | AF21: 3.333666724 | AG21: 0 | AH21: 0 | AI21: 0 | AJ21: 0 | AK21: 0 | AL21: 0 | AM21: 1.010202038 | AO21: 0 | AP21: 0 | AQ21: 0 | AR21: 0 | AS21: 0 | AT21: 0 | AU21: 0 | AV21: 0 | AW21: 0 | AX21: 0 | AZ21: 0 | BA21: 0 | BB21: 0 | BC21: 0 | BD21: 0 | BE21: 0 | BF21: 0 | BG21: 0 | BH21: 0 | BI21: 0 | BK21: 0 | BL21: 0 | BM21: 0 | BN21: 0 | BO21: 0 | BP21: 0 | BQ21: 0 | BR21: 0 | BS21: 0 | BT21: 0 | BV21: 0 | BW21: 0 | BX21: 0 | BY21: 0 | BZ21: 0 | CA21: 0 | CB21: 0 | CC21: 0 | CD21: 0 | CE21: 0 | CG21: 0 | CH21: 0 | CI21: 0 | CJ21: 0 | CK21: 0 | CL21: 0 | CM21: 0 | CN21: 0 | CO21: 0 | CP21: 0 | CR21: 0 | CS21: 0 | CT21: 0 | CU21: 0 | CV21: 0 | CW21: 0 | CX21: 0 | CY21: 0 | CZ21: 0 | DA21: 0 | DC21: 0 | DD21: 0 | DE21: 0 | DF21: 0 | DG21: 0 | DH21: 0 | DI21: 0 | DJ21: 0 | DK21: 0 | DL21: 0 | DN21: 0 | DO21: 0 | DP21: 0 | DQ21: 0 | DR21: 0 | DS21: 0 | DT21: 0 | DU21: 0 | DV21: 0 | DW21: 0 | DY21: 103.8029831 | DZ21: 0 | EA21: 62.66633328 | EB21: 0 | EC21: 0 | ED21: 0 | EE21: 0 | EF21: 0 | EG21: 0 | EH21: 18.98979796
B22: Total | G22: =SUM(G7:G21) -> 756.11 | H22: =SUM(H7:H21) -> 0 | I22: 146 | J22: 0 | K22: 0 | L22: 0 | M22: 0 | N22: 20 | O22: 0 | P22: 20 | Q22: =SUM(G22:P22) -> 942.11 | AD22: =SUM(AD7:AD21) -> 38.19119313 | AE22: =SUM(AE7:AE21) -> 0 | AF22: 7.374474874 | AG22: 0 | AH22: 0 | AI22: 0 | AJ22: 0 | AK22: 1.010202038 | AL22: 0 | AM22: 1.010202038 | AO22: =SUM(AO7:AO21) -> 0 | AP22: =SUM(AP7:AP21) -> 0 | AQ22: 0 | AR22: 0 | AS22: 0 | AT22: 0 | AU22: 0 | AV22: 0 | AW22: 0 | AX22: 0 | AZ22: =SUM(AZ7:AZ21) -> 0 | BA22: =SUM(BA7:BA21) -> 0 | BB22: 0 | BC22: 0 | BD22: 0 | BE22: 0 | BF22: 0 | BG22: 0 | BH22: 0 | BI22: 0 | BK22: =SUM(BK7:BK21) -> 0 | BL22: =SUM(BL7:BL21) -> 0 | BM22: 0 | BN22: 0 | BO22: 0 | BP22: 0 | BQ22: 0 | BR22: 0 | BS22: 0 | BT22: 0 | BV22: =SUM(BV7:BV21) -> 0 | BW22: =SUM(BW7:BW21) -> 0 | BX22: 0 | BY22: 0 | BZ22: 0 | CA22: 0 | CB22: 0 | CC22: 0 | CD22: 0 | CE22: 0 | CG22: =SUM(CG7:CG21) -> 0 | CH22: =SUM(CH7:CH21) -> 0 | CI22: 0 | CJ22: 0 | CK22: 0 | CL22: 0 | CM22: 0 | CN22: 0 | CO22: 0 | CP22: 0 | CR22: =SUM(CR7:CR21) -> 0 | CS22: =SUM(CS7:CS21) -> 0 | CT22: 0 | CU22: 0 | CV22: 0 | CW22: 0 | CX22: 0 | CY22: 0 | CZ22: 0 | DA22: 0 | DC22: =SUM(DC7:DC21) -> 0 | DD22: =SUM(DD7:DD21) -> 0 | DE22: 0 | DF22: 0 | DG22: 0 | DH22: 0 | DI22: 0 | DJ22: 0 | DK22: 0 | DL22: 0 | DN22: =SUM(DN7:DN21) -> 0 | DO22: =SUM(DO7:DO21) -> 0 | DP22: 0 | DQ22: 0 | DR22: 0 | DS22: 0 | DT22: 0 | DU22: 0 | DV22: 0 | DW22: 0 | DY22: =SUM(DY7:DY21) -> 717.9188069 | DZ22: =SUM(DZ7:DZ21) -> 0 | EA22: 138.6255251 | EB22: 0 | EC22: 0 | ED22: 0 | EE22: 0 | EF22: 18.98979796 | EG22: 0 | EH22: 18.98979796
D268: Totals

Sheet 2026-2027
B1: Project Costs in 2026-2027
G4: Total Cost £K | R4: Funding source % | Z4: Licensee Compulsory Contribution/Direct Benefits | AK4: Project Partner 1 | AV4: Project Partner 2 | BG4: Project Partner 3 | BR4: Licensee Extra Contribution | CC4: Outstanding Funding Required
G5: Labour | H5: Equipment | I5: Contractors | J5: IT | K5: IPR Costs | L5: Travel & Expenses | M5: Payments to users | N5: Contingency | O5: Decommissioning | P5: Other | R5: Licensee Compulsory Contribution /Direct Benefits | S5: Project Partner 1 | T5: Project Partner 2 | U5: Project Partner 3 | V5: Licensee Extra Contribution | W5: Oustanding Funding Required | X5: Total | Z5: Labour | AA5: Equipment | AB5: Contractors | AC5: IT | AD5: IPR Costs | AE5: Travel & Expenses | AF5: Payments to users | AG5: Contingency | AH5: Decommissioning | AI5: Other | AK5: Labour | AL5: Equipment | AM5: Contractors | AN5: IT | AO5: IPR Costs | AP5: Travel & Expenses | AQ5: Payments to users | AR5: Contingency | AS5: Decommissioning | AT5: Other | AV5: Labour | AW5: Equipment | AX5: Contractors | AY5: IT | AZ5: IPR Costs | BA5: Travel & Expenses | BB5: Payments to users | BC5: Contingency | BD5: Decommissioning | BE5: Other | BG5: Labour | BH5: Equipment | BI5: Contractors | BJ5: IT | BK5: IPR Costs | BL5: Travel & Expenses | BM5: Payments to users | BN5: Contingency | BO5: Decommissioning | BP5: Other | BR5: Labour | BS5: Equipment | BT5: Contractors | BU5: IT | BV5: IPR Costs | BW5: Travel & Expenses | BX5: Payments to users | BY5: Contingency | BZ5: Decommissioning | CA5: Other | CC5: Labour | CD5: Equipment | CE5: Contractors | CF5: IT | CG5: IPR Costs | CH5: Travel & Expenses | CI5: Payments to users | CJ5: Contingency | CK5: Decommissioning | CL5: Other
B6: Description | C6: Task | D6: Project Workstream
B9: Total | G9: =SUM(G7:G8) -> 0 | H9: =SUM(H7:H8) -> 0 | I9: 0 | J9: 0 | K9: 0 | L9: 0 | M9: 0 | N9: 0 | O9: 0 | P9: 0 | Q9: =SUM(G9:P9) -> 0 | Z9: =SUM(Z7:Z8) -> 0 | AA9: =SUM(AA7:AA8) -> 0 | AB9: 0 | AC9: 0 | AD9: 0 | AE9: 0 | AF9: 0 | AG9: 0 | AH9: 0 | AI9: 0 | AK9: =SUM(AK7:AK8) -> 0 | AL9: =SUM(AL7:AL8) -> 0 | AM9: 0 | AN9: 0 | AO9: 0 | AP9: 0 | AQ9: 0 | AR9: 0 | AS9: 0 | AT9: 0 | AV9: =SUM(AV7:AV8) -> 0 | AW9: =SUM(AW7:AW8) -> 0 | AX9: 0 | AY9: 0 | AZ9: 0 | BA9: 0 | BB9: 0 | BC9: 0 | BD9: 0 | BE9: 0 | BG9: =SUM(BG7:BG8) -> 0 | BH9: =SUM(BH7:BH8) -> 0 | BI9: 0 | BJ9: 0 | BK9: 0 | BL9: 0 | BM9: 0 | BN9: 0 | BO9: 0 | BP9: 0 | BR9: =SUM(BR7:BR8) -> 0 | BS9: =SUM(BS7:BS8) -> 0 | BT9: 0 | BU9: 0 | BV9: 0 | BW9: 0 | BX9: 0 | BY9: 0 | BZ9: 0 | CA9: 0 | CC9: =SUM(CC7:CC8) -> 0 | CD9: =SUM(CD7:CD8) -> 0 | CE9: 0 | CF9: 0 | CG9: 0 | CH9: 0 | CI9: 0 | CJ9: 0 | CK9: 0 | CL9: 0
D255: Totals

Sheet 2028-2029
B1: Project Costs in 2028-2029
G4: Total Cost £K | R4: Funding source % | Z4: Licensee Compulsory Contribution/Direct Benefits | AK4: Project Partner 1 | AV4: Project Partner 2 | BG4: Project Partner 3 | BR4: Licensee Extra Contribution | CC4: Outstanding Funding Required
G5: Labour | H5: Equipment | I5: Contractors | J5: IT | K5: IPR Costs | L5: Travel & Expenses | M5: Payments to users | N5: Contingency | O5: Decommissioning | P5: Other | R5: Licensee Compulsory Contribution /Direct Benefits | S5: Project Partner 1 | T5: Project Partner 2 | U5: Project Partner 3 | V5: Licensee Extra Contribution | W5: Oustanding Funding Required | X5: Total | Z5: Labour | AA5: Equipment | AB5: Contractors | AC5: IT | AD5: IPR Costs | AE5: Travel & Expenses | AF5: Payments to users | AG5: Contingency | AH5: Decommissioning | AI5: Other | AK5: Labour | AL5: Equipment | AM5: Contractors | AN5: IT | AO5: IPR Costs | AP5: Travel & Expenses | AQ5: Payments to users | AR5: Contingency | AS5: Decommissioning | AT5: Other | AV5: Labour | AW5: Equipment | AX5: Contractors | AY5: IT | AZ5: IPR Costs | BA5: Travel & Expenses | BB5: Payments to users | BC5: Contingency | BD5: Decommissioning | BE5: Other | BG5: Labour | BH5: Equipment | BI5: Contractors | BJ5: IT | BK5: IPR Costs | BL5: Travel & Expenses | BM5: Payments to users | BN5: Contingency | BO5: Decommissioning | BP5: Other | BR5: Labour | BS5: Equipment | BT5: Contractors | BU5: IT | BV5: IPR Costs | BW5: Travel & Expenses | BX5: Payments to users | BY5: Contingency | BZ5: Decommissioning | CA5: Other | CC5: Labour | CD5: Equipment | CE5: Contractors | CF5: IT | CG5: IPR Costs | CH5: Travel & Expenses | CI5: Payments to users | CJ5: Contingency | CK5: Decommissioning | CL5: Other
B6: Description | C6: Task | D6: Project Workstream
X7: =SUM(R7:W7) -> 0 | Z7: =$R7*G7 -> 0 | AA7: =$R7*H7 -> 0 | AB7: 0 | AC7: 0 | AD7: 0 | AE7: 0 | AF7: 0 | AG7: 0 | AH7: 0 | AI7: 0 | AK7: =$S7*G7 -> 0 | AL7: =$S7*H7 -> 0 | AM7: 0 | AN7: 0 | AO7: 0 | AP7: 0 | AQ7: 0 | AR7: 0 | AS7: 0 | AT7: 0 | AV7: =$T7*G7 -> 0 | AW7: =$T7*H7 -> 0 | AX7: 0 | AY7: 0 | AZ7: 0 | BA7: 0 | BB7: 0 | BC7: 0 | BD7: 0 | BE7: 0 | BG7: =$U7*G7 -> 0 | BH7: =$U7*H7 -> 0 | BI7: 0 | BJ7: 0 | BK7: 0 | BL7: 0 | BM7: 0 | BN7: 0 | BO7: 0 | BP7: 0 | BR7: =$V7*G7 -> 0 | BS7: =$V7*H7 -> 0 | BT7: 0 | BU7: 0 | BV7: 0 | BW7: 0 | BX7: 0 | BY7: 0 | BZ7: 0 | CA7: 0 | CC7: =$W7*G7 -> 0 | CD7: =$W7*H7 -> 0 | CE7: 0 | CF7: 0 | CG7: 0 | CH7: 0 | CI7: 0 | CJ7: 0 | CK7: 0 | CL7: 0
Q8: Total Cost | X8: =SUM(R8:W8) -> 0 | Z8: =$R8*G8 -> 0 | AA8: 0 | AB8: 0 | AC8: 0 | AD8: 0 | AE8: 0 | AF8: 0 | AG8: 0 | AH8: 0 | AI8: 0 | AK8: =$S8*G8 -> 0 | AL8: 0 | AM8: 0 | AN8: 0 | AO8: 0 | AP8: 0 | AQ8: 0 | AR8: 0 | AS8: 0 | AT8: 0 | AV8: =$T8*G8 -> 0 | AW8: 0 | AX8: 0 | AY8: 0 | AZ8: 0 | BA8: 0 | BB8: 0 | BC8: 0 | BD8: 0 | BE8: 0 | BG8: =$U8*G8 -> 0 | BH8: 0 | BI8: 0 | BJ8: 0 | BK8: 0 | BL8: 0 | BM8: 0 | BN8: 0 | BO8: 0 | BP8: 0 | BR8: =$V8*G8 -> 0 | BS8: 0 | BT8: 0 | BU8: 0 | BV8: 0 | BW8: 0 | BX8: 0 | BY8: 0 | BZ8: 0 | CA8: 0 | CC8: =$W8*G8 -> 0 | CD8: 0 | CE8: 0 | CF8: 0 | CG8: 0 | CH8: 0 | CI8: 0 | CJ8: 0 | CK8: 0 | CL8: 0
B9: Total | G9: =SUM(G7:G8) -> 0 | H9: =SUM(H7:H8) -> 0 | I9: 0 | J9: 0 | K9: 0 | L9: 0 | M9: 0 | N9: 0 | O9: 0 | P9: 0 | Q9: =SUM(G9:P9) -> 0 | Z9: =SUM(Z7:Z8) -> 0 | AA9: =SUM(AA7:AA8) -> 0 | AB9: 0 | AC9: 0 | AD9: 0 | AE9: 0 | AF9: 0 | AG9: 0 | AH9: 0 | AI9: 0 | AK9: =SUM(AK7:AK8) -> 0 | AL9: =SUM(AL7:AL8) -> 0 | AM9: 0 | AN9: 0 | AO9: 0 | AP9: 0 | AQ9: 0 | AR9: 0 | AS9: 0 | AT9: 0 | AV9: =SUM(AV7:AV8) -> 0 | AW9: =SUM(AW7:AW8) -> 0 | AX9: 0 | AY9: 0 | AZ9: 0 | BA9: 0 | BB9: 0 | BC9: 0 | BD9: 0 | BE9: 0 | BG9: =SUM(BG7:BG8) -> 0 | BH9: =SUM(BH7:BH8) -> 0 | BI9: 0 | BJ9: 0 | BK9: 0 | BL9: 0 | BM9: 0 | BN9: 0 | BO9: 0 | BP9: 0 | BR9: =SUM(BR7:BR8) -> 0 | BS9: =SUM(BS7:BS8) -> 0 | BT9: 0 | BU9: 0 | BV9: 0 | BW9: 0 | BX9: 0 | BY9: 0 | BZ9: 0 | CA9: 0 | CC9: =SUM(CC7:CC8) -> 0 | CD9: =SUM(CD7:CD8) -> 0 | CE9: 0 | CF9: 0 | CG9: 0 | CH9: 0 | CI9: 0 | CJ9: 0 | CK9: 0 | CL9: 0
D255: Totals

Sheet 2027-2028
B1: Project Costs in 2027-2028
G4: Total Cost £K | R4: Funding source % | Z4: Licensee Compulsory Contribution/Direct Benefits | AK4: Project Partner 1 | AV4: Project Partner 2 | BG4: Project Partner 3 | BR4: Licensee Extra Contribution | CC4: Outstanding Funding Required
G5: Labour | H5: Equipment | I5: Contractors | J5: IT | K5: IPR Costs | L5: Travel & Expenses | M5: Payments to users | N5: Contingency | O5: Decommissioning | P5: Other | R5: Licensee Compulsory Contribution /Direct Benefits | S5: Project Partner 1 | T5: Project Partner 2 | U5: Project Partner 3 | V5: Licensee Extra Contribution | W5: Oustanding Funding Required | X5: Total | Z5: Labour | AA5: Equipment | AB5: Contractors | AC5: IT | AD5: IPR Costs | AE5: Travel & Expenses | AF5: Payments to users | AG5: Contingency | AH5: Decommissioning | AI5: Other | AK5: Labour | AL5: Equipment | AM5: Contractors | AN5: IT | AO5: IPR Costs | AP5: Travel & Expenses | AQ5: Payments to users | AR5: Contingency | AS5: Decommissioning | AT5: Other | AV5: Labour | AW5: Equipment | AX5: Contractors | AY5: IT | AZ5: IPR Costs | BA5: Travel & Expenses | BB5: Payments to users | BC5: Contingency | BD5: Decommissioning | BE5: Other | BG5: Labour | BH5: Equipment | BI5: Contractors | BJ5: IT | BK5: IPR Costs | BL5: Travel & Expenses | BM5: Payments to users | BN5: Contingency | BO5: Decommissioning | BP5: Other | BR5: Labour | BS5: Equipment | BT5: Contractors | BU5: IT | BV5: IPR Costs | BW5: Travel & Expenses | BX5: Payments to users | BY5: Contingency | BZ5: Decommissioning | CA5: Other | CC5: Labour | CD5: Equipment | CE5: Contractors | CF5: IT | CG5: IPR Costs | CH5: Travel & Expenses | CI5: Payments to users | CJ5: Contingency | CK5: Decommissioning | CL5: Other
B6: Description | C6: Task | D6: Project Workstream
X7: =SUM(R7:W7) -> 0 | Z7: =$R7*G7 -> 0 | AA7: =$R7*H7 -> 0 | AB7: 0 | AC7: 0 | AD7: 0 | AE7: 0 | AF7: 0 | AG7: 0 | AH7: 0 | AI7: 0 | AK7: =$S7*G7 -> 0 | AL7: =$S7*H7 -> 0 | AM7: 0 | AN7: 0 | AO7: 0 | AP7: 0 | AQ7: 0 | AR7: 0 | AS7: 0 | AT7: 0 | AV7: =$T7*G7 -> 0 | AW7: =$T7*H7 -> 0 | AX7: 0 | AY7: 0 | AZ7: 0 | BA7: 0 | BB7: 0 | BC7: 0 | BD7: 0 | BE7: 0 | BG7: =$U7*G7 -> 0 | BH7: =$U7*H7 -> 0 | BI7: 0 | BJ7: 0 | BK7: 0 | BL7: 0 | BM7: 0 | BN7: 0 | BO7: 0 | BP7: 0 | BR7: =$V7*G7 -> 0 | BS7: =$V7*H7 -> 0 | BT7: 0 | BU7: 0 | BV7: 0 | BW7: 0 | BX7: 0 | BY7: 0 | BZ7: 0 | CA7: 0 | CC7: =$W7*G7 -> 0 | CD7: =$W7*H7 -> 0 | CE7: 0 | CF7: 0 | CG7: 0 | CH7: 0 | CI7: 0 | CJ7: 0 | CK7: 0 | CL7: 0
Q8: Total Cost | X8: =SUM(R8:W8) -> 0 | Z8: =$R8*G8 -> 0 | AA8: 0 | AB8: 0 | AC8: 0 | AD8: 0 | AE8: 0 | AF8: 0 | AG8: 0 | AH8: 0 | AI8: 0 | AK8: =$S8*G8 -> 0 | AL8: 0 | AM8: 0 | AN8: 0 | AO8: 0 | AP8: 0 | AQ8: 0 | AR8: 0 | AS8: 0 | AT8: 0 | AV8: =$T8*G8 -> 0 | AW8: 0 | AX8: 0 | AY8: 0 | AZ8: 0 | BA8: 0 | BB8: 0 | BC8: 0 | BD8: 0 | BE8: 0 | BG8: =$U8*G8 -> 0 | BH8: 0 | BI8: 0 | BJ8: 0 | BK8: 0 | BL8: 0 | BM8: 0 | BN8: 0 | BO8: 0 | BP8: 0 | BR8: =$V8*G8 -> 0 | BS8: 0 | BT8: 0 | BU8: 0 | BV8: 0 | BW8: 0 | BX8: 0 | BY8: 0 | BZ8: 0 | CA8: 0 | CC8: =$W8*G8 -> 0 | CD8: 0 | CE8: 0 | CF8: 0 | CG8: 0 | CH8: 0 | CI8: 0 | CJ8: 0 | CK8: 0 | CL8: 0
B9: Total | G9: =SUM(G7:G8) -> 0 | H9: =SUM(H7:H8) -> 0 | I9: 0 | J9: 0 | K9: 0 | L9: 0 | M9: 0 | N9: 0 | O9: 0 | P9: 0 | Q9: =SUM(G9:P9) -> 0 | Z9: =SUM(Z7:Z8) -> 0 | AA9: =SUM(AA7:AA8) -> 0 | AB9: 0 | AC9: 0 | AD9: 0 | AE9: 0 | AF9: 0 | AG9: 0 | AH9: 0 | AI9: 0 | AK9: =SUM(AK7:AK8) -> 0 | AL9: =SUM(AL7:AL8) -> 0 | AM9: 0 | AN9: 0 | AO9: 0 | AP9: 0 | AQ9: 0 | AR9: 0 | AS9: 0 | AT9: 0 | AV9: =SUM(AV7:AV8) -> 0 | AW9: =SUM(AW7:AW8) -> 0 | AX9: 0 | AY9: 0 | AZ9: 0 | BA9: 0 | BB9: 0 | BC9: 0 | BD9: 0 | BE9: 0 | BG9: =SUM(BG7:BG8) -> 0 | BH9: =SUM(BH7:BH8) -> 0 | BI9: 0 | BJ9: 0 | BK9: 0 | BL9: 0 | BM9: 0 | BN9: 0 | BO9: 0 | BP9: 0 | BR9: =SUM(BR7:BR8) -> 0 | BS9: =SUM(BS7:BS8) -> 0 | BT9: 0 | BU9: 0 | BV9: 0 | BW9: 0 | BX9: 0 | BY9: 0 | BZ9: 0 | CA9: 0 | CC9: =SUM(CC7:CC8) -> 0 | CD9: =SUM(CD7:CD8) -> 0 | CE9: 0 | CF9: 0 | CG9: 0 | CH9: 0 | CI9: 0 | CJ9: 0 | CK9: 0 | CL9: 0
D255: Totals

Sheet Whole project
B1: Whole Project
G4: Total Cost £K | R4: Funding source % | AD4: Licensee Compulsory Contribution/Direct Benefits | AO4: Guidehouse | AZ4: Octopus Energy | BK4: Passiv | BV4: SERO | CG4: SP Energy Networks | CR4: Welsh Government | DC4: West Midlands Combined Authority | DN4: Licensee Extra Contribution | DY4: Outstanding Funding Required
G5: Labour | H5: Equipment | I5: Contractors | J5: IT | K5: IPR Costs | L5: Travel & Expenses | M5: Payments to users | N5: Contingency | O5: Decommissioning | P5: Other | R5: Licensee Compulsory Contribution /Direct Benefits | S5: Guidehouse | T5: Octopus Energy | U5: Passivc Systems | V5: SERO | W5: SP Energy Networks | X5: Welsh Government | Y5: West Midlands Combined Authority | Z5: Licensee Extra Contribution | AA5: Oustanding Funding Required | AB5: Total | AD5: Labour | AE5: Equipment | AF5: Contractors | AG5: IT | AH5: IPR Costs | AI5: Travel & Expenses | AJ5: Payments to users | AK5: Contingency | AL5: Decommissioning | AM5: Other | AO5: Labour | AP5: Equipment | AQ5: Contractors | AR5: IT | AS5: IPR Costs | AT5: Travel & Expenses | AU5: Payments to users | AV5: Contingency | AW5: Decommissioning | AX5: Other | AZ5: Labour | BA5: Equipment | BB5: Contractors | BC5: IT | BD5: IPR Costs | BE5: Travel & Expenses | BF5: Payments to users | BG5: Contingency | BH5: Decommissioning | BI5: Other | BK5: Labour | BL5: Equipment | BM5: Contractors | BN5: IT | BO5: IPR Costs | BP5: Travel & Expenses | BQ5: Payments to users | BR5: Contingency | BS5: Decommissioning | BT5: Other | BV5: Labour | BW5: Equipment | BX5: Contractors | BY5: IT | BZ5: IPR Costs | CA5: Travel & Expenses | CB5: Payments to users | CC5: Contingency | CD5: Decommissioning | CE5: Other | CG5: Labour | CH5: Equipment | CI5: Contractors | CJ5: IT | CK5: IPR Costs | CL5: Travel & Expenses | CM5: Payments to users | CN5: Contingency | CO5: Decommissioning | CP5: Other | CR5: Labour | CS5: Equipment | CT5: Contractors | CU5: IT | CV5: IPR Costs | CW5: Travel & Expenses | CX5: Payments to users | CY5: Contingency | CZ5: Decommissioning | DA5: Other | DC5: Labour | DD5: Equipment | DE5: Contractors | DF5: IT | DG5: IPR Costs | DH5: Travel & Expenses | DI5: Payments to users | DJ5: Contingency | DK5: Decommissioning | DL5: Other | DN5: Labour | DO5: Equipment | DP5: Contractors | DQ5: IT | DR5: IPR Costs | DS5: Travel & Expenses | DT5: Payments to users | DU5: Contingency | DV5: Decommissioning | DW5: Other | DY5: Labour | DZ5: Equipment | EA5: Contractors | EB5: IT | EC5: IPR Costs | ED5: Travel & Expenses | EE5: Payments to users | EF5: Contingency | EG5: Decommissioning | EH5: Other
B6: Description | C6: Task | D6: Project Workstream
B7: Commercial Arrangements | C7: Design M1 & M2 | D7: Workstream 1 | G7: ='2021-2022'!G7+'2022-2023'!G7+'2023-2024'!G7+'2024-2025'!G7+'2025-2026'!G7+'2026-2027'!G7+'2027-2028'!G7+'2028-2029'!G7 -> 95.08 | H7: ='2021-2022'!H7+'2022-2023'!H7+'2023-2024'!H7+'2024-2025'!H7+'2025-2026'!H7+'2026-2027'!H7+'2027-2028'!H7+'2028-2029'!H7 -> 0 | I7: ='2021-2022'!I7+'2022-2023'!I7+'2023-2024'!I7+'2024-2025'!I7+'2025-2026'!I7+'2026-2027'!I7+'2027-2028'!I7+'2028-2029'!I7 -> 0 | J7: ='2021-2022'!J7+'2022-2023'!J7+'2023-2024'!J7+'2024-2025'!J7+'2025-2026'!J7+'2026-2027'!J7+'2027-2028'!J7+'2028-2029'!J7 -> 0 | K7: ='2021-2022'!K7+'2022-2023'!K7+'2023-2024'!K7+'2024-2025'!K7+'2025-2026'!K7+'2026-2027'!K7+'2027-2028'!K7+'2028-2029'!K7 -> 0 | L7: ='2021-2022'!L7+'2022-2023'!L7+'2023-2024'!L7+'2024-2025'!L7+'2025-2026'!L7+'2026-2027'!L7+'2027-2028'!L7+'2028-2029'!L7 -> 0 | M7: ='2021-2022'!M7+'2022-2023'!M7+'2023-2024'!M7+'2024-2025'!M7+'2025-2026'!M7+'2026-2027'!M7+'2027-2028'!M7+'2028-2029'!M7 -> 0 | N7: ='2021-2022'!N7+'2022-2023'!N7+'2023-2024'!N7+'2024-2025'!N7+'2025-2026'!N7+'2026-2027'!N7+'2027-2028'!N7+'2028-2029'!N7 -> 14 | O7: ='2021-2022'!O7+'2022-2023'!O7+'2023-2024'!O7+'2024-2025'!O7+'2025-2026'!O7+'2026-2027'!O7+'2027-2028'!O7+'2028-2029'!O7 -> 0 | P7: ='2021-2022'!P7+'2022-2023'!P7+'2023-2024'!P7+'2024-2025'!P7+'2025-2026'!P7+'2026-2027'!P7+'2027-2028'!P7+'2028-2029'!P7 -> 0 | R7: 0.1124148957 | W7: 0.01706873914 | AA7: 0.8705163652 | AB7: =SUM(R7:AA7) -> 1 | AD7: =$R7*G7 -> 10.68840828 | AE7: =$R7*H7 -> 0 | AF7: 0 | AG7: 0 | AH7: 0 | AI7: 0 | AJ7: 0 | AK7: 1.57380854 | AL7: 0 | AM7: 0 | AO7: =$S7*G7 -> 0 | AP7: =$S7*H7 -> 0 | AQ7: 0 | AR7: 0 | AS7: 0 | AT7: 0 | AU7: 0 | AV7: 0 | AW7: 0 | AX7: 0 | AZ7: =$T7*G7 -> 0 | BA7: =$T7*H7 -> 0 | BB7: 0 | BC7: 0 | BD7: 0 | BE7: 0 | BF7: 0 | BG7: 0 | BH7: 0 | BI7: 0 | BK7: =$U7*G7 -> 0 | BL7: =$U7*H7 -> 0 | BM7: 0 | BN7: 0 | BO7: 0 | BP7: 0 | BQ7: 0 | BR7: 0 | BS7: 0 | BT7: 0 | BV7: =$Z7*G7 -> 0 | BW7: =$Z7*H7 -> 0 | BX7: 0 | BY7: 0 | BZ7: 0 | CA7: 0 | CB7: 0 | CC7: 0 | CD7: 0 | CE7: 0 | CG7: =$AA7*G7 -> 82.768696 | CH7: 0 | CI7: 0 | CJ7: 0 | CK7: 0 | CL7: 0 | CM7: 0 | CN7: 12.18722911 | CO7: 0 | CP7: 0 | CR7: =$AB7*G7 -> 95.08 | CS7: 0 | CT7: 0 | CU7: 0 | CV7: 0 | CW7: 0 | CX7: 0 | CY7: 14 | CZ7: 0 | DA7: 0 | DC7: =$AC7*G7 -> 0 | DD7: =$AC7*H7 -> 0 | DE7: 0 | DF7: 0 | DG7: 0 | DH7: 0 | DI7: 0 | DJ7: 0 | DK7: 0 | DL7: 0 | DN7: =$Z7*G7 -> 0 | DO7: =$Z7*H7 -> 0 | DP7: 0 | DQ7: 0 | DR7: 0 | DS7: 0 | DT7: 0 | DU7: 0 | DV7: 0 | DW7: 0 | DY7: =$AA7*G7 -> 82.768696 | DZ7: =$AA7*H7 -> 0 | EA7: 0 | EB7: 0 | EC7: 0 | ED7: 0 | EE7: 0 | EF7: 12.18722911 | EG7: 0 | EH7: 0
B8: Commercial Arrangements | C8: Refine M1 & M2 & Design M3 | D8: Workstream 1 | G8: ='2021-2022'!G8+'2022-2023'!G8+'2023-2024'!G8+'2024-2025'!G8+'2025-2026'!G8+'2026-2027'!G8+'2027-2028'!G8+'2028-2029'!G8 -> 179.205 | H8: ='2021-2022'!H8+'2022-2023'!H8+'2023-2024'!H8+'2024-2025'!H8+'2025-2026'!H8+'2026-2027'!H8+'2027-2028'!H8+'2028-2029'!H8 -> 0 | I8: ='2021-2022'!I8+'2022-2023'!I8+'2023-2024'!I8+'2024-2025'!I8+'2025-2026'!I8+'2026-2027'!I8+'2027-2028'!I8+'2028-2029'!I8 -> 0 | J8: ='2021-2022'!J8+'2022-2023'!J8+'2023-2024'!J8+'2024-2025'!J8+'2025-2026'!J8+'2026-2027'!J8+'2027-2028'!J8+'2028-2029'!J8 -> 0 | K8: ='2021-2022'!K8+'2022-2023'!K8+'2023-2024'!K8+'2024-2025'!K8+'2025-2026'!K8+'2026-2027'!K8+'2027-2028'!K8+'2028-2029'!K8 -> 0 | L8: ='2021-2022'!L8+'2022-2023'!L8+'2023-2024'!L8+'2024-2025'!L8+'2025-2026'!L8+'2026-2027'!L8+'2027-2028'!L8+'2028-2029'!L8 -> 0 | M8: ='2021-2022'!M8+'2022-2023'!M8+'2023-2024'!M8+'2024-2025'!M8+'2025-2026'!M8+'2026-2027'!M8+'2027-2028'!M8+'2028-2029'!M8 -> 0 | N8: ='2021-2022'!N8+'2022-2023'!N8+'2023-2024'!N8+'2024-2025'!N8+'2025-2026'!N8+'2026-2027'!N8+'2027-2028'!N8+'2028-2029'!N8 -> 5 | O8: ='2021-2022'!O8+'2022-2023'!O8+'2023-2024'!O8+'2024-2025'!O8+'2025-2026'!O8+'2026-2027'!O8+'2027-2028'!O8+'2028-2029'!O8 -> 0 | P8: ='2021-2022'!P8+'2022-2023'!P8+'2023-2024'!P8+'2024-2025'!P8+'2025-2026'!P8+'2026-2027'!P8+'2027-2028'!P8+'2028-2029'!P8 -> 0 | R8: 0.1124148957 | T8: 0.03650098222 | V8: 0.0219715935 | AA8: 0.8291125286 | AB8: =SUM(R8:AA8) -> 1 | AD8: =$R8*G8 -> 20.14531138 | AE8: =$R8*H8 -> 0 | AF8: =$R8*I8 -> 0 | AG8: =$R8*J8 -> 0 | AH8: =$R8*K8 -> 0 | AI8: =$R8*L8 -> 0 | AJ8: =$R8*M8 -> 0 | AK8: =$R8*N8 -> 0.5620744785 | AL8: =$R8*O8 -> 0 | AM8: =$R8*P8 -> 0 | AO8: =$S8*G8 -> 0 | AP8: =$S8*H8 -> 0 | AQ8: =$S8*I8 -> 0 | AR8: =$S8*J8 -> 0 | AS8: =$S8*K8 -> 0 | AT8: =$S8*L8 -> 0 | AU8: =$S8*M8 -> 0 | AV8: =$S8*N8 -> 0 | AW8: =$S8*O8 -> 0 | AX8: =$S8*P8 -> 0 | AZ8: =$T8*G8 -> 6.541158518 | BA8: =$T8*H8 -> 0 | BB8: =$T8*I8 -> 0 | BC8: =$T8*J8 -> 0 | BD8: =$T8*K8 -> 0 | BE8: =$T8*L8 -> 0 | BF8: =$T8*M8 -> 0 | BG8: =$T8*N8 -> 0.1825049111 | BH8: =$T8*O8 -> 0 | BI8: =$T8*P8 -> 0 | BK8: =$U8*G8 -> 0 | BL8: =$U8*H8 -> 0 | BM8: =$U8*I8 -> 0 | BN8: =$U8*J8 -> 0 | BO8: =$U8*K8 -> 0 | BP8: =$U8*L8 -> 0 | BQ8: =$U8*M8 -> 0 | BR8: =$U8*N8 -> 0 | BS8: =$U8*O8 -> 0 | BT8: =$U8*P8 -> 0 | BV8: =$Z8*G8 -> 0 | BW8: =$Z8*H8 -> 0 | BX8: =$Z8*I8 -> 0 | BY8: =$Z8*J8 -> 0 | BZ8: =$Z8*K8 -> 0 | CA8: =$Z8*L8 -> 0 | CB8: =$Z8*M8 -> 0 | CC8: =$Z8*N8 -> 0 | CD8: =$Z8*O8 -> 0 | CE8: =$Z8*P8 -> 0 | CG8: =$AA8*G8 -> 148.5811107 | CH8: =$AA8*H8 -> 0 | CI8: =$AA8*I8 -> 0 | CJ8: =$AA8*J8 -> 0 | CK8: =$AA8*K8 -> 0 | CL8: =$AA8*L8 -> 0 | CM8: =$AA8*M8 -> 0 | CN8: =$AA8*N8 -> 4.145562643 | CO8: =$AA8*O8 -> 0 | CP8: =$AA8*P8 -> 0 | CR8: =$AB8*G8 -> 179.205 | CS8: =$AB8*H8 -> 0 | CT8: =$AB8*I8 -> 0 | CU8: =$AB8*J8 -> 0 | CV8: =$AB8*K8 -> 0 | CW8: =$AB8*L8 -> 0 | CX8: =$AB8*M8 -> 0 | CY8: =$AB8*N8 -> 5 | CZ8: =$AB8*O8 -> 0 | DA8: =$AB8*P8 -> 0 | DC8: =$AC8*G8 -> 0 | DD8: =$AC8*H8 -> 0 | DE8: =$AC8*I8 -> 0 | DF8: =$AC8*J8 -> 0 | DG8: =$AC8*K8 -> 0 | DH8: =$AC8*L8 -> 0 | DI8: =$AC8*M8 -> 0 | DJ8: =$AC8*N8 -> 0 | DK8: =$AC8*O8 -> 0 | DL8: =$AC8*P8 -> 0 | DN8: =$Z8*G8 -> 0 | DO8: =$Z8*H8 -> 0 | DP8: =$Z8*I8 -> 0 | DQ8: =$Z8*J8 -> 0 | DR8: =$Z8*K8 -> 0 | DS8: =$Z8*L8 -> 0 | DT8: =$Z8*M8 -> 0 | DU8: =$Z8*N8 -> 0 | DV8: =$Z8*O8 -> 0 | DW8: =$Z8*P8 -> 0 | DY8: =$AA8*G8 -> 148.5811107 | DZ8: =$AA8*H8 -> 0 | EA8: =$AA8*I8 -> 0 | EB8: =$AA8*J8 -> 0 | EC8: =$AA8*K8 -> 0 | ED8: =$AA8*L8 -> 0 | EE8: =$AA8*M8 -> 0 | EF8: =$AA8*N8 -> 4.145562643 | EG8: =$AA8*O8 -> 0 | EH8: =$AA8*P8 -> 0
B9: Commercial Arrangements | C9: Refine M1 & M2 & refine M3 | D9: Workstream 1 | G9: ='2021-2022'!G9+'2022-2023'!G9+'2023-2024'!G9+'2024-2025'!G9+'2025-2026'!G9+'2026-2027'!G9+'2027-2028'!G9+'2028-2029'!G9 -> 275.005 | H9: ='2021-2022'!H9+'2022-2023'!H9+'2023-2024'!H9+'2024-2025'!H9+'2025-2026'!H9+'2026-2027'!H9+'2027-2028'!H9+'2028-2029'!H9 -> 0 | I9: ='2021-2022'!I9+'2022-2023'!I9+'2023-2024'!I9+'2024-2025'!I9+'2025-2026'!I9+'2026-2027'!I9+'2027-2028'!I9+'2028-2029'!I9 -> 0 | J9: ='2021-2022'!J9+'2022-2023'!J9+'2023-2024'!J9+'2024-2025'!J9+'2025-2026'!J9+'2026-2027'!J9+'2027-2028'!J9+'2028-2029'!J9 -> 0 | K9: ='2021-2022'!K9+'2022-2023'!K9+'2023-2024'!K9+'2024-2025'!K9+'2025-2026'!K9+'2026-2027'!K9+'2027-2028'!K9+'2028-2029'!K9 -> 0 | L9: ='2021-2022'!L9+'2022-2023'!L9+'2023-2024'!L9+'2024-2025'!L9+'2025-2026'!L9+'2026-2027'!L9+'2027-2028'!L9+'2028-2029'!L9 -> 0 | M9: ='2021-2022'!M9+'2022-2023'!M9+'2023-2024'!M9+'2024-2025'!M9+'2025-2026'!M9+'2026-2027'!M9+'2027-2028'!M9+'2028-2029'!M9 -> 0 | N9: ='2021-2022'!N9+'2022-2023'!N9+'2023-2024'!N9+'2024-2025'!N9+'2025-2026'!N9+'2026-2027'!N9+'2027-2028'!N9+'2028-2029'!N9 -> 10 | O9: ='2021-2022'!O9+'2022-2023'!O9+'2023-2024'!O9+'2024-2025'!O9+'2025-2026'!O9+'2026-2027'!O9+'2027-2028'!O9+'2028-2029'!O9 -> 0 | P9: ='2021-2022'!P9+'2022-2023'!P9+'2023-2024'!P9+'2024-2025'!P9+'2025-2026'!P9+'2026-2027'!P9+'2027-2028'!P9+'2028-2029'!P9 -> 0 | R9: 0.1124148957 | S9: 0.1312650841 | V9: 0.0219715935 | AA9: 0.7343484267 | AB9: =SUM(R9:AA9) -> 1 | AD9: 30.91465839 | AE9: 0 | AF9: 0 | AG9: 0 | AH9: 0 | AI9: 0 | AJ9: 0 | AK9: 1.124148957 | AL9: 0 | AM9: 0 | AO9: 36.09855444 | AP9: 0 | AQ9: 0 | AR9: 0 | AS9: 0 | AT9: 0 | AU9: 0 | AV9: 1.312650841 | AW9: 0 | AX9: 0 | AZ9: 0 | BA9: 0 | BB9: 0 | BC9: 0 | BD9: 0 | BE9: 0 | BF9: 0 | BG9: 0 | BH9: 0 | BI9: 0 | BK9: 0 | BL9: 0 | BM9: 0 | BN9: 0 | BO9: 0 | BP9: 0 | BQ9: 0 | BR9: 0 | BS9: 0 | BT9: 0 | BV9: 0 | BW9: 0 | BX9: 0 | BY9: 0 | BZ9: 0 | CA9: 0 | CB9: 0 | CC9: 0 | CD9: 0 | CE9: 0 | CG9: 201.9494891 | CH9: 0 | CI9: 0 | CJ9: 0 | CK9: 0 | CL9: 0 | CM9: 0 | CN9: 7.343484267 | CO9: 0 | CP9: 0 | CR9: 275.005 | CS9: 0 | CT9: 0 | CU9: 0 | CV9: 0 | CW9: 0 | CX9: 0 | CY9: 10 | CZ9: 0 | DA9: 0 | DC9: 0 | DD9: 0 | DE9: 0 | DF9: 0 | DG9: 0 | DH9: 0 | DI9: 0 | DJ9: 0 | DK9: 0 | DL9: 0 | DN9: 0 | DO9: 0 | DP9: 0 | DQ9: 0 | DR9: 0 | DS9: 0 | DT9: 0 | DU9: 0 | DV9: 0 | DW9: 0 | DY9: 201.9494891 | DZ9: 0 | EA9: 0 | EB9: 0 | EC9: 0 | ED9: 0 | EE9: 0 | EF9: 7.343484267 | EG9: 0 | EH9: 0
B10: Integration and automation | C10: Overall integration planning | D10: Workstream 2 | G10: ='2021-2022'!G10+'2022-2023'!G10+'2023-2024'!G10+'2024-2025'!G10+'2025-2026'!G10+'2026-2027'!G10+'2027-2028'!G10+'2028-2029'!G10 -> 521.955 | H10: ='2021-2022'!H10+'2022-2023'!H10+'2023-2024'!H10+'2024-2025'!H10+'2025-2026'!H10+'2026-2027'!H10+'2027-2028'!H10+'2028-2029'!H10 -> 0 | I10: ='2021-2022'!I10+'2022-2023'!I10+'2023-2024'!I10+'2024-2025'!I10+'2025-2026'!I10+'2026-2027'!I10+'2027-2028'!I10+'2028-2029'!I10 -> 0 | J10: ='2021-2022'!J10+'2022-2023'!J10+'2023-2024'!J10+'2024-2025'!J10+'2025-2026'!J10+'2026-2027'!J10+'2027-2028'!J10+'2028-2029'!J10 -> 0 | K10: ='2021-2022'!K10+'2022-2023'!K10+'2023-2024'!K10+'2024-2025'!K10+'2025-2026'!K10+'2026-2027'!K10+'2027-2028'!K10+'2028-2029'!K10 -> 0 | L10: ='2021-2022'!L10+'2022-2023'!L10+'2023-2024'!L10+'2024-2025'!L10+'2025-2026'!L10+'2026-2027'!L10+'2027-2028'!L10+'2028-2029'!L10 -> 0 | M10: ='2021-2022'!M10+'2022-2023'!M10+'2023-2024'!M10+'2024-2025'!M10+'2025-2026'!M10+'2026-2027'!M10+'2027-2028'!M10+'2028-2029'!M10 -> 0 | N10: ='2021-2022'!N10+'2022-2023'!N10+'2023-2024'!N10+'2024-2025'!N10+'2025-2026'!N10+'2026-2027'!N10+'2027-2028'!N10+'2028-2029'!N10 -> 150 | O10: ='2021-2022'!O10+'2022-2023'!O10+'2023-2024'!O10+'2024-2025'!O10+'2025-2026'!O10+'2026-2027'!O10+'2027-2028'!O10+'2028-2029'!O10 -> 0 | P10: ='2021-2022'!P10+'2022-2023'!P10+'2023-2024'!P10+'2024-2025'!P10+'2025-2026'!P10+'2026-2027'!P10+'2027-2028'!P10+'2028-2029'!P10 -> 0 | R10: 0.1124148957 | V10: 0.0219715935 | AA10: 0.8656135108 | AB10: 1 | AD10: 58.67551689 | AE10: 0 | AF10: 0 | AG10: 0 | AH10: 0 | AI10: 0 | AJ10: 0 | AK10: 16.86223436 | AL10: 0 | AM10: 0 | AO10: 0 | AP10: 0 | AQ10: 0 | AR10: 0 | AS10: 0 | AT10: 0 | AU10: 0 | AV10: 0 | AW10: 0 | AX10: 0 | AZ10: 0 | BA10: 0 | BB10: 0 | BC10: 0 | BD10: 0 | BE10: 0 | BF10: 0 | BG10: 0 | BH10: 0 | BI10: 0 | BK10: 0 | BL10: 0 | BM10: 0 | BN10: 0 | BO10: 0 | BP10: 0 | BQ10: 0 | BR10: 0 | BS10: 0 | BT10: 0 | BV10: 0 | BW10: 0 | BX10: 0 | BY10: 0 | BZ10: 0 | CA10: 0 | CB10: 0 | CC10: 0 | CD10: 0 | CE10: 0 | CG10: 451.8113 | CH10: 0 | CI10: 0 | CJ10: 0 | CK10: 0 | CL10: 0 | CM10: 0 | CN10: 129.8420266 | CO10: 0 | CP10: 0 | CR10: 521.955 | CS10: 0 | CT10: 0 | CU10: 0 | CV10: 0 | CW10: 0 | CX10: 0 | CY10: 150 | CZ10: 0 | DA10: 0 | DC10: 0 | DD10: 0 | DE10: 0 | DF10: 0 | DG10: 0 | DH10: 0 | DI10: 0 | DJ10: 0 | DK10: 0 | DL10: 0 | DN10: 0 | DO10: 0 | DP10: 0 | DQ10: 0 | DR10: 0 | DS10: 0 | DT10: 0 | DU10: 0 | DV10: 0 | DW10: 0 | DY10: 451.8113 | DZ10: 0 | EA10: 0 | EB10: 0 | EC10: 0 | ED10: 0 | EE10: 0 | EF10: 129.8420266 | EG10: 0 | EH10: 0
B11: Integration and automation | C11: Integration delivery and testing | D11: Workstream 2 | G11: ='2021-2022'!G11+'2022-2023'!G11+'2023-2024'!G11+'2024-2025'!G11+'2025-2026'!G11+'2026-2027'!G11+'2027-2028'!G11+'2028-2029'!G11 -> 855.8 | H11: ='2021-2022'!H11+'2022-2023'!H11+'2023-2024'!H11+'2024-2025'!H11+'2025-2026'!H11+'2026-2027'!H11+'2027-2028'!H11+'2028-2029'!H11 -> 0 | I11: ='2021-2022'!I11+'2022-2023'!I11+'2023-2024'!I11+'2024-2025'!I11+'2025-2026'!I11+'2026-2027'!I11+'2027-2028'!I11+'2028-2029'!I11 -> 0 | J11: ='2021-2022'!J11+'2022-2023'!J11+'2023-2024'!J11+'2024-2025'!J11+'2025-2026'!J11+'2026-2027'!J11+'2027-2028'!J11+'2028-2029'!J11 -> 250 | K11: ='2021-2022'!K11+'2022-2023'!K11+'2023-2024'!K11+'2024-2025'!K11+'2025-2026'!K11+'2026-2027'!K11+'2027-2028'!K11+'2028-2029'!K11 -> 0 | L11: ='2021-2022'!L11+'2022-2023'!L11+'2023-2024'!L11+'2024-2025'!L11+'2025-2026'!L11+'2026-2027'!L11+'2027-2028'!L11+'2028-2029'!L11 -> 0 | M11: ='2021-2022'!M11+'2022-2023'!M11+'2023-2024'!M11+'2024-2025'!M11+'2025-2026'!M11+'2026-2027'!M11+'2027-2028'!M11+'2028-2029'!M11 -> 0 | N11: ='2021-2022'!N11+'2022-2023'!N11+'2023-2024'!N11+'2024-2025'!N11+'2025-2026'!N11+'2026-2027'!N11+'2027-2028'!N11+'2028-2029'!N11 -> 1073.6 | O11: ='2021-2022'!O11+'2022-2023'!O11+'2023-2024'!O11+'2024-2025'!O11+'2025-2026'!O11+'2026-2027'!O11+'2027-2028'!O11+'2028-2029'!O11 -> 0 | P11: ='2021-2022'!P11+'2022-2023'!P11+'2023-2024'!P11+'2024-2025'!P11+'2025-2026'!P11+'2026-2027'!P11+'2027-2028'!P11+'2028-2029'!P11 -> 0 | R11: 0.1124148957 | T11: 0.03650098222 | V11: 0.0219715935 | AA11: 0.8291125286 | AB11: 1 | AD11: 96.20466774 | AE11: 0 | AF11: 0 | AG11: 28.10372393 | AH11: 0 | AI11: 0 | AJ11: 0 | AK11: 120.688632 | AL11: 0 | AM11: 0 | AO11: 0 | AP11: 0 | AQ11: 0 | AR11: 0 | AS11: 0 | AT11: 0 | AU11: 0 | AV11: 0 | AW11: 0 | AX11: 0 | AZ11: 31.23754058 | BA11: 0 | BB11: 0 | BC11: 9.125245555 | BD11: 0 | BE11: 0 | BF11: 0 | BG11: 39.18745451 | BH11: 0 | BI11: 0 | BK11: 0 | BL11: 0 | BM11: 0 | BN11: 0 | BO11: 0 | BP11: 0 | BQ11: 0 | BR11: 0 | BS11: 0 | BT11: 0 | BV11: 0 | BW11: 0 | BX11: 0 | BY11: 0 | BZ11: 0 | CA11: 0 | CB11: 0 | CC11: 0 | CD11: 0 | CE11: 0 | CG11: 709.554502 | CH11: 0 | CI11: 0 | CJ11: 207.2781321 | CK11: 0 | CL11: 0 | CM11: 0 | CN11: 890.1352107 | CO11: 0 | CP11: 0 | CR11: 855.8 | CS11: 0 | CT11: 0 | CU11: 250 | CV11: 0 | CW11: 0 | CX11: 0 | CY11: 1073.6 | CZ11: 0 | DA11: 0 | DC11: 0 | DD11: 0 | DE11: 0 | DF11: 0 | DG11: 0 | DH11: 0 | DI11: 0 | DJ11: 0 | DK11: 0 | DL11: 0 | DN11: 0 | DO11: 0 | DP11: 0 | DQ11: 0 | DR11: 0 | DS11: 0 | DT11: 0 | DU11: 0 | DV11: 0 | DW11: 0 | DY11: 709.554502 | DZ11: 0 | EA11: 0 | EB11: 207.2781321 | EC11: 0 | ED11: 0 | EE11: 0 | EF11: 890.1352107 | EG11: 0 | EH11: 0
B12: Customer Engagement and Experience | C12: Engagement design | D12: WorkStream 3 | G12: ='2021-2022'!G12+'2022-2023'!G12+'2023-2024'!G12+'2024-2025'!G12+'2025-2026'!G12+'2026-2027'!G12+'2027-2028'!G12+'2028-2029'!G12 -> 61.13 | H12: ='2021-2022'!H12+'2022-2023'!H12+'2023-2024'!H12+'2024-2025'!H12+'2025-2026'!H12+'2026-2027'!H12+'2027-2028'!H12+'2028-2029'!H12 -> 0 | I12: ='2021-2022'!I12+'2022-2023'!I12+'2023-2024'!I12+'2024-2025'!I12+'2025-2026'!I12+'2026-2027'!I12+'2027-2028'!I12+'2028-2029'!I12 -> 0 | J12: ='2021-2022'!J12+'2022-2023'!J12+'2023-2024'!J12+'2024-2025'!J12+'2025-2026'!J12+'2026-2027'!J12+'2027-2028'!J12+'2028-2029'!J12 -> 0 | K12: ='2021-2022'!K12+'2022-2023'!K12+'2023-2024'!K12+'2024-2025'!K12+'2025-2026'!K12+'2026-2027'!K12+'2027-2028'!K12+'2028-2029'!K12 -> 0 | L12: ='2021-2022'!L12+'2022-2023'!L12+'2023-2024'!L12+'2024-2025'!L12+'2025-2026'!L12+'2026-2027'!L12+'2027-2028'!L12+'2028-2029'!L12 -> 0 | M12: ='2021-2022'!M12+'2022-2023'!M12+'2023-2024'!M12+'2024-2025'!M12+'2025-2026'!M12+'2026-2027'!M12+'2027-2028'!M12+'2028-2029'!M12 -> 0 | N12: ='2021-2022'!N12+'2022-2023'!N12+'2023-2024'!N12+'2024-2025'!N12+'2025-2026'!N12+'2026-2027'!N12+'2027-2028'!N12+'2028-2029'!N12 -> 0 | O12: ='2021-2022'!O12+'2022-2023'!O12+'2023-2024'!O12+'2024-2025'!O12+'2025-2026'!O12+'2026-2027'!O12+'2027-2028'!O12+'2028-2029'!O12 -> 0 | P12: ='2021-2022'!P12+'2022-2023'!P12+'2023-2024'!P12+'2024-2025'!P12+'2025-2026'!P12+'2026-2027'!P12+'2027-2028'!P12+'2028-2029'!P12 -> 0 | R12: 0.1124148957 | V12: 0.0219715935 | AA12: 0.8656135108 | AB12: 1 | AD12: 6.871922574 | AE12: 0 | AF12: 0 | AG12: 0 | AH12: 0 | AI12: 0 | AJ12: 0 | AK12: 0 | AL12: 0 | AM12: 0 | AO12: 0 | AP12: 0 | AQ12: 0 | AR12: 0 | AS12: 0 | AT12: 0 | AU12: 0 | AV12: 0 | AW12: 0 | AX12: 0 | AZ12: 0 | BA12: 0 | BB12: 0 | BC12: 0 | BD12: 0 | BE12: 0 | BF12: 0 | BG12: 0 | BH12: 0 | BI12: 0 | BK12: 0 | BL12: 0 | BM12: 0 | BN12: 0 | BO12: 0 | BP12: 0 | BQ12: 0 | BR12: 0 | BS12: 0 | BT12: 0 | BV12: 0 | BW12: 0 | BX12: 0 | BY12: 0 | BZ12: 0 | CA12: 0 | CB12: 0 | CC12: 0 | CD12: 0 | CE12: 0 | CG12: 52.91495392 | CH12: 0 | CI12: 0 | CJ12: 0 | CK12: 0 | CL12: 0 | CM12: 0 | CN12: 0 | CO12: 0 | CP12: 0 | CR12: 61.13 | CS12: 0 | CT12: 0 | CU12: 0 | CV12: 0 | CW12: 0 | CX12: 0 | CY12: 0 | CZ12: 0 | DA12: 0 | DC12: 0 | DD12: 0 | DE12: 0 | DF12: 0 | DG12: 0 | DH12: 0 | DI12: 0 | DJ12: 0 | DK12: 0 | DL12: 0 | DN12: 0 | DO12: 0 | DP12: 0 | DQ12: 0 | DR12: 0 | DS12: 0 | DT12: 0 | DU12: 0 | DV12: 0 | DW12: 0 | DY12: 52.91495392 | DZ12: 0 | EA12: 0 | EB12: 0 | EC12: 0 | ED12: 0 | EE12: 0 | EF12: 0 | EG12: 0 | EH12: 0
B13: Customer Engagement and Experience | C13: Engagement materials | D13: WorkStream 3 | G13: ='2021-2022'!G13+'2022-2023'!G13+'2023-2024'!G13+'2024-2025'!G13+'2025-2026'!G13+'2026-2027'!G13+'2027-2028'!G13+'2028-2029'!G13 -> 75.75 | H13: ='2021-2022'!H13+'2022-2023'!H13+'2023-2024'!H13+'2024-2025'!H13+'2025-2026'!H13+'2026-2027'!H13+'2027-2028'!H13+'2028-2029'!H13 -> 0 | I13: ='2021-2022'!I13+'2022-2023'!I13+'2023-2024'!I13+'2024-2025'!I13+'2025-2026'!I13+'2026-2027'!I13+'2027-2028'!I13+'2028-2029'!I13 -> 0 | J13: ='2021-2022'!J13+'2022-2023'!J13+'2023-2024'!J13+'2024-2025'!J13+'2025-2026'!J13+'2026-2027'!J13+'2027-2028'!J13+'2028-2029'!J13 -> 0 | K13: ='2021-2022'!K13+'2022-2023'!K13+'2023-2024'!K13+'2024-2025'!K13+'2025-2026'!K13+'2026-2027'!K13+'2027-2028'!K13+'2028-2029'!K13 -> 0 | L13: ='2021-2022'!L13+'2022-2023'!L13+'2023-2024'!L13+'2024-2025'!L13+'2025-2026'!L13+'2026-2027'!L13+'2027-2028'!L13+'2028-2029'!L13 -> 0 | M13: ='2021-2022'!M13+'2022-2023'!M13+'2023-2024'!M13+'2024-2025'!M13+'2025-2026'!M13+'2026-2027'!M13+'2027-2028'!M13+'2028-2029'!M13 -> 0 | N13: ='2021-2022'!N13+'2022-2023'!N13+'2023-2024'!N13+'2024-2025'!N13+'2025-2026'!N13+'2026-2027'!N13+'2027-2028'!N13+'2028-2029'!N13 -> 0 | O13: ='2021-2022'!O13+'2022-2023'!O13+'2023-2024'!O13+'2024-2025'!O13+'2025-2026'!O13+'2026-2027'!O13+'2027-2028'!O13+'2028-2029'!O13 -> 0 | P13: ='2021-2022'!P13+'2022-2023'!P13+'2023-2024'!P13+'2024-2025'!P13+'2025-2026'!P13+'2026-2027'!P13+'2027-2028'!P13+'2028-2029'!P13 -> 60 | R13: 0.1124148957 | S13: 0.1312650841 | V13: 0.0219715935 | AA13: 0.7343484267 | AB13: 1 | AD13: 8.51542835 | AE13: 0 | AF13: 0 | AG13: 0 | AH13: 0 | AI13: 0 | AJ13: 0 | AK13: 0 | AL13: 0 | AM13: 6.744893742 | AO13: 9.943330117 | AP13: 0 | AQ13: 0 | AR13: 0 | AS13: 0 | AT13: 0 | AU13: 0 | AV13: 0 | AW13: 0 | AX13: 7.875905043 | AZ13: 0 | BA13: 0 | BB13: 0 | BC13: 0 | BD13: 0 | BE13: 0 | BF13: 0 | BG13: 0 | BH13: 0 | BI13: 0 | BK13: 0 | BL13: 0 | BM13: 0 | BN13: 0 | BO13: 0 | BP13: 0 | BQ13: 0 | BR13: 0 | BS13: 0 | BT13: 0 | BV13: 0 | BW13: 0 | BX13: 0 | BY13: 0 | BZ13: 0 | CA13: 0 | CB13: 0 | CC13: 0 | CD13: 0 | CE13: 0 | CG13: 55.62689333 | CH13: 0 | CI13: 0 | CJ13: 0 | CK13: 0 | CL13: 0 | CM13: 0 | CN13: 0 | CO13: 0 | CP13: 44.0609056 | CR13: 75.75 | CS13: 0 | CT13: 0 | CU13: 0 | CV13: 0 | CW13: 0 | CX13: 0 | CY13: 0 | CZ13: 0 | DA13: 60 | DC13: 0 | DD13: 0 | DE13: 0 | DF13: 0 | DG13: 0 | DH13: 0 | DI13: 0 | DJ13: 0 | DK13: 0 | DL13: 0 | DN13: 0 | DO13: 0 | DP13: 0 | DQ13: 0 | DR13: 0 | DS13: 0 | DT13: 0 | DU13: 0 | DV13: 0 | DW13: 0 | DY13: 55.62689333 | DZ13: 0 | EA13: 0 | EB13: 0 | EC13: 0 | ED13: 0 | EE13: 0 | EF13: 0 | EG13: 0 | EH13: 44.0609056
B14: Customer Engagement and Experience | C14: Engagement surveys and focus groups | D14: WorkStream 3 | G14: ='2021-2022'!G14+'2022-2023'!G14+'2023-2024'!G14+'2024-2025'!G14+'2025-2026'!G14+'2026-2027'!G14+'2027-2028'!G14+'2028-2029'!G14 -> 196.3 | H14: ='2021-2022'!H14+'2022-2023'!H14+'2023-2024'!H14+'2024-2025'!H14+'2025-2026'!H14+'2026-2027'!H14+'2027-2028'!H14+'2028-2029'!H14 -> 0 | I14: ='2021-2022'!I14+'2022-2023'!I14+'2023-2024'!I14+'2024-2025'!I14+'2025-2026'!I14+'2026-2027'!I14+'2027-2028'!I14+'2028-2029'!I14 -> 0 | J14: ='2021-2022'!J14+'2022-2023'!J14+'2023-2024'!J14+'2024-2025'!J14+'2025-2026'!J14+'2026-2027'!J14+'2027-2028'!J14+'2028-2029'!J14 -> 0 | K14: ='2021-2022'!K14+'2022-2023'!K14+'2023-2024'!K14+'2024-2025'!K14+'2025-2026'!K14+'2026-2027'!K14+'2027-2028'!K14+'2028-2029'!K14 -> 0 | L14: ='2021-2022'!L14+'2022-2023'!L14+'2023-2024'!L14+'2024-2025'!L14+'2025-2026'!L14+'2026-2027'!L14+'2027-2028'!L14+'2028-2029'!L14 -> 0 | M14: ='2021-2022'!M14+'2022-2023'!M14+'2023-2024'!M14+'2024-2025'!M14+'2025-2026'!M14+'2026-2027'!M14+'2027-2028'!M14+'2028-2029'!M14 -> 45 | N14: ='2021-2022'!N14+'2022-2023'!N14+'2023-2024'!N14+'2024-2025'!N14+'2025-2026'!N14+'2026-2027'!N14+'2027-2028'!N14+'2028-2029'!N14 -> 15 | O14: ='2021-2022'!O14+'2022-2023'!O14+'2023-2024'!O14+'2024-2025'!O14+'2025-2026'!O14+'2026-2027'!O14+'2027-2028'!O14+'2028-2029'!O14 -> 0 | P14: ='2021-2022'!P14+'2022-2023'!P14+'2023-2024'!P14+'2024-2025'!P14+'2025-2026'!P14+'2026-2027'!P14+'2027-2028'!P14+'2028-2029'!P14 -> 0 | R14: 0.1124148957 | T14: 0.03650098222 | V14: 0.0219715935 | AA14: 0.8291125286 | AB14: 1 | AD14: 22.06704403 | AE14: 0 | AF14: 0 | AG14: 0 | AH14: 0 | AI14: 0 | AJ14: 5.058670307 | AK14: 1.686223436 | AL14: 0 | AM14: 0 | AO14: 0 | AP14: 0 | AQ14: 0 | AR14: 0 | AS14: 0 | AT14: 0 | AU14: 0 | AV14: 0 | AW14: 0 | AX14: 0 | AZ14: 7.165142809 | BA14: 0 | BB14: 0 | BC14: 0 | BD14: 0 | BE14: 0 | BF14: 1.6425442 | BG14: 0.5475147333 | BH14: 0 | BI14: 0 | BK14: 0 | BL14: 0 | BM14: 0 | BN14: 0 | BO14: 0 | BP14: 0 | BQ14: 0 | BR14: 0 | BS14: 0 | BT14: 0 | BV14: 0 | BW14: 0 | BX14: 0 | BY14: 0 | BZ14: 0 | CA14: 0 | CB14: 0 | CC14: 0 | CD14: 0 | CE14: 0 | CG14: 162.7547894 | CH14: 0 | CI14: 0 | CJ14: 0 | CK14: 0 | CL14: 0 | CM14: 37.31006379 | CN14: 12.43668793 | CO14: 0 | CP14: 0 | CR14: 196.3 | CS14: 0 | CT14: 0 | CU14: 0 | CV14: 0 | CW14: 0 | CX14: 45 | CY14: 15 | CZ14: 0 | DA14: 0 | DC14: 0 | DD14: 0 | DE14: 0 | DF14: 0 | DG14: 0 | DH14: 0 | DI14: 0 | DJ14: 0 | DK14: 0 | DL14: 0 | DN14: 0 | DO14: 0 | DP14: 0 | DQ14: 0 | DR14: 0 | DS14: 0 | DT14: 0 | DU14: 0 | DV14: 0 | DW14: 0 | DY14: 162.7547894 | DZ14: 0 | EA14: 0 | EB14: 0 | EC14: 0 | ED14: 0 | EE14: 37.31006379 | EF14: 12.43668793 | EG14: 0 | EH14: 0
B15: Customer Engagement and Experience | C15: Engagement primary research | D15: WorkStream 3 | G15: ='2021-2022'!G15+'2022-2023'!G15+'2023-2024'!G15+'2024-2025'!G15+'2025-2026'!G15+'2026-2027'!G15+'2027-2028'!G15+'2028-2029'!G15 -> 53.625 | H15: ='2021-2022'!H15+'2022-2023'!H15+'2023-2024'!H15+'2024-2025'!H15+'2025-2026'!H15+'2026-2027'!H15+'2027-2028'!H15+'2028-2029'!H15 -> 0 | I15: ='2021-2022'!I15+'2022-2023'!I15+'2023-2024'!I15+'2024-2025'!I15+'2025-2026'!I15+'2026-2027'!I15+'2027-2028'!I15+'2028-2029'!I15 -> 200 | J15: ='2021-2022'!J15+'2022-2023'!J15+'2023-2024'!J15+'2024-2025'!J15+'2025-2026'!J15+'2026-2027'!J15+'2027-2028'!J15+'2028-2029'!J15 -> 0 | K15: ='2021-2022'!K15+'2022-2023'!K15+'2023-2024'!K15+'2024-2025'!K15+'2025-2026'!K15+'2026-2027'!K15+'2027-2028'!K15+'2028-2029'!K15 -> 0 | L15: ='2021-2022'!L15+'2022-2023'!L15+'2023-2024'!L15+'2024-2025'!L15+'2025-2026'!L15+'2026-2027'!L15+'2027-2028'!L15+'2028-2029'!L15 -> 0 | M15: ='2021-2022'!M15+'2022-2023'!M15+'2023-2024'!M15+'2024-2025'!M15+'2025-2026'!M15+'2026-2027'!M15+'2027-2028'!M15+'2028-2029'!M15 -> 0 | N15: ='2021-2022'!N15+'2022-2023'!N15+'2023-2024'!N15+'2024-2025'!N15+'2025-2026'!N15+'2026-2027'!N15+'2027-2028'!N15+'2028-2029'!N15 -> 0 | O15: ='2021-2022'!O15+'2022-2023'!O15+'2023-2024'!O15+'2024-2025'!O15+'2025-2026'!O15+'2026-2027'!O15+'2027-2028'!O15+'2028-2029'!O15 -> 0 | P15: ='2021-2022'!P15+'2022-2023'!P15+'2023-2024'!P15+'2024-2025'!P15+'2025-2026'!P15+'2026-2027'!P15+'2027-2028'!P15+'2028-2029'!P15 -> 0 | R15: 0.1124148957 | V15: 0.0219715935 | AA15: 0.8656135108 | AB15: 1 | AD15: 6.028248782 | AE15: 0 | AF15: 22.48297914 | AG15: 0 | AH15: 0 | AI15: 0 | AJ15: 0 | AK15: 0 | AL15: 0 | AM15: 0 | AO15: 0 | AP15: 0 | AQ15: 0 | AR15: 0 | AS15: 0 | AT15: 0 | AU15: 0 | AV15: 0 | AW15: 0 | AX15: 0 | AZ15: 0 | BA15: 0 | BB15: 0 | BC15: 0 | BD15: 0 | BE15: 0 | BF15: 0 | BG15: 0 | BH15: 0 | BI15: 0 | BK15: 0 | BL15: 0 | BM15: 0 | BN15: 0 | BO15: 0 | BP15: 0 | BQ15: 0 | BR15: 0 | BS15: 0 | BT15: 0 | BV15: 0 | BW15: 0 | BX15: 0 | BY15: 0 | BZ15: 0 | CA15: 0 | CB15: 0 | CC15: 0 | CD15: 0 | CE15: 0 | CG15: 46.41852452 | CH15: 0 | CI15: 173.1227022 | CJ15: 0 | CK15: 0 | CL15: 0 | CM15: 0 | CN15: 0 | CO15: 0 | CP15: 0 | CR15: 53.625 | CS15: 0 | CT15: 200 | CU15: 0 | CV15: 0 | CW15: 0 | CX15: 0 | CY15: 0 | CZ15: 0 | DA15: 0 | DC15: 0 | DD15: 0 | DE15: 0 | DF15: 0 | DG15: 0 | DH15: 0 | DI15: 0 | DJ15: 0 | DK15: 0 | DL15: 0 | DN15: 0 | DO15: 0 | DP15: 0 | DQ15: 0 | DR15: 0 | DS15: 0 | DT15: 0 | DU15: 0 | DV15: 0 | DW15: 0 | DY15: 46.41852452 | DZ15: 0 | EA15: 173.1227022 | EB15: 0 | EC15: 0 | ED15: 0 | EE15: 0 | EF15: 0 | EG15: 0 | EH15: 0
B16: Trials | C16: Overal Trial Design | D16: Workstream 4 | G16: ='2021-2022'!G16+'2022-2023'!G16+'2023-2024'!G16+'2024-2025'!G16+'2025-2026'!G16+'2026-2027'!G16+'2027-2028'!G16+'2028-2029'!G16 -> 303.005 | H16: ='2021-2022'!H16+'2022-2023'!H16+'2023-2024'!H16+'2024-2025'!H16+'2025-2026'!H16+'2026-2027'!H16+'2027-2028'!H16+'2028-2029'!H16 -> 0 | I16: ='2021-2022'!I16+'2022-2023'!I16+'2023-2024'!I16+'2024-2025'!I16+'2025-2026'!I16+'2026-2027'!I16+'2027-2028'!I16+'2028-2029'!I16 -> 0 | J16: ='2021-2022'!J16+'2022-2023'!J16+'2023-2024'!J16+'2024-2025'!J16+'2025-2026'!J16+'2026-2027'!J16+'2027-2028'!J16+'2028-2029'!J16 -> 0 | K16: ='2021-2022'!K16+'2022-2023'!K16+'2023-2024'!K16+'2024-2025'!K16+'2025-2026'!K16+'2026-2027'!K16+'2027-2028'!K16+'2028-2029'!K16 -> 0 | L16: ='2021-2022'!L16+'2022-2023'!L16+'2023-2024'!L16+'2024-2025'!L16+'2025-2026'!L16+'2026-2027'!L16+'2027-2028'!L16+'2028-2029'!L16 -> 0 | M16: ='2021-2022'!M16+'2022-2023'!M16+'2023-2024'!M16+'2024-2025'!M16+'2025-2026'!M16+'2026-2027'!M16+'2027-2028'!M16+'2028-2029'!M16 -> 0 | N16: ='2021-2022'!N16+'2022-2023'!N16+'2023-2024'!N16+'2024-2025'!N16+'2025-2026'!N16+'2026-2027'!N16+'2027-2028'!N16+'2028-2029'!N16 -> 0 | O16: ='2021-2022'!O16+'2022-2023'!O16+'2023-2024'!O16+'2024-2025'!O16+'2025-2026'!O16+'2026-2027'!O16+'2027-2028'!O16+'2028-2029'!O16 -> 0 | P16: ='2021-2022'!P16+'2022-2023'!P16+'2023-2024'!P16+'2024-2025'!P16+'2025-2026'!P16+'2026-2027'!P16+'2027-2028'!P16+'2028-2029'!P16 -> 0 | R16: 0.1124148957 | T16: 0.03650098222 | V16: 0.0219715935 | AA16: 0.8291125286 | AB16: 1 | AD16: 34.06227547 | AE16: 0 | AF16: 0 | AG16: 0 | AH16: 0 | AI16: 0 | AJ16: 0 | AK16: 0 | AL16: 0 | AM16: 0 | AO16: 0 | AP16: 0 | AQ16: 0 | AR16: 0 | AS16: 0 | AT16: 0 | AU16: 0 | AV16: 0 | AW16: 0 | AX16: 0 | AZ16: 11.05998012 | BA16: 0 | BB16: 0 | BC16: 0 | BD16: 0 | BE16: 0 | BF16: 0 | BG16: 0 | BH16: 0 | BI16: 0 | BK16: 0 | BL16: 0 | BM16: 0 | BN16: 0 | BO16: 0 | BP16: 0 | BQ16: 0 | BR16: 0 | BS16: 0 | BT16: 0 | BV16: 0 | BW16: 0 | BX16: 0 | BY16: 0 | BZ16: 0 | CA16: 0 | CB16: 0 | CC16: 0 | CD16: 0 | CE16: 0 | CG16: 251.2252417 | CH16: 0 | CI16: 0 | CJ16: 0 | CK16: 0 | CL16: 0 | CM16: 0 | CN16: 0 | CO16: 0 | CP16: 0 | CR16: 303.005 | CS16: 0 | CT16: 0 | CU16: 0 | CV16: 0 | CW16: 0 | CX16: 0 | CY16: 0 | CZ16: 0 | DA16: 0 | DC16: 0 | DD16: 0 | DE16: 0 | DF16: 0 | DG16: 0 | DH16: 0 | DI16: 0 | DJ16: 0 | DK16: 0 | DL16: 0 | DN16: 0 | DO16: 0 | DP16: 0 | DQ16: 0 | DR16: 0 | DS16: 0 | DT16: 0 | DU16: 0 | DV16: 0 | DW16: 0 | DY16: 251.2252417 | DZ16: 0 | EA16: 0 | EB16: 0 | EC16: 0 | ED16: 0 | EE16: 0 | EF16: 0 | EG16: 0 | EH16: 0
B17: Trials | C17: Simulation modelling | D17: Workstream 4 | G17: ='2021-2022'!G17+'2022-2023'!G17+'2023-2024'!G17+'2024-2025'!G17+'2025-2026'!G17+'2026-2027'!G17+'2027-2028'!G17+'2028-2029'!G17 -> 394.5 | H17: ='2021-2022'!H17+'2022-2023'!H17+'2023-2024'!H17+'2024-2025'!H17+'2025-2026'!H17+'2026-2027'!H17+'2027-2028'!H17+'2028-2029'!H17 -> 0 | I17: ='2021-2022'!I17+'2022-2023'!I17+'2023-2024'!I17+'2024-2025'!I17+'2025-2026'!I17+'2026-2027'!I17+'2027-2028'!I17+'2028-2029'!I17 -> 120 | J17: ='2021-2022'!J17+'2022-2023'!J17+'2023-2024'!J17+'2024-2025'!J17+'2025-2026'!J17+'2026-2027'!J17+'2027-2028'!J17+'2028-2029'!J17 -> 0 | K17: ='2021-2022'!K17+'2022-2023'!K17+'2023-2024'!K17+'2024-2025'!K17+'2025-2026'!K17+'2026-2027'!K17+'2027-2028'!K17+'2028-2029'!K17 -> 0 | L17: ='2021-2022'!L17+'2022-2023'!L17+'2023-2024'!L17+'2024-2025'!L17+'2025-2026'!L17+'2026-2027'!L17+'2027-2028'!L17+'2028-2029'!L17 -> 0 | M17: ='2021-2022'!M17+'2022-2023'!M17+'2023-2024'!M17+'2024-2025'!M17+'2025-2026'!M17+'2026-2027'!M17+'2027-2028'!M17+'2028-2029'!M17 -> 0 | N17: ='2021-2022'!N17+'2022-2023'!N17+'2023-2024'!N17+'2024-2025'!N17+'2025-2026'!N17+'2026-2027'!N17+'2027-2028'!N17+'2028-2029'!N17 -> 0 | O17: ='2021-2022'!O17+'2022-2023'!O17+'2023-2024'!O17+'2024-2025'!O17+'2025-2026'!O17+'2026-2027'!O17+'2027-2028'!O17+'2028-2029'!O17 -> 0 | P17: ='2021-2022'!P17+'2022-2023'!P17+'2023-2024'!P17+'2024-2025'!P17+'2025-2026'!P17+'2026-2027'!P17+'2027-2028'!P17+'2028-2029'!P17 -> 0 | R17: 0.1124148957 | S17: 0.1312650841 | U17: 0.03678269526 | V17: 0.0219715935 | AA17: 0.6975657315 | AB17: 1 | AD17: 44.34767636 | AE17: 0 | AF17: 13.48978748 | AG17: 0 | AH17: 0 | AI17: 0 | AJ17: 0 | AK17: 0 | AL17: 0 | AM17: 0 | AO17: 51.78407566 | AP17: 0 | AQ17: 15.75181009 | AR17: 0 | AS17: 0 | AT17: 0 | AU17: 0 | AV17: 0 | AW17: 0 | AX17: 0 | AZ17: 0 | BA17: 0 | BB17: 0 | BC17: 0 | BD17: 0 | BE17: 0 | BF17: 0 | BG17: 0 | BH17: 0 | BI17: 0 | BK17: 14.51077328 | BL17: 0 | BM17: 4.413923431 | BN17: 0 | BO17: 0 | BP17: 0 | BQ17: 0 | BR17: 0 | BS17: 0 | BT17: 0 | BV17: 0 | BW17: 0 | BX17: 0 | BY17: 0 | BZ17: 0 | CA17: 0 | CB17: 0 | CC17: 0 | CD17: 0 | CE17: 0 | CG17: 275.1896811 | CH17: 0 | CI17: 83.70788778 | CJ17: 0 | CK17: 0 | CL17: 0 | CM17: 0 | CN17: 0 | CO17: 0 | CP17: 0 | CR17: 394.5 | CS17: 0 | CT17: 120 | CU17: 0 | CV17: 0 | CW17: 0 | CX17: 0 | CY17: 0 | CZ17: 0 | DA17: 0 | DC17: 0 | DD17: 0 | DE17: 0 | DF17: 0 | DG17: 0 | DH17: 0 | DI17: 0 | DJ17: 0 | DK17: 0 | DL17: 0 | DN17: 0 | DO17: 0 | DP17: 0 | DQ17: 0 | DR17: 0 | DS17: 0 | DT17: 0 | DU17: 0 | DV17: 0 | DW17: 0 | DY17: 275.1896811 | DZ17: 0 | EA17: 83.70788778 | EB17: 0 | EC17: 0 | ED17: 0 | EE17: 0 | EF17: 0 | EG17: 0 | EH17: 0
B18: Trials | C18: Trial delivery and analysis | D18: Workstream 4 | G18: ='2021-2022'!G18+'2022-2023'!G18+'2023-2024'!G18+'2024-2025'!G18+'2025-2026'!G18+'2026-2027'!G18+'2027-2028'!G18+'2028-2029'!G18 -> 1056.925 | H18: ='2021-2022'!H18+'2022-2023'!H18+'2023-2024'!H18+'2024-2025'!H18+'2025-2026'!H18+'2026-2027'!H18+'2027-2028'!H18+'2028-2029'!H18 -> 7000 | I18: ='2021-2022'!I18+'2022-2023'!I18+'2023-2024'!I18+'2024-2025'!I18+'2025-2026'!I18+'2026-2027'!I18+'2027-2028'!I18+'2028-2029'!I18 -> 0 | J18: ='2021-2022'!J18+'2022-2023'!J18+'2023-2024'!J18+'2024-2025'!J18+'2025-2026'!J18+'2026-2027'!J18+'2027-2028'!J18+'2028-2029'!J18 -> 0 | K18: ='2021-2022'!K18+'2022-2023'!K18+'2023-2024'!K18+'2024-2025'!K18+'2025-2026'!K18+'2026-2027'!K18+'2027-2028'!K18+'2028-2029'!K18 -> 0 | L18: ='2021-2022'!L18+'2022-2023'!L18+'2023-2024'!L18+'2024-2025'!L18+'2025-2026'!L18+'2026-2027'!L18+'2027-2028'!L18+'2028-2029'!L18 -> 0 | M18: ='2021-2022'!M18+'2022-2023'!M18+'2023-2024'!M18+'2024-2025'!M18+'2025-2026'!M18+'2026-2027'!M18+'2027-2028'!M18+'2028-2029'!M18 -> 180 | N18: ='2021-2022'!N18+'2022-2023'!N18+'2023-2024'!N18+'2024-2025'!N18+'2025-2026'!N18+'2026-2027'!N18+'2027-2028'!N18+'2028-2029'!N18 -> 230 | O18: ='2021-2022'!O18+'2022-2023'!O18+'2023-2024'!O18+'2024-2025'!O18+'2025-2026'!O18+'2026-2027'!O18+'2027-2028'!O18+'2028-2029'!O18 -> 0 | P18: ='2021-2022'!P18+'2022-2023'!P18+'2023-2024'!P18+'2024-2025'!P18+'2025-2026'!P18+'2026-2027'!P18+'2027-2028'!P18+'2028-2029'!P18 -> 0 | X18: 0.5905331629 | Y18: 0.2362132651 | AA18: 0.173253572 | AB18: 1 | AD18: 0 | AE18: 0 | AF18: 0 | AG18: 0 | AH18: 0 | AI18: 0 | AJ18: 0 | AK18: 0 | AL18: 0 | AM18: 0 | AO18: 0 | AP18: 0 | AQ18: 0 | AR18: 0 | AS18: 0 | AT18: 0 | AU18: 0 | AV18: 0 | AW18: 0 | AX18: 0 | AZ18: 0 | BA18: 0 | BB18: 0 | BC18: 0 | BD18: 0 | BE18: 0 | BF18: 0 | BG18: 0 | BH18: 0 | BI18: 0 | BK18: 0 | BL18: 0 | BM18: 0 | BN18: 0 | BO18: 0 | BP18: 0 | BQ18: 0 | BR18: 0 | BS18: 0 | BT18: 0 | BV18: 0 | BW18: 0 | BX18: 0 | BY18: 0 | BZ18: 0 | CA18: 0 | CB18: 0 | CC18: 0 | CD18: 0 | CE18: 0 | CG18: 183.1160316 | CH18: 1212.775004 | CI18: 0 | CJ18: 0 | CK18: 0 | CL18: 0 | CM18: 31.18564296 | CN18: 39.84832156 | CO18: 0 | CP18: 0 | CR18: 1056.925 | CS18: 7000 | CT18: 0 | CU18: 0 | CV18: 0 | CW18: 0 | CX18: 180 | CY18: 230 | CZ18: 0 | DA18: 0 | DC18: 0 | DD18: 0 | DE18: 0 | DF18: 0 | DG18: 0 | DH18: 0 | DI18: 0 | DJ18: 0 | DK18: 0 | DL18: 0 | DN18: 0 | DO18: 0 | DP18: 0 | DQ18: 0 | DR18: 0 | DS18: 0 | DT18: 0 | DU18: 0 | DV18: 0 | DW18: 0 | DY18: 183.1160316 | DZ18: 1212.775004 | EA18: 0 | EB18: 0 | EC18: 0 | ED18: 0 | EE18: 31.18564296 | EF18: 39.84832156 | EG18: 0 | EH18: 0
B19: Trials | C19: Business case update and transistion | D19: Workstream 4 | G19: ='2021-2022'!G19+'2022-2023'!G19+'2023-2024'!G19+'2024-2025'!G19+'2025-2026'!G19+'2026-2027'!G19+'2027-2028'!G19+'2028-2029'!G19 -> 267.925 | H19: ='2021-2022'!H19+'2022-2023'!H19+'2023-2024'!H19+'2024-2025'!H19+'2025-2026'!H19+'2026-2027'!H19+'2027-2028'!H19+'2028-2029'!H19 -> 0 | I19: ='2021-2022'!I19+'2022-2023'!I19+'2023-2024'!I19+'2024-2025'!I19+'2025-2026'!I19+'2026-2027'!I19+'2027-2028'!I19+'2028-2029'!I19 -> 0 | J19: ='2021-2022'!J19+'2022-2023'!J19+'2023-2024'!J19+'2024-2025'!J19+'2025-2026'!J19+'2026-2027'!J19+'2027-2028'!J19+'2028-2029'!J19 -> 0 | K19: ='2021-2022'!K19+'2022-2023'!K19+'2023-2024'!K19+'2024-2025'!K19+'2025-2026'!K19+'2026-2027'!K19+'2027-2028'!K19+'2028-2029'!K19 -> 0 | L19: ='2021-2022'!L19+'2022-2023'!L19+'2023-2024'!L19+'2024-2025'!L19+'2025-2026'!L19+'2026-2027'!L19+'2027-2028'!L19+'2028-2029'!L19 -> 0 | M19: ='2021-2022'!M19+'2022-2023'!M19+'2023-2024'!M19+'2024-2025'!M19+'2025-2026'!M19+'2026-2027'!M19+'2027-2028'!M19+'2028-2029'!M19 -> 0 | N19: ='2021-2022'!N19+'2022-2023'!N19+'2023-2024'!N19+'2024-2025'!N19+'2025-2026'!N19+'2026-2027'!N19+'2027-2028'!N19+'2028-2029'!N19 -> 0 | O19: ='2021-2022'!O19+'2022-2023'!O19+'2023-2024'!O19+'2024-2025'!O19+'2025-2026'!O19+'2026-2027'!O19+'2027-2028'!O19+'2028-2029'!O19 -> 0 | P19: ='2021-2022'!P19+'2022-2023'!P19+'2023-2024'!P19+'2024-2025'!P19+'2025-2026'!P19+'2026-2027'!P19+'2027-2028'!P19+'2028-2029'!P19 -> 0 | R19: 0.1124148957 | S19: 0.1312650841 | W19: 0.01706873914 | AA19: 0.7392512811 | AB19: 1 | AD19: 30.11876093 | AE19: 0 | AF19: 0 | AG19: 0 | AH19: 0 | AI19: 0 | AJ19: 0 | AK19: 0 | AL19: 0 | AM19: 0 | AO19: 35.16919765 | AP19: 0 | AQ19: 0 | AR19: 0 | AS19: 0 | AT19: 0 | AU19: 0 | AV19: 0 | AW19: 0 | AX19: 0 | AZ19: 0 | BA19: 0 | BB19: 0 | BC19: 0 | BD19: 0 | BE19: 0 | BF19: 0 | BG19: 0 | BH19: 0 | BI19: 0 | BK19: 0 | BL19: 0 | BM19: 0 | BN19: 0 | BO19: 0 | BP19: 0 | BQ19: 0 | BR19: 0 | BS19: 0 | BT19: 0 | BV19: 0 | BW19: 0 | BX19: 0 | BY19: 0 | BZ19: 0 | CA19: 0 | CB19: 0 | CC19: 0 | CD19: 0 | CE19: 0 | CG19: 198.0638995 | CH19: 0 | CI19: 0 | CJ19: 0 | CK19: 0 | CL19: 0 | CM19: 0 | CN19: 0 | CO19: 0 | CP19: 0 | CR19: 267.925 | CS19: 0 | CT19: 0 | CU19: 0 | CV19: 0 | CW19: 0 | CX19: 0 | CY19: 0 | CZ19: 0 | DA19: 0 | DC19: 0 | DD19: 0 | DE19: 0 | DF19: 0 | DG19: 0 | DH19: 0 | DI19: 0 | DJ19: 0 | DK19: 0 | DL19: 0 | DN19: 0 | DO19: 0 | DP19: 0 | DQ19: 0 | DR19: 0 | DS19: 0 | DT19: 0 | DU19: 0 | DV19: 0 | DW19: 0 | DY19: 198.0638995 | DZ19: 0 | EA19: 0 | EB19: 0 | EC19: 0 | ED19: 0 | EE19: 0 | EF19: 0 | EG19: 0 | EH19: 0
B20: PM Management and knowledge dissemination | C20: PM Labour | D20: WorkStream 5 | G20: ='2021-2022'!G20+'2022-2023'!G20+'2023-2024'!G20+'2024-2025'!G20+'2025-2026'!G20+'2026-2027'!G20+'2027-2028'!G20+'2028-2029'!G20 -> 947.175 | H20: ='2021-2022'!H20+'2022-2023'!H20+'2023-2024'!H20+'2024-2025'!H20+'2025-2026'!H20+'2026-2027'!H20+'2027-2028'!H20+'2028-2029'!H20 -> 0 | I20: ='2021-2022'!I20+'2022-2023'!I20+'2023-2024'!I20+'2024-2025'!I20+'2025-2026'!I20+'2026-2027'!I20+'2027-2028'!I20+'2028-2029'!I20 -> 0 | J20: ='2021-2022'!J20+'2022-2023'!J20+'2023-2024'!J20+'2024-2025'!J20+'2025-2026'!J20+'2026-2027'!J20+'2027-2028'!J20+'2028-2029'!J20 -> 0 | K20: ='2021-2022'!K20+'2022-2023'!K20+'2023-2024'!K20+'2024-2025'!K20+'2025-2026'!K20+'2026-2027'!K20+'2027-2028'!K20+'2028-2029'!K20 -> 0 | L20: ='2021-2022'!L20+'2022-2023'!L20+'2023-2024'!L20+'2024-2025'!L20+'2025-2026'!L20+'2026-2027'!L20+'2027-2028'!L20+'2028-2029'!L20 -> 20 | M20: ='2021-2022'!M20+'2022-2023'!M20+'2023-2024'!M20+'2024-2025'!M20+'2025-2026'!M20+'2026-2027'!M20+'2027-2028'!M20+'2028-2029'!M20 -> 0 | N20: ='2021-2022'!N20+'2022-2023'!N20+'2023-2024'!N20+'2024-2025'!N20+'2025-2026'!N20+'2026-2027'!N20+'2027-2028'!N20+'2028-2029'!N20 -> 0 | O20: ='2021-2022'!O20+'2022-2023'!O20+'2023-2024'!O20+'2024-2025'!O20+'2025-2026'!O20+'2026-2027'!O20+'2027-2028'!O20+'2028-2029'!O20 -> 0 | P20: ='2021-2022'!P20+'2022-2023'!P20+'2023-2024'!P20+'2024-2025'!P20+'2025-2026'!P20+'2026-2027'!P20+'2027-2028'!P20+'2028-2029'!P20 -> 0 | R20: 0.1124148957 | T20: 0.03650098222 | U20: 0.03678269526 | V20: 0.0219715935 | AA20: 0.7923298333 | AB20: 1 | AD20: 106.4765788 | AE20: 0 | AF20: 0 | AG20: 0 | AH20: 0 | AI20: 2.248297914 | AJ20: 0 | AK20: 0 | AL20: 0 | AM20: 0 | AO20: 0 | AP20: 0 | AQ20: 0 | AR20: 0 | AS20: 0 | AT20: 0 | AU20: 0 | AV20: 0 | AW20: 0 | AX20: 0 | AZ20: 34.57281783 | BA20: 0 | BB20: 0 | BC20: 0 | BD20: 0 | BE20: 0.7300196444 | BF20: 0 | BG20: 0 | BH20: 0 | BI20: 0 | BK20: 34.83964938 | BL20: 0 | BM20: 0 | BN20: 0 | BO20: 0 | BP20: 0.7356539052 | BQ20: 0 | BR20: 0 | BS20: 0 | BT20: 0 | BV20: 0 | BW20: 0 | BX20: 0 | BY20: 0 | BZ20: 0 | CA20: 0 | CB20: 0 | CC20: 0 | CD20: 0 | CE20: 0 | CG20: 750.4750099 | CH20: 0 | CI20: 0 | CJ20: 0 | CK20: 0 | CL20: 15.84659667 | CM20: 0 | CN20: 0 | CO20: 0 | CP20: 0 | CR20: 947.175 | CS20: 0 | CT20: 0 | CU20: 0 | CV20: 0 | CW20: 20 | CX20: 0 | CY20: 0 | CZ20: 0 | DA20: 0 | DC20: 0 | DD20: 0 | DE20: 0 | DF20: 0 | DG20: 0 | DH20: 0 | DI20: 0 | DJ20: 0 | DK20: 0 | DL20: 0 | DN20: 0 | DO20: 0 | DP20: 0 | DQ20: 0 | DR20: 0 | DS20: 0 | DT20: 0 | DU20: 0 | DV20: 0 | DW20: 0 | DY20: 750.4750099 | DZ20: 0 | EA20: 0 | EB20: 0 | EC20: 0 | ED20: 15.84659667 | EE20: 0 | EF20: 0 | EG20: 0 | EH20: 0
B21: PM Management and knowledge dissemination | C21: Knowledge transfer and dissemination | D21: WorkStream 5 | G21: ='2021-2022'!G21+'2022-2023'!G21+'2023-2024'!G21+'2024-2025'!G21+'2025-2026'!G21+'2026-2027'!G21+'2027-2028'!G21+'2028-2029'!G21 -> 441.38 | H21: ='2021-2022'!H21+'2022-2023'!H21+'2023-2024'!H21+'2024-2025'!H21+'2025-2026'!H21+'2026-2027'!H21+'2027-2028'!H21+'2028-2029'!H21 -> 0 | I21: ='2021-2022'!I21+'2022-2023'!I21+'2023-2024'!I21+'2024-2025'!I21+'2025-2026'!I21+'2026-2027'!I21+'2027-2028'!I21+'2028-2029'!I21 -> 198 | J21: ='2021-2022'!J21+'2022-2023'!J21+'2023-2024'!J21+'2024-2025'!J21+'2025-2026'!J21+'2026-2027'!J21+'2027-2028'!J21+'2028-2029'!J21 -> 0 | K21: ='2021-2022'!K21+'2022-2023'!K21+'2023-2024'!K21+'2024-2025'!K21+'2025-2026'!K21+'2026-2027'!K21+'2027-2028'!K21+'2028-2029'!K21 -> 0 | L21: ='2021-2022'!L21+'2022-2023'!L21+'2023-2024'!L21+'2024-2025'!L21+'2025-2026'!L21+'2026-2027'!L21+'2027-2028'!L21+'2028-2029'!L21 -> 0 | M21: ='2021-2022'!M21+'2022-2023'!M21+'2023-2024'!M21+'2024-2025'!M21+'2025-2026'!M21+'2026-2027'!M21+'2027-2028'!M21+'2028-2029'!M21 -> 0 | N21: ='2021-2022'!N21+'2022-2023'!N21+'2023-2024'!N21+'2024-2025'!N21+'2025-2026'!N21+'2026-2027'!N21+'2027-2028'!N21+'2028-2029'!N21 -> 0 | O21: ='2021-2022'!O21+'2022-2023'!O21+'2023-2024'!O21+'2024-2025'!O21+'2025-2026'!O21+'2026-2027'!O21+'2027-2028'!O21+'2028-2029'!O21 -> 0 | P21: ='2021-2022'!P21+'2022-2023'!P21+'2023-2024'!P21+'2024-2025'!P21+'2025-2026'!P21+'2026-2027'!P21+'2027-2028'!P21+'2028-2029'!P21 -> 80 | Q21: Total Cost | R21: 0.1124148957 | S21: 0.1312650841 | T21: 0.03650098222 | AA21: 0.719819038 | AB21: 1 | AD21: 49.61768667 | AE21: 0 | AF21: 22.25814935 | AG21: 0 | AH21: 0 | AI21: 0 | AJ21: 0 | AK21: 0 | AL21: 0 | AM21: 8.993191656 | AO21: 57.9377828 | AP21: 0 | AQ21: 25.99048664 | AR21: 0 | AS21: 0 | AT21: 0 | AU21: 0 | AV21: 0 | AW21: 0 | AX21: 10.50120672 | AZ21: 16.11080353 | BA21: 0 | BB21: 7.227194479 | BC21: 0 | BD21: 0 | BE21: 0 | BF21: 0 | BG21: 0 | BH21: 0 | BI21: 2.920078577 | BK21: 0 | BL21: 0 | BM21: 0 | BN21: 0 | BO21: 0 | BP21: 0 | BQ21: 0 | BR21: 0 | BS21: 0 | BT21: 0 | BV21: 0 | BW21: 0 | BX21: 0 | BY21: 0 | BZ21: 0 | CA21: 0 | CB21: 0 | CC21: 0 | CD21: 0 | CE21: 0 | CG21: 317.713727 | CH21: 0 | CI21: 142.5241695 | CJ21: 0 | CK21: 0 | CL21: 0 | CM21: 0 | CN21: 0 | CO21: 0 | CP21: 57.58552304 | CR21: 441.38 | CS21: 0 | CT21: 198 | CU21: 0 | CV21: 0 | CW21: 0 | CX21: 0 | CY21: 0 | CZ21: 0 | DA21: 80 | DC21: 0 | DD21: 0 | DE21: 0 | DF21: 0 | DG21: 0 | DH21: 0 | DI21: 0 | DJ21: 0 | DK21: 0 | DL21: 0 | DN21: 0 | DO21: 0 | DP21: 0 | DQ21: 0 | DR21: 0 | DS21: 0 | DT21: 0 | DU21: 0 | DV21: 0 | DW21: 0 | DY21: 317.713727 | DZ21: 0 | EA21: 142.5241695 | EB21: 0 | EC21: 0 | ED21: 0 | EE21: 0 | EF21: 0 | EG21: 0 | EH21: 57.58552304
B22: Total | G22: =SUM(G7:G21) -> 5724.76 | H22: =SUM(H7:H21) -> 7000 | I22: 518 | J22: 250 | K22: 0 | L22: 20 | M22: 225 | N22: 1497.6 | O22: 0 | P22: 140 | Q22: =SUM(G22:P22) -> 15375.36 | AD22: =SUM(AD7:AD21) -> 524.7341847 | AE22: 0 | AF22: 58.23091597 | AG22: 28.10372393 | AH22: 0 | AI22: 2.248297914 | AJ22: 5.058670307 | AK22: 142.4971218 | AL22: 0 | AM22: 15.7380854 | AO22: =SUM(AO7:AO21) -> 190.9329407 | AP22: 0 | AQ22: 41.74229673 | AR22: 0 | AS22: 0 | AT22: 0 | AU22: 0 | AV22: 1.312650841 | AW22: 0 | AX22: 18.37711177 | AZ22: =SUM(AZ7:AZ21) -> 106.6874434 | BA22: 0 | BB22: 7.227194479 | BC22: 9.125245555 | BD22: 0 | BE22: 0.7300196444 | BF22: 1.6425442 | BG22: 39.91747415 | BH22: 0 | BI22: 2.920078577 | BK22: =SUM(BK7:BK21) -> 49.35042266 | BL22: 0 | BM22: 4.413923431 | BN22: 0 | BO22: 0 | BP22: 0.7356539052 | BQ22: 0 | BR22: 0 | BS22: 0 | BT22: 0 | BV22: =SUM(BV7:BV21) -> 0 | BW22: 0 | BX22: 0 | BY22: 0 | BZ22: 0 | CA22: 0 | CB22: 0 | CC22: 0 | CD22: 0 | CE22: 0 | CG22: =SUM(CG7:CG21) -> 3888.16385 | CH22: 1212.775004 | CI22: 399.3547595 | CJ22: 207.2781321 | CK22: 0 | CL22: 15.84659667 | CM22: 68.49570674 | CN22: 1095.938523 | CO22: 0 | CP22: 101.6464286 | CR22: =SUM(CR7:CR21) -> 5724.76 | CS22: 7000 | CT22: 518 | CU22: 250 | CV22: 0 | CW22: 20 | CX22: 225 | CY22: 1497.6 | CZ22: 0 | DA22: 140 | DC22: =SUM(DC7:DC21) -> 0 | DD22: 0 | DE22: 0 | DF22: 0 | DG22: 0 | DH22: 0 | DI22: 0 | DJ22: 0 | DK22: 0 | DL22: 0 | DN22: =SUM(DN7:DN21) -> 0 | DO22: 0 | DP22: 0 | DQ22: 0 | DR22: 0 | DS22: 0 | DT22: 0 | DU22: 0 | DV22: 0 | DW22: 0 | DY22: =SUM(DY7:DY21) -> 3888.16385 | DZ22: 1212.775004 | EA22: 399.3547595 | EB22: 207.2781321 | EC22: 0 | ED22: 15.84659667 | EE22: 68.49570674 | EF22: 1095.938523 | EG22: 0 | EH22: 101.6464286
D268: Totals

Sheet Project Direction
C4: Cost Category | D4: Cost
C5: Labour
D6: ='Whole project'!DY22+'Whole project'!AD22+'Whole project'!DN22 -> 4412.898034
C7: Equipment
D8: ='Whole project'!DZ22+'Whole project'!AE22+'Whole project'!DO22 -> 1212.775004
C9: Contractors
D10: ='Whole project'!EA22+'Whole project'!AF22+'Whole project'!DP22 -> 457.5856754
C11: IT
D12: ='Whole project'!EB22+'Whole project'!AG22+'Whole project'!DQ22 -> 235.3818561
C13: IPR Costs
D14: ='Whole project'!EC22+'Whole project'!AH22+'Whole project'!DR22 -> 0
C15: Travel & Expenses
D16: ='Whole project'!ED22+'Whole project'!AI22+'Whole project'!DS22 -> 18.09489458
C17: Payments to users
D18: ='Whole project'!EE22+'Whole project'!AJ22+'Whole project'!DT22 -> 73.55437705
C19: Contingency
D20: ='Whole project'!EF22+'Whole project'!AK22+'Whole project'!DU22 -> 1238.435645
C21: Decommissioning
D22: ='Whole project'!EG22+'Whole project'!AL22+'Whole project'!DV22 -> 0
C23: Other
D24: ='Whole project'!EH22+'Whole project'!AM22+'Whole project'!DW22 -> 117.384514 | E24: Check that = to Total Outstanding Funding Required + Licensee Compulsory Contribution + Licensee Extra Contribution
C25: Total | D25: =SUM(D6:D24) -> 7766.11 | E25: =IF(D25=('NIC Funding Request'!J79+'NIC Funding Request'!J37+'NIC Funding Request'!J66),"OK", "ERROR") -> OK
